Workbook

Sheet LETs
A1: CD | B1: Copa | C1: 2021-02-10 | D1: Gerot_Let´s - Revenda_Seropédica | E1: P | F1: 2021 | G1: 2021-01-31 | H1: 2021-02-28 | I1: 2021-03-31 | J1: 2021-04-30 | K1: 2021-05-31 | L1: 2021-06-30 | M1: 2021-07-31 | N1: 2021-08-31 | O1: 2021-09-30 | P1: 2021-10-31 | Q1: 2021-11-30 | R1: 2021-12-31
A2: Seropédica | D2: Indicadores / Parâmetros | E2: =[1]LETs!E2 -> 8 | F2: =[1]LETs!F2 -> 2021 | G2: =[1]LETs!G2 -> Jan/21 | H2: =[1]LETs!H2 -> Fev/21 | I2: =[1]LETs!I2 -> Mar/21 | J2: =[1]LETs!J2 -> Abr/21 | K2: =[1]LETs!K2 -> Mai/21 | L2: =[1]LETs!L2 -> Jun/21 | M2: =[1]LETs!M2 -> Jul/21 | N2: =[1]LETs!N2 -> Ago/21 | O2: =[1]LETs!O2 -> Set/21 | P2: =[1]LETs!P2 -> Out/21 | Q2: =[1]LETs!Q2 -> Nov/21 | R2: =[1]LETs!R2 -> Dez/21 | S2: =WORKDAY(TODAY(),-1,0) -> 2021-02-10
A3: SUPER COPA | B3: Outbound | C3: Performance - SEC | D3: Performance - SEC | E3: =[1]LETs!E3 -> 1 | F3: =[1]LETs!F3 -> 0.9239 | G3: =[1]LETs!G3 -> 0.9088 | H3: =[1]LETs!H3 -> 0.9672 | I3: =[1]LETs!I3 -> 0 | J3: =[1]LETs!J3 -> 0 | K3: =[1]LETs!K3 -> 0 | L3: =[1]LETs!L3 -> 0 | M3: =[1]LETs!M3 -> 0 | N3: =[1]LETs!N3 -> 0 | O3: =[1]LETs!O3 -> 0 | P3: =[1]LETs!P3 -> 0 | Q3: =[1]LETs!Q3 -> 0 | R3: =[1]LETs!R3 -> 0 | S3: =IFERROR(INDEX([1]LETs!$F$3:$AZZ$214,MATCH($D3,[1]LETs!$D$3:$D$214,0),MATCH($S$2,[1]LETs!$F$2:$AZZ$2,0)),0) -> 0.9883 | V3: Para: | W3: BRRJDL.COORDENADORES-SEROPEDICA <coordenadores.seropedica@b2wdigital.com>; BRRJDL.WAVE-SEROPEDICA <wave.seropedica@b2wdigital.com>; BRRJODL.PACKING-SEROP <packing.serop@b2wdigital.com>; BRRJDL.SUPERVISORES-SEROPEDICA <supervisores.seropedica@b2wdigital.com>; BRRJDL.RECEBIMENTO-SEROPEDICA <recebimento.seropedica@b2wdigital.com>; BRRJDL.PICK-SEROPEDICA <pick.seropedica@b2wdigital.com>
D4: Prazo | F4: =[1]LETs!F4 -> 330375 | G4: =[1]LETs!G4 -> 240822 | H4: =[1]LETs!H4 -> 89553 | I4: =[1]LETs!I4 -> 0 | J4: =[1]LETs!J4 -> 0 | K4: =[1]LETs!K4 -> 0 | L4: =[1]LETs!L4 -> 0 | M4: =[1]LETs!M4 -> 0 | N4: =[1]LETs!N4 -> 0 | O4: =[1]LETs!O4 -> 0 | P4: =[1]LETs!P4 -> 0 | Q4: =[1]LETs!Q4 -> 0 | R4: =[1]LETs!R4 -> 0 | S4: =IFERROR(INDEX([1]LETs!$F$3:$AZZ$214,MATCH($D4,[1]LETs!$D$3:$D$214,0),MATCH($S$2,[1]LETs!$F$2:$AZZ$2,0)),0) -> 11219
D5: Atraso | F5: =[1]LETs!F5 -> 27202 | G5: =[1]LETs!G5 -> 24169 | H5: =[1]LETs!H5 -> 3033 | I5: =[1]LETs!I5 -> 0 | J5: =[1]LETs!J5 -> 0 | K5: =[1]LETs!K5 -> 0 | L5: =[1]LETs!L5 -> 0 | M5: =[1]LETs!M5 -> 0 | N5: =[1]LETs!N5 -> 0 | O5: =[1]LETs!O5 -> 0 | P5: =[1]LETs!P5 -> 0 | Q5: =[1]LETs!Q5 -> 0 | R5: =[1]LETs!R5 -> 0 | S5: =IFERROR(INDEX([1]LETs!$F$3:$AZZ$214,MATCH($D5,[1]LETs!$D$3:$D$214,0),MATCH($S$2,[1]LETs!$F$2:$AZZ$2,0)),0) -> 133
D6: Meta | F6: =[1]LETs!F6 -> 0.98 | G6: =[1]LETs!G6 -> 0.98 | H6: =[1]LETs!H6 -> 0.98 | I6: =[1]LETs!I6 -> 0 | J6: =[1]LETs!J6 -> 0 | K6: =[1]LETs!K6 -> 0 | L6: =[1]LETs!L6 -> 0 | M6: =[1]LETs!M6 -> 0 | N6: =[1]LETs!N6 -> 0 | O6: =[1]LETs!O6 -> 0 | P6: =[1]LETs!P6 -> 0 | Q6: =[1]LETs!Q6 -> 0 | R6: =[1]LETs!R6 -> 0 | S6: =IF(MONTH(S$2)=1,$G6,IF(MONTH(S$2)=2,$H6,IF(MONTH(S$2)=3,$I6,IF(MONTH(S$2)=4,$J6,IF(MONTH(S$2)=5,$K6,IF(MONTH(S$2)=6,$L6,IF(MONTH(S$2)=7,$M6,IF(MONTH(S$2)=8,$N6,IF(MONTH(S$2)=9,$O6,IF(MONTH(S$2)=10,$P6,IF(MONTH(S$2)=11,$Q6,$R6))))))))))) -> 0.98 | V6: De: | W6: Rodolfo Miranda Mascagni <rmmascagni@submarino.com.br>; BRRJDL.QUALIDADE-SEROPEDICA <qualidade.seropedica@b2wdigital.com>; Robson Silva de Souza <robson.souza@b2wdigital.com>
B7: CD | C7: Produtividade CD | D7: Produtividade CD | E7: =[1]LETs!E7 -> 2 | F7: =[1]LETs!F7 -> 32.23 | G7: =[1]LETs!G7 -> 31.3 | H7: =[1]LETs!H7 -> 35 | I7: =[1]LETs!I7 -> 0 | J7: =[1]LETs!J7 -> 0 | K7: =[1]LETs!K7 -> 0 | L7: =[1]LETs!L7 -> 0 | M7: =[1]LETs!M7 -> 0 | N7: =[1]LETs!N7 -> 0 | O7: =[1]LETs!O7 -> 0 | P7: =[1]LETs!P7 -> 0 | Q7: =[1]LETs!Q7 -> 0 | R7: =[1]LETs!R7 -> 0 | S7: =IFERROR(INDEX([1]LETs!$F$3:$AZZ$214,MATCH($D7,[1]LETs!$D$3:$D$214,0),MATCH($S$2,[1]LETs!$F$2:$AZZ$2,0)),0) -> 44.25 | V7: Assunto: | W7: =CONCATENATE("Super Copa & Copa dos Campeões - "&TEXT(S2,"DD/MM/AAAA")) -> Super Copa & Copa dos Campeões - 10/02/2021
D8: Quadro Produtivo Total | F8: =[1]LETs!F8 -> 11383 | G8: =[1]LETs!G8 -> 8523 | H8: =[1]LETs!H8 -> 2860 | I8: =[1]LETs!I8 -> 0 | J8: =[1]LETs!J8 -> 0 | K8: =[1]LETs!K8 -> 0 | L8: =[1]LETs!L8 -> 0 | M8: =[1]LETs!M8 -> 0 | N8: =[1]LETs!N8 -> 0 | O8: =[1]LETs!O8 -> 0 | P8: =[1]LETs!P8 -> 0 | Q8: =[1]LETs!Q8 -> 0 | R8: =[1]LETs!R8 -> 0 | S8: =IFERROR(INDEX([1]LETs!$F$3:$AZZ$214,MATCH($D8,[1]LETs!$D$3:$D$214,0),MATCH($S$2,[1]LETs!$F$2:$AZZ$2,0)),0) -> 313
D9: QP Terceiros | F9: =[1]LETs!F9 -> 0 | G9: =[1]LETs!G9 -> 0 | H9: =[1]LETs!H9 -> 0 | I9: =[1]LETs!I9 -> 0 | J9: =[1]LETs!J9 -> 0 | K9: =[1]LETs!K9 -> 0 | L9: =[1]LETs!L9 -> 0 | M9: =[1]LETs!M9 -> 0 | N9: =[1]LETs!N9 -> 0 | O9: =[1]LETs!O9 -> 0 | P9: =[1]LETs!P9 -> 0 | Q9: =[1]LETs!Q9 -> 0 | R9: =[1]LETs!R9 -> 0 | S9: =IFERROR(INDEX([1]LETs!$F$3:$AZZ$214,MATCH($D9,[1]LETs!$D$3:$D$214,0),MATCH($S$2,[1]LETs!$F$2:$AZZ$2,0)),0) -> 0
D10: Faturamento | F10: =[1]LETs!F10 -> 366850 | G10: =[1]LETs!G10 -> 266743 | H10: =[1]LETs!H10 -> 100107 | I10: =[1]LETs!I10 -> 0 | J10: =[1]LETs!J10 -> 0 | K10: =[1]LETs!K10 -> 0 | L10: =[1]LETs!L10 -> 0 | M10: =[1]LETs!M10 -> 0 | N10: =[1]LETs!N10 -> 0 | O10: =[1]LETs!O10 -> 0 | P10: =[1]LETs!P10 -> 0 | Q10: =[1]LETs!Q10 -> 0 | R10: =[1]LETs!R10 -> 0 | S10: =IFERROR(INDEX([1]LETs!$F$3:$AZZ$214,MATCH($D10,[1]LETs!$D$3:$D$214,0),MATCH($S$2,[1]LETs!$F$2:$AZZ$2,0)),0) -> 13851
D11: Meta | F11: =[1]LETs!F11 -> 41.16828 | G11: =[1]LETs!G11 -> 43.60507333 | H11: =[1]LETs!H11 -> 33.90647263 | I11: =[1]LETs!I11 -> 0 | J11: =[1]LETs!J11 -> 0 | K11: =[1]LETs!K11 -> 0 | L11: =[1]LETs!L11 -> 0 | M11: =[1]LETs!M11 -> 0 | N11: =[1]LETs!N11 -> 0 | O11: =[1]LETs!O11 -> 0 | P11: =[1]LETs!P11 -> 0 | Q11: =[1]LETs!Q11 -> 0 | R11: =[1]LETs!R11 -> 0 | S11: =IF(MONTH(S$2)=1,$G11,IF(MONTH(S$2)=2,$H11,IF(MONTH(S$2)=3,$I11,IF(MONTH(S$2)=4,$J11,IF(MONTH(S$2)=5,$K11,IF(MONTH(S$2)=6,$L11,IF(MONTH(S$2)=7,$M11,IF(MONTH(S$2)=8,$N11,IF(MONTH(S$2)=9,$O11,IF(MONTH(S$2)=10,$P11,IF(MONTH(S$2)=11,$Q11,$R11))))))))))) -> 33.90647263 | V11: Corpo do e-mail: | W11: =IF(X39<=X40,W40,IF(X39<=X41,W41,W42)) -> Bom Dia,
C12: Acidentes (Típicos + Trajeto) | D12: Acidentes | E12: =[1]LETs!E12 -> -0,50 P | F12: =[1]LETs!F12 -> 0 | G12: =[1]LETs!G12 -> 0 | H12: =[1]LETs!H12 -> 0 | I12: =[1]LETs!I12 -> 0 | J12: =[1]LETs!J12 -> 0 | K12: =[1]LETs!K12 -> 0 | L12: =[1]LETs!L12 -> 0 | M12: =[1]LETs!M12 -> 0 | N12: =[1]LETs!N12 -> 0 | O12: =[1]LETs!O12 -> 0 | P12: =[1]LETs!P12 -> 0 | Q12: =[1]LETs!Q12 -> 0 | R12: =[1]LETs!R12 -> 0 | S12: =IFERROR(INDEX([1]LETs!$F$3:$AZZ$214,MATCH($D12,[1]LETs!$D$3:$D$214,0),MATCH($S$2,[1]LETs!$F$2:$AZZ$2,0)),0) -> 0 | W12: Segue abaixo SuperCopa e Copa dos Campeões:
D13: Meta | F13: =[1]LETs!F13 -> 0 | G13: =[1]LETs!G13 -> 0 | H13: =[1]LETs!H13 -> 0 | I13: =[1]LETs!I13 -> 0 | J13: =[1]LETs!J13 -> 0 | K13: =[1]LETs!K13 -> 0 | L13: =[1]LETs!L13 -> 0 | M13: =[1]LETs!M13 -> 0 | N13: =[1]LETs!N13 -> 0 | O13: =[1]LETs!O13 -> 0 | P13: =[1]LETs!P13 -> 0 | Q13: =[1]LETs!Q13 -> 0 | R13: =[1]LETs!R13 -> 0 | S13: =IF(MONTH(S$2)=1,$G13,IF(MONTH(S$2)=2,$H13,IF(MONTH(S$2)=3,$I13,IF(MONTH(S$2)=4,$J13,IF(MONTH(S$2)=5,$K13,IF(MONTH(S$2)=6,$L13,IF(MONTH(S$2)=7,$M13,IF(MONTH(S$2)=8,$N13,IF(MONTH(S$2)=9,$O13,IF(MONTH(S$2)=10,$P13,IF(MONTH(S$2)=11,$Q13,$R13))))))))))) -> 0 | V13: A base atualizada encontra-se em: | W13: \\fsb2w03\CD-Seropedica\00.Novo GEROT\0.2- Copa dos Campeões
C14: Anomalias | D14: Anomalias | E14: =[1]LETs!E14 -> -0,50 P | F14: =[1]LETs!F14 -> 0 | G14: =[1]LETs!G14 -> 0 | H14: =[1]LETs!H14 -> 0 | I14: =[1]LETs!I14 -> 0 | J14: =[1]LETs!J14 -> 0 | K14: =[1]LETs!K14 -> 0 | L14: =[1]LETs!L14 -> 0 | M14: =[1]LETs!M14 -> 0 | N14: =[1]LETs!N14 -> 0 | O14: =[1]LETs!O14 -> 0 | P14: =[1]LETs!P14 -> 0 | Q14: =[1]LETs!Q14 -> 0 | R14: =[1]LETs!R14 -> 0 | S14: =IFERROR(INDEX([1]LETs!$F$3:$AZZ$214,MATCH($D14,[1]LETs!$D$3:$D$214,0),MATCH($S$2,[1]LETs!$F$2:$AZZ$2,0)),0) -> 0 | V14: Seguem links (PowerBI):
D15: Meta | F15: =[1]LETs!F15 -> 0 | G15: =[1]LETs!G15 -> 0 | H15: =[1]LETs!H15 -> 0 | I15: =[1]LETs!I15 -> 0 | J15: =[1]LETs!J15 -> 0 | K15: =[1]LETs!K15 -> 0 | L15: =[1]LETs!L15 -> 0 | M15: =[1]LETs!M15 -> 0 | N15: =[1]LETs!N15 -> 0 | O15: =[1]LETs!O15 -> 0 | P15: =[1]LETs!P15 -> 0 | Q15: =[1]LETs!Q15 -> 0 | R15: =[1]LETs!R15 -> 0 | S15: =IF(MONTH(S$2)=1,$G15,IF(MONTH(S$2)=2,$H15,IF(MONTH(S$2)=3,$I15,IF(MONTH(S$2)=4,$J15,IF(MONTH(S$2)=5,$K15,IF(MONTH(S$2)=6,$L15,IF(MONTH(S$2)=7,$M15,IF(MONTH(S$2)=8,$N15,IF(MONTH(S$2)=9,$O15,IF(MONTH(S$2)=10,$P15,IF(MONTH(S$2)=11,$Q15,$R15))))))))))) -> 0 | V15: • Gerot: | W15: https://app.powerbi.com/groups/me/apps/affa335c-f89f-4d19-b1c1-935bc83b2eee/reports/c941564f-1662-481f-867a-55d748522c71/ReportSection?ctid=809e2f09-760f-4d6e-835a-d3b3e8251285
B16: Estoque | C16: Perda Operacional | D16: Total de Perda Operacional | E16: =[1]LETs!E16 -> 0.5 | F16: =[1]LETs!F16 -> 166.1178849 | G16: =[1]LETs!G16 -> 158.6637791 | H16: =[1]LETs!H16 -> 7.454105777 | I16: =[1]LETs!I16 -> 0 | J16: =[1]LETs!J16 -> 0 | K16: =[1]LETs!K16 -> 0 | L16: =[1]LETs!L16 -> 0 | M16: =[1]LETs!M16 -> 0 | N16: =[1]LETs!N16 -> 0 | O16: =[1]LETs!O16 -> 0 | P16: =[1]LETs!P16 -> 0 | Q16: =[1]LETs!Q16 -> 0 | R16: =[1]LETs!R16 -> 0 | S16: =IFERROR(INDEX([1]LETs!$F$3:$AZZ$214,MATCH($D16,[1]LETs!$D$3:$D$214,0),MATCH($S$2,[1]LETs!$F$2:$AZZ$2,0)),0) -> 0 | V16: • OBZ: | W16: https://app.powerbi.com/groups/me/apps/affa335c-f89f-4d19-b1c1-935bc83b2eee/reports/b380faef-cf63-4657-9b15-3797b44da25c/ReportSection?ctid=809e2f09-760f-4d6e-835a-d3b3e8251285
D17: Avarias | F17: =[1]LETs!F17 -> 147.8007665 | G17: =[1]LETs!G17 -> 147.2595623 | H17: =[1]LETs!H17 -> 0.5412041902 | I17: =[1]LETs!I17 -> 0 | J17: =[1]LETs!J17 -> 0 | K17: =[1]LETs!K17 -> 0 | L17: =[1]LETs!L17 -> 0 | M17: =[1]LETs!M17 -> 0 | N17: =[1]LETs!N17 -> 0 | O17: =[1]LETs!O17 -> 0 | P17: =[1]LETs!P17 -> 0 | Q17: =[1]LETs!Q17 -> 0 | R17: =[1]LETs!R17 -> 0 | S17: =IFERROR(INDEX([1]LETs!$F$3:$AZZ$214,MATCH($D17,[1]LETs!$D$3:$D$214,0),MATCH($S$2,[1]LETs!$F$2:$AZZ$2,0)),0) -> 0 | V17: • Gerot:
D18: Quebras | F18: =[1]LETs!F18 -> 11.43593137 | G18: =[1]LETs!G18 -> 11.40421684 | H18: =[1]LETs!H18 -> 0.03171452418 | I18: =[1]LETs!I18 -> 0 | J18: =[1]LETs!J18 -> 0 | K18: =[1]LETs!K18 -> 0 | L18: =[1]LETs!L18 -> 0 | M18: =[1]LETs!M18 -> 0 | N18: =[1]LETs!N18 -> 0 | O18: =[1]LETs!O18 -> 0 | P18: =[1]LETs!P18 -> 0 | Q18: =[1]LETs!Q18 -> 0 | R18: =[1]LETs!R18 -> 0 | S18: =IFERROR(INDEX([1]LETs!$F$3:$AZZ$214,MATCH($D18,[1]LETs!$D$3:$D$214,0),MATCH($S$2,[1]LETs!$F$2:$AZZ$2,0)),0) -> 0 | V18: • Gerot:
D19: Vencidos | F19: =[1]LETs!F19 -> 0 | G19: =[1]LETs!G19 -> 0 | H19: =[1]LETs!H19 -> 0 | I19: =[1]LETs!I19 -> 0 | J19: =[1]LETs!J19 -> 0 | K19: =[1]LETs!K19 -> 0 | L19: =[1]LETs!L19 -> 0 | M19: =[1]LETs!M19 -> 0 | N19: =[1]LETs!N19 -> 0 | O19: =[1]LETs!O19 -> 0 | P19: =[1]LETs!P19 -> 0 | Q19: =[1]LETs!Q19 -> 0 | R19: =[1]LETs!R19 -> 0 | S19: =IFERROR(INDEX([1]LETs!$F$3:$AZZ$214,MATCH($D19,[1]LETs!$D$3:$D$214,0),MATCH($S$2,[1]LETs!$F$2:$AZZ$2,0)),0) -> 0 | V19: • Gerot:
D20: Furtos | F20: =[1]LETs!F20 -> 0 | G20: =[1]LETs!G20 -> 0 | H20: =[1]LETs!H20 -> 0 | I20: =[1]LETs!I20 -> 0 | J20: =[1]LETs!J20 -> 0 | K20: =[1]LETs!K20 -> 0 | L20: =[1]LETs!L20 -> 0 | M20: =[1]LETs!M20 -> 0 | N20: =[1]LETs!N20 -> 0 | O20: =[1]LETs!O20 -> 0 | P20: =[1]LETs!P20 -> 0 | Q20: =[1]LETs!Q20 -> 0 | R20: =[1]LETs!R20 -> 0 | S20: =IFERROR(INDEX([1]LETs!$F$3:$AZZ$214,MATCH($D20,[1]LETs!$D$3:$D$214,0),MATCH($S$2,[1]LETs!$F$2:$AZZ$2,0)),0) -> 0 | V20: • Gerot:
D21: Meta | F21: =[1]LETs!F21 -> 50 | G21: =[1]LETs!G21 -> 50 | H21: =[1]LETs!H21 -> 50 | I21: =[1]LETs!I21 -> 0 | J21: =[1]LETs!J21 -> 0 | K21: =[1]LETs!K21 -> 0 | L21: =[1]LETs!L21 -> 0 | M21: =[1]LETs!M21 -> 0 | N21: =[1]LETs!N21 -> 0 | O21: =[1]LETs!O21 -> 0 | P21: =[1]LETs!P21 -> 0 | Q21: =[1]LETs!Q21 -> 0 | R21: =[1]LETs!R21 -> 0 | S21: =IF(MONTH(S$2)=1,$G21,IF(MONTH(S$2)=2,$H21,IF(MONTH(S$2)=3,$I21,IF(MONTH(S$2)=4,$J21,IF(MONTH(S$2)=5,$K21,IF(MONTH(S$2)=6,$L21,IF(MONTH(S$2)=7,$M21,IF(MONTH(S$2)=8,$N21,IF(MONTH(S$2)=9,$O21,IF(MONTH(S$2)=10,$P21,IF(MONTH(S$2)=11,$Q21,$R21))))))))))) -> 50 | V21: • Reunião de Operações: | W21: https://app.powerbi.com/groups/me/apps/affa335c-f89f-4d19-b1c1-935bc83b2eee/reports/3084419d-2725-472a-831f-3db122d7f60f/ReportSection84429facd09a70911520?ctid=809e2f09-760f-4d6e-835a-d3b3e8251285
C22: Armazenagem no Prazo | D22: Armazenagem no Prazo | E22: =[1]LETs!E22 -> 0.5 | F22: =[1]LETs!F22 -> 0.9996 | G22: =[1]LETs!G22 -> 0.9994 | H22: =[1]LETs!H22 -> 1 | I22: =[1]LETs!I22 -> 0 | J22: =[1]LETs!J22 -> 0 | K22: =[1]LETs!K22 -> 0 | L22: =[1]LETs!L22 -> 0 | M22: =[1]LETs!M22 -> 0 | N22: =[1]LETs!N22 -> 0 | O22: =[1]LETs!O22 -> 0 | P22: =[1]LETs!P22 -> 0 | Q22: =[1]LETs!Q22 -> 0 | R22: =[1]LETs!R22 -> 0 | S22: =IFERROR(INDEX([1]LETs!$F$3:$AZZ$214,MATCH($D22,[1]LETs!$D$3:$D$214,0),MATCH($S$2,[1]LETs!$F$2:$AZZ$2,0)),0) -> 1
D23: Prazo (ARM) | F23: =[1]LETs!F23 -> 451888 | G23: =[1]LETs!G23 -> 329917 | H23: =[1]LETs!H23 -> 121971 | I23: =[1]LETs!I23 -> 0 | J23: =[1]LETs!J23 -> 0 | K23: =[1]LETs!K23 -> 0 | L23: =[1]LETs!L23 -> 0 | M23: =[1]LETs!M23 -> 0 | N23: =[1]LETs!N23 -> 0 | O23: =[1]LETs!O23 -> 0 | P23: =[1]LETs!P23 -> 0 | Q23: =[1]LETs!Q23 -> 0 | R23: =[1]LETs!R23 -> 0 | S23: =IFERROR(INDEX([1]LETs!$F$3:$AZZ$214,MATCH($D23,[1]LETs!$D$3:$D$214,0),MATCH($S$2,[1]LETs!$F$2:$AZZ$2,0)),0) -> 9394
D24: Atraso (ARM) | F24: =[1]LETs!F24 -> 192 | G24: =[1]LETs!G24 -> 192 | H24: =[1]LETs!H24 -> 0 | I24: =[1]LETs!I24 -> 0 | J24: =[1]LETs!J24 -> 0 | K24: =[1]LETs!K24 -> 0 | L24: =[1]LETs!L24 -> 0 | M24: =[1]LETs!M24 -> 0 | N24: =[1]LETs!N24 -> 0 | O24: =[1]LETs!O24 -> 0 | P24: =[1]LETs!P24 -> 0 | Q24: =[1]LETs!Q24 -> 0 | R24: =[1]LETs!R24 -> 0 | S24: =IFERROR(INDEX([1]LETs!$F$3:$AZZ$214,MATCH($D24,[1]LETs!$D$3:$D$214,0),MATCH($S$2,[1]LETs!$F$2:$AZZ$2,0)),0) -> 0
D25: Meta | F25: =[1]LETs!F25 -> 0.9998 | G25: =[1]LETs!G25 -> 0.9998 | H25: =[1]LETs!H25 -> 0.9998 | I25: =[1]LETs!I25 -> 0 | J25: =[1]LETs!J25 -> 0 | K25: =[1]LETs!K25 -> 0 | L25: =[1]LETs!L25 -> 0 | M25: =[1]LETs!M25 -> 0 | N25: =[1]LETs!N25 -> 0 | O25: =[1]LETs!O25 -> 0 | P25: =[1]LETs!P25 -> 0 | Q25: =[1]LETs!Q25 -> 0 | R25: =[1]LETs!R25 -> 0 | S25: =IF(MONTH(S$2)=1,$G25,IF(MONTH(S$2)=2,$H25,IF(MONTH(S$2)=3,$I25,IF(MONTH(S$2)=4,$J25,IF(MONTH(S$2)=5,$K25,IF(MONTH(S$2)=6,$L25,IF(MONTH(S$2)=7,$M25,IF(MONTH(S$2)=8,$N25,IF(MONTH(S$2)=9,$O25,IF(MONTH(S$2)=10,$P25,IF(MONTH(S$2)=11,$Q25,$R25))))))))))) -> 0.9998
C26: Estoque Virtual | D26: Estoque Virtual | E26: =[1]LETs!E26 -> 1 | F26: =[1]LETs!F26 -> 277.6814491 | G26: =[1]LETs!G26 -> 6278.726481 | H26: =[1]LETs!H26 -> 277.6814491 | I26: =[1]LETs!I26 -> 0 | J26: =[1]LETs!J26 -> 0 | K26: =[1]LETs!K26 -> 0 | L26: =[1]LETs!L26 -> 0 | M26: =[1]LETs!M26 -> 0 | N26: =[1]LETs!N26 -> 0 | O26: =[1]LETs!O26 -> 0 | P26: =[1]LETs!P26 -> 0 | Q26: =[1]LETs!Q26 -> 0 | R26: =[1]LETs!R26 -> 0 | S26: =IFERROR(INDEX([1]LETs!$F$3:$AZZ$214,MATCH($D26,[1]LETs!$D$3:$D$214,0),MATCH($S$2,[1]LETs!$F$2:$AZZ$2,0)),0) -> 277.6814491
D27: Expedidos $ | F27: =[1]LETs!F27 -> 4922035062 | G27: =[1]LETs!G27 -> 378305069 | H27: =[1]LETs!H27 -> 4922035062 | I27: =[1]LETs!I27 -> 0 | J27: =[1]LETs!J27 -> 0 | K27: =[1]LETs!K27 -> 0 | L27: =[1]LETs!L27 -> 0 | M27: =[1]LETs!M27 -> 0 | N27: =[1]LETs!N27 -> 0 | O27: =[1]LETs!O27 -> 0 | P27: =[1]LETs!P27 -> 0 | Q27: =[1]LETs!Q27 -> 0 | R27: =[1]LETs!R27 -> 0 | S27: =IFERROR(INDEX([1]LETs!$F$3:$AZZ$214,MATCH($D27,[1]LETs!$D$3:$D$214,0),MATCH($S$2,[1]LETs!$F$2:$AZZ$2,0)),0) -> 485331360.2
D28: Meta | F28: =[1]LETs!F28 -> 265.79337 | G28: =[1]LETs!G28 -> 1382.03 | H28: =[1]LETs!H28 -> 180 | I28: =[1]LETs!I28 -> 0 | J28: =[1]LETs!J28 -> 0 | K28: =[1]LETs!K28 -> 0 | L28: =[1]LETs!L28 -> 0 | M28: =[1]LETs!M28 -> 0 | N28: =[1]LETs!N28 -> 0 | O28: =[1]LETs!O28 -> 0 | P28: =[1]LETs!P28 -> 0 | Q28: =[1]LETs!Q28 -> 0 | R28: =[1]LETs!R28 -> 0 | S28: =IF(MONTH(S$2)=1,$G28,IF(MONTH(S$2)=2,$H28,IF(MONTH(S$2)=3,$I28,IF(MONTH(S$2)=4,$J28,IF(MONTH(S$2)=5,$K28,IF(MONTH(S$2)=6,$L28,IF(MONTH(S$2)=7,$M28,IF(MONTH(S$2)=8,$N28,IF(MONTH(S$2)=9,$O28,IF(MONTH(S$2)=10,$P28,IF(MONTH(S$2)=11,$Q28,$R28))))))))))) -> 180
B29: CD | C29: Absenteísmo | D29: Absenteísmo | E29: =[1]LETs!E29 -> 1 | F29: =[1]LETs!F29 -> 0.0211 | G29: =[1]LETs!G29 -> 0.0215 | H29: =[1]LETs!H29 -> 0.02 | I29: =[1]LETs!I29 -> 0 | J29: =[1]LETs!J29 -> 0 | K29: =[1]LETs!K29 -> 0 | L29: =[1]LETs!L29 -> 0 | M29: =[1]LETs!M29 -> 0 | N29: =[1]LETs!N29 -> 0 | O29: =[1]LETs!O29 -> 0 | P29: =[1]LETs!P29 -> 0 | Q29: =[1]LETs!Q29 -> 0 | R29: =[1]LETs!R29 -> 0 | S29: =IFERROR(INDEX([1]LETs!$F$3:$AZZ$214,MATCH($D29,[1]LETs!$D$3:$D$214,0),MATCH($S$2,[1]LETs!$F$2:$AZZ$2,0)),0) -> 0.0139 | W29: Última entrega: | X29: =NOW() -> 44238.43584
D30: Quadro Líquido | F30: =[1]LETs!F30 -> 12404 | G30: =[1]LETs!G30 -> 9196 | H30: =[1]LETs!H30 -> 3208 | I30: =[1]LETs!I30 -> 0 | J30: =[1]LETs!J30 -> 0 | K30: =[1]LETs!K30 -> 0 | L30: =[1]LETs!L30 -> 0 | M30: =[1]LETs!M30 -> 0 | N30: =[1]LETs!N30 -> 0 | O30: =[1]LETs!O30 -> 0 | P30: =[1]LETs!P30 -> 0 | Q30: =[1]LETs!Q30 -> 0 | R30: =[1]LETs!R30 -> 0 | S30: =IFERROR(INDEX([1]LETs!$F$3:$AZZ$214,MATCH($D30,[1]LETs!$D$3:$D$214,0),MATCH($S$2,[1]LETs!$F$2:$AZZ$2,0)),0) -> 360 | X30: =TODAY() -> 44238
D31: Faltas | F31: =[1]LETs!F31 -> 262 | G31: =[1]LETs!G31 -> 198 | H31: =[1]LETs!H31 -> 64 | I31: =[1]LETs!I31 -> 0 | J31: =[1]LETs!J31 -> 0 | K31: =[1]LETs!K31 -> 0 | L31: =[1]LETs!L31 -> 0 | M31: =[1]LETs!M31 -> 0 | N31: =[1]LETs!N31 -> 0 | O31: =[1]LETs!O31 -> 0 | P31: =[1]LETs!P31 -> 0 | Q31: =[1]LETs!Q31 -> 0 | R31: =[1]LETs!R31 -> 0 | S31: =IFERROR(INDEX([1]LETs!$F$3:$AZZ$214,MATCH($D31,[1]LETs!$D$3:$D$214,0),MATCH($S$2,[1]LETs!$F$2:$AZZ$2,0)),0) -> 5 | X31: =X29-X30 -> 0.4358431713
D32: Quadro Total | F32: =[1]LETs!F32 -> 15898 | G32: =[1]LETs!G32 -> 11864 | H32: =[1]LETs!H32 -> 4034 | I32: =[1]LETs!I32 -> 0 | J32: =[1]LETs!J32 -> 0 | K32: =[1]LETs!K32 -> 0 | L32: =[1]LETs!L32 -> 0 | M32: =[1]LETs!M32 -> 0 | N32: =[1]LETs!N32 -> 0 | O32: =[1]LETs!O32 -> 0 | P32: =[1]LETs!P32 -> 0 | Q32: =[1]LETs!Q32 -> 0 | R32: =[1]LETs!R32 -> 0 | S32: =IFERROR(INDEX([1]LETs!$F$3:$AZZ$214,MATCH($D32,[1]LETs!$D$3:$D$214,0),MATCH($S$2,[1]LETs!$F$2:$AZZ$2,0)),0) -> 438
D33: Ger. e Coord. | F33: =[1]LETs!F33 -> 237 | G33: =[1]LETs!G33 -> 173 | H33: =[1]LETs!H33 -> 64 | I33: =[1]LETs!I33 -> 0 | J33: =[1]LETs!J33 -> 0 | K33: =[1]LETs!K33 -> 0 | L33: =[1]LETs!L33 -> 0 | M33: =[1]LETs!M33 -> 0 | N33: =[1]LETs!N33 -> 0 | O33: =[1]LETs!O33 -> 0 | P33: =[1]LETs!P33 -> 0 | Q33: =[1]LETs!Q33 -> 0 | R33: =[1]LETs!R33 -> 0 | S33: =IFERROR(INDEX([1]LETs!$F$3:$AZZ$214,MATCH($D33,[1]LETs!$D$3:$D$214,0),MATCH($S$2,[1]LETs!$F$2:$AZZ$2,0)),0) -> 7
D34: Sup. e Liderança | F34: =[1]LETs!F34 -> 1482 | G34: =[1]LETs!G34 -> 1095 | H34: =[1]LETs!H34 -> 387 | I34: =[1]LETs!I34 -> 0 | J34: =[1]LETs!J34 -> 0 | K34: =[1]LETs!K34 -> 0 | L34: =[1]LETs!L34 -> 0 | M34: =[1]LETs!M34 -> 0 | N34: =[1]LETs!N34 -> 0 | O34: =[1]LETs!O34 -> 0 | P34: =[1]LETs!P34 -> 0 | Q34: =[1]LETs!Q34 -> 0 | R34: =[1]LETs!R34 -> 0 | S34: =IFERROR(INDEX([1]LETs!$F$3:$AZZ$214,MATCH($D34,[1]LETs!$D$3:$D$214,0),MATCH($S$2,[1]LETs!$F$2:$AZZ$2,0)),0) -> 42
D35: Inativos | F35: =[1]LETs!F35 -> 785 | G35: =[1]LETs!G35 -> 580 | H35: =[1]LETs!H35 -> 205 | I35: =[1]LETs!I35 -> 0 | J35: =[1]LETs!J35 -> 0 | K35: =[1]LETs!K35 -> 0 | L35: =[1]LETs!L35 -> 0 | M35: =[1]LETs!M35 -> 0 | N35: =[1]LETs!N35 -> 0 | O35: =[1]LETs!O35 -> 0 | P35: =[1]LETs!P35 -> 0 | Q35: =[1]LETs!Q35 -> 0 | R35: =[1]LETs!R35 -> 0 | S35: =IFERROR(INDEX([1]LETs!$F$3:$AZZ$214,MATCH($D35,[1]LETs!$D$3:$D$214,0),MATCH($S$2,[1]LETs!$F$2:$AZZ$2,0)),0) -> 21
D36: Ausências | F36: =[1]LETs!F36 -> 2389 | G36: =[1]LETs!G36 -> 1832 | H36: =[1]LETs!H36 -> 557 | I36: =[1]LETs!I36 -> 0 | J36: =[1]LETs!J36 -> 0 | K36: =[1]LETs!K36 -> 0 | L36: =[1]LETs!L36 -> 0 | M36: =[1]LETs!M36 -> 0 | N36: =[1]LETs!N36 -> 0 | O36: =[1]LETs!O36 -> 0 | P36: =[1]LETs!P36 -> 0 | Q36: =[1]LETs!Q36 -> 0 | R36: =[1]LETs!R36 -> 0 | S36: =IFERROR(INDEX([1]LETs!$F$3:$AZZ$214,MATCH($D36,[1]LETs!$D$3:$D$214,0),MATCH($S$2,[1]LETs!$F$2:$AZZ$2,0)),0) -> 50
D37: Sumidos | F37: =[1]LETs!F37 -> 83 | G37: =[1]LETs!G37 -> 83 | H37: =[1]LETs!H37 -> 0 | I37: =[1]LETs!I37 -> 0 | J37: =[1]LETs!J37 -> 0 | K37: =[1]LETs!K37 -> 0 | L37: =[1]LETs!L37 -> 0 | M37: =[1]LETs!M37 -> 0 | N37: =[1]LETs!N37 -> 0 | O37: =[1]LETs!O37 -> 0 | P37: =[1]LETs!P37 -> 0 | Q37: =[1]LETs!Q37 -> 0 | R37: =[1]LETs!R37 -> 0 | S37: =IFERROR(INDEX([1]LETs!$F$3:$AZZ$214,MATCH($D37,[1]LETs!$D$3:$D$214,0),MATCH($S$2,[1]LETs!$F$2:$AZZ$2,0)),0) -> 0
D38: Meta | F38: =[1]LETs!F38 -> 0.024 | G38: =[1]LETs!G38 -> 0.024 | H38: =[1]LETs!H38 -> 0.024 | I38: =[1]LETs!I38 -> 0 | J38: =[1]LETs!J38 -> 0 | K38: =[1]LETs!K38 -> 0 | L38: =[1]LETs!L38 -> 0 | M38: =[1]LETs!M38 -> 0 | N38: =[1]LETs!N38 -> 0 | O38: =[1]LETs!O38 -> 0 | P38: =[1]LETs!P38 -> 0 | Q38: =[1]LETs!Q38 -> 0 | R38: =[1]LETs!R38 -> 0 | S38: =IF(MONTH(S$2)=1,$G38,IF(MONTH(S$2)=2,$H38,IF(MONTH(S$2)=3,$I38,IF(MONTH(S$2)=4,$J38,IF(MONTH(S$2)=5,$K38,IF(MONTH(S$2)=6,$L38,IF(MONTH(S$2)=7,$M38,IF(MONTH(S$2)=8,$N38,IF(MONTH(S$2)=9,$O38,IF(MONTH(S$2)=10,$P38,IF(MONTH(S$2)=11,$Q38,$R38))))))))))) -> 0.024 | X38: =TODAY() -> 2021-02-11
C39: Pulses | D39: Pulses - Score | E39: =[1]LETs!E39 -> 0.7 | F39: =[1]LETs!F39 -> 0.9583 | G39: =[1]LETs!G39 -> 0.9472 | H39: =[1]LETs!H39 -> 0.9583 | I39: =[1]LETs!I39 -> 0 | J39: =[1]LETs!J39 -> 0 | K39: =[1]LETs!K39 -> 0 | L39: =[1]LETs!L39 -> 0 | M39: =[1]LETs!M39 -> 0 | N39: =[1]LETs!N39 -> 0 | O39: =[1]LETs!O39 -> 0 | P39: =[1]LETs!P39 -> 0 | Q39: =[1]LETs!Q39 -> 0 | R39: =[1]LETs!R39 -> 0 | S39: =IFERROR(INDEX([1]LETs!$F$3:$AZZ$214,MATCH($D39,[1]LETs!$D$3:$D$214,0),MATCH($S$2,[1]LETs!$F$2:$AZZ$2,0)),0) -> 0.9583 | X39: =X29-X38 -> 0.4358431713
D40: Meta | F40: =[1]LETs!F40 -> 0.94 | G40: =[1]LETs!G40 -> 0.94 | H40: =[1]LETs!H40 -> 0.94 | I40: =[1]LETs!I40 -> 0 | J40: =[1]LETs!J40 -> 0 | K40: =[1]LETs!K40 -> 0 | L40: =[1]LETs!L40 -> 0 | M40: =[1]LETs!M40 -> 0 | N40: =[1]LETs!N40 -> 0 | O40: =[1]LETs!O40 -> 0 | P40: =[1]LETs!P40 -> 0 | Q40: =[1]LETs!Q40 -> 0 | R40: =[1]LETs!R40 -> 0 | S40: =IF(MONTH(S$2)=1,$G40,IF(MONTH(S$2)=2,$H40,IF(MONTH(S$2)=3,$I40,IF(MONTH(S$2)=4,$J40,IF(MONTH(S$2)=5,$K40,IF(MONTH(S$2)=6,$L40,IF(MONTH(S$2)=7,$M40,IF(MONTH(S$2)=8,$N40,IF(MONTH(S$2)=9,$O40,IF(MONTH(S$2)=10,$P40,IF(MONTH(S$2)=11,$Q40,$R40))))))))))) -> 0.94 | W40: Bom Dia, | X40: 0.5
D41: Pulses - Adesão | E41: =[1]LETs!E41 -> 0.3 | F41: =[1]LETs!F41 -> 0.85 | G41: =[1]LETs!G41 -> 0.85 | H41: =[1]LETs!H41 -> 0.85 | I41: =[1]LETs!I41 -> 0 | J41: =[1]LETs!J41 -> 0 | K41: =[1]LETs!K41 -> 0 | L41: =[1]LETs!L41 -> 0 | M41: =[1]LETs!M41 -> 0 | N41: =[1]LETs!N41 -> 0 | O41: =[1]LETs!O41 -> 0 | P41: =[1]LETs!P41 -> 0 | Q41: =[1]LETs!Q41 -> 0 | R41: =[1]LETs!R41 -> 0 | S41: =IFERROR(INDEX([1]LETs!$F$3:$AZZ$214,MATCH($D41,[1]LETs!$D$3:$D$214,0),MATCH($S$2,[1]LETs!$F$2:$AZZ$2,0)),0) -> 0.85 | W41: Boa tarde, | X41: 0.75
D42: Meta | F42: =[1]LETs!F42 -> 0.8 | G42: =[1]LETs!G42 -> 0.8 | H42: =[1]LETs!H42 -> 0.8 | I42: =[1]LETs!I42 -> 0 | J42: =[1]LETs!J42 -> 0 | K42: =[1]LETs!K42 -> 0 | L42: =[1]LETs!L42 -> 0 | M42: =[1]LETs!M42 -> 0 | N42: =[1]LETs!N42 -> 0 | O42: =[1]LETs!O42 -> 0 | P42: =[1]LETs!P42 -> 0 | Q42: =[1]LETs!Q42 -> 0 | R42: =[1]LETs!R42 -> 0 | S42: =IF(MONTH(S$2)=1,$G42,IF(MONTH(S$2)=2,$H42,IF(MONTH(S$2)=3,$I42,IF(MONTH(S$2)=4,$J42,IF(MONTH(S$2)=5,$K42,IF(MONTH(S$2)=6,$L42,IF(MONTH(S$2)=7,$M42,IF(MONTH(S$2)=8,$N42,IF(MONTH(S$2)=9,$O42,IF(MONTH(S$2)=10,$P42,IF(MONTH(S$2)=11,$Q42,$R42))))))))))) -> 0.8 | W42: Boa Noite,
B43: Inbound | C43: TMAF | D43: TMAF | E43: =[1]LETs!E43 -> 1 | F43: =[1]LETs!F43 -> 0.06515931793 | G43: =[1]LETs!G43 -> 0.06880474721 | H43: =[1]LETs!H43 -> 0.05735526789 | I43: =[1]LETs!I43 -> 0 | J43: =[1]LETs!J43 -> 0 | K43: =[1]LETs!K43 -> 0 | L43: =[1]LETs!L43 -> 0 | M43: =[1]LETs!M43 -> 0 | N43: =[1]LETs!N43 -> 0 | O43: =[1]LETs!O43 -> 0 | P43: =[1]LETs!P43 -> 0 | Q43: =[1]LETs!Q43 -> 0 | R43: =[1]LETs!R43 -> 0 | S43: =IFERROR(INDEX([1]LETs!$F$3:$AZZ$214,MATCH($D43,[1]LETs!$D$3:$D$214,0),MATCH($S$2,[1]LETs!$F$2:$AZZ$2,0)),0) -> 0.05157407408
D44: Qtd. CORM | F44: =[1]LETs!F44 -> 647 | G44: =[1]LETs!G44 -> 441 | H44: =[1]LETs!H44 -> 206 | I44: =[1]LETs!I44 -> 0 | J44: =[1]LETs!J44 -> 0 | K44: =[1]LETs!K44 -> 0 | L44: =[1]LETs!L44 -> 0 | M44: =[1]LETs!M44 -> 0 | N44: =[1]LETs!N44 -> 0 | O44: =[1]LETs!O44 -> 0 | P44: =[1]LETs!P44 -> 0 | Q44: =[1]LETs!Q44 -> 0 | R44: =[1]LETs!R44 -> 0 | S44: =IFERROR(INDEX([1]LETs!$F$3:$AZZ$214,MATCH($D44,[1]LETs!$D$3:$D$214,0),MATCH($S$2,[1]LETs!$F$2:$AZZ$2,0)),0) -> 17
D45: Meta | F45: =[1]LETs!F45 -> 01:59:59.712 | G45: =[1]LETs!G45 -> 02:00:00 | H45: =[1]LETs!H45 -> 02:00:00 | I45: =[1]LETs!I45 -> 00:00:00 | J45: =[1]LETs!J45 -> 00:00:00 | K45: =[1]LETs!K45 -> 00:00:00 | L45: =[1]LETs!L45 -> 00:00:00 | M45: =[1]LETs!M45 -> 00:00:00 | N45: =[1]LETs!N45 -> 00:00:00 | O45: =[1]LETs!O45 -> 00:00:00 | P45: =[1]LETs!P45 -> 00:00:00 | Q45: =[1]LETs!Q45 -> 00:00:00 | R45: =[1]LETs!R45 -> 00:00:00 | S45: =IF(MONTH(S$2)=1,$G45,IF(MONTH(S$2)=2,$H45,IF(MONTH(S$2)=3,$I45,IF(MONTH(S$2)=4,$J45,IF(MONTH(S$2)=5,$K45,IF(MONTH(S$2)=6,$L45,IF(MONTH(S$2)=7,$M45,IF(MONTH(S$2)=8,$N45,IF(MONTH(S$2)=9,$O45,IF(MONTH(S$2)=10,$P45,IF(MONTH(S$2)=11,$Q45,$R45))))))))))) -> 02:00:00
B46: Outbound | C46: CMU | D46: CMU | E46: =[1]LETs!E46 -> 1 | F46: =[1]LETs!F46 -> 0.8 | G46: =[1]LETs!G46 -> 0.73 | H46: =[1]LETs!H46 -> 0.98 | I46: =[1]LETs!I46 -> 0 | J46: =[1]LETs!J46 -> 0 | K46: =[1]LETs!K46 -> 0 | L46: =[1]LETs!L46 -> 0 | M46: =[1]LETs!M46 -> 0 | N46: =[1]LETs!N46 -> 0 | O46: =[1]LETs!O46 -> 0 | P46: =[1]LETs!P46 -> 0 | Q46: =[1]LETs!Q46 -> 0 | R46: =[1]LETs!R46 -> 0 | S46: =IFERROR(INDEX([1]LETs!$F$3:$AZZ$214,MATCH($D46,[1]LETs!$D$3:$D$214,0),MATCH($S$2,[1]LETs!$F$2:$AZZ$2,0)),0) -> 1.7
D47: Faturamento CMU | F47: =[1]LETs!F47 -> 359980 | G47: =[1]LETs!G47 -> 266743 | H47: =[1]LETs!H47 -> 93237 | I47: =[1]LETs!I47 -> 0 | J47: =[1]LETs!J47 -> 0 | K47: =[1]LETs!K47 -> 0 | L47: =[1]LETs!L47 -> 0 | M47: =[1]LETs!M47 -> 0 | N47: =[1]LETs!N47 -> 0 | O47: =[1]LETs!O47 -> 0 | P47: =[1]LETs!P47 -> 0 | Q47: =[1]LETs!Q47 -> 0 | R47: =[1]LETs!R47 -> 0 | S47: =IFERROR(INDEX([1]LETs!$F$3:$AZZ$214,MATCH($D47,[1]LETs!$D$3:$D$214,0),MATCH($S$2,[1]LETs!$F$2:$AZZ$2,0)),0) -> 11918
D48: Consumo | F48: =[1]LETs!F48 -> 286915.23 | G48: =[1]LETs!G48 -> 195221.7 | H48: =[1]LETs!H48 -> 91693.53 | I48: =[1]LETs!I48 -> 0 | J48: =[1]LETs!J48 -> 0 | K48: =[1]LETs!K48 -> 0 | L48: =[1]LETs!L48 -> 0 | M48: =[1]LETs!M48 -> 0 | N48: =[1]LETs!N48 -> 0 | O48: =[1]LETs!O48 -> 0 | P48: =[1]LETs!P48 -> 0 | Q48: =[1]LETs!Q48 -> 0 | R48: =[1]LETs!R48 -> 0 | S48: =IFERROR(INDEX([1]LETs!$F$3:$AZZ$214,MATCH($D48,[1]LETs!$D$3:$D$214,0),MATCH($S$2,[1]LETs!$F$2:$AZZ$2,0)),0) -> 20213.1
D49: Meta | F49: =[1]LETs!F49 -> 0.61 | G49: =[1]LETs!G49 -> 0.61 | H49: =[1]LETs!H49 -> 0.61 | I49: =[1]LETs!I49 -> 0 | J49: =[1]LETs!J49 -> 0 | K49: =[1]LETs!K49 -> 0 | L49: =[1]LETs!L49 -> 0 | M49: =[1]LETs!M49 -> 0 | N49: =[1]LETs!N49 -> 0 | O49: =[1]LETs!O49 -> 0 | P49: =[1]LETs!P49 -> 0 | Q49: =[1]LETs!Q49 -> 0 | R49: =[1]LETs!R49 -> 0 | S49: =IF(MONTH(S$2)=1,$G49,IF(MONTH(S$2)=2,$H49,IF(MONTH(S$2)=3,$I49,IF(MONTH(S$2)=4,$J49,IF(MONTH(S$2)=5,$K49,IF(MONTH(S$2)=6,$L49,IF(MONTH(S$2)=7,$M49,IF(MONTH(S$2)=8,$N49,IF(MONTH(S$2)=9,$O49,IF(MONTH(S$2)=10,$P49,IF(MONTH(S$2)=11,$Q49,$R49))))))))))) -> 0.61
C50: TMP Horas Produtivas | D50: TMP Horas Produtivas | E50: =[1]LETs!E50 -> 1 | F50: =[1]LETs!F50 -> 02:21:27.879 | G50: =[1]LETs!G50 -> 02:21:09.357 | H50: =[1]LETs!H50 -> 02:21:46.400 | I50: =[1]LETs!I50 -> 00:00:00 | J50: =[1]LETs!J50 -> 00:00:00 | K50: =[1]LETs!K50 -> 00:00:00 | L50: =[1]LETs!L50 -> 00:00:00 | M50: =[1]LETs!M50 -> 00:00:00 | N50: =[1]LETs!N50 -> 00:00:00 | O50: =[1]LETs!O50 -> 00:00:00 | P50: =[1]LETs!P50 -> 00:00:00 | Q50: =[1]LETs!Q50 -> 00:00:00 | R50: =[1]LETs!R50 -> 00:00:00 | S50: =IFERROR(INDEX([1]LETs!$F$3:$AZZ$214,MATCH($D50,[1]LETs!$D$3:$D$214,0),MATCH($S$2,[1]LETs!$F$2:$AZZ$2,0)),0) -> 01:23:22
D51: Meta | F51: =[1]LETs!F51 -> 03:00:00 | G51: =[1]LETs!G51 -> 03:00:00 | H51: =[1]LETs!H51 -> 03:00:00 | I51: =[1]LETs!I51 -> 00:00:00 | J51: =[1]LETs!J51 -> 00:00:00 | K51: =[1]LETs!K51 -> 00:00:00 | L51: =[1]LETs!L51 -> 00:00:00 | M51: =[1]LETs!M51 -> 00:00:00 | N51: =[1]LETs!N51 -> 00:00:00 | O51: =[1]LETs!O51 -> 00:00:00 | P51: =[1]LETs!P51 -> 00:00:00 | Q51: =[1]LETs!Q51 -> 00:00:00 | R51: =[1]LETs!R51 -> 00:00:00 | S51: =IF(MONTH(S$2)=1,$G51,IF(MONTH(S$2)=2,$H51,IF(MONTH(S$2)=3,$I51,IF(MONTH(S$2)=4,$J51,IF(MONTH(S$2)=5,$K51,IF(MONTH(S$2)=6,$L51,IF(MONTH(S$2)=7,$M51,IF(MONTH(S$2)=8,$N51,IF(MONTH(S$2)=9,$O51,IF(MONTH(S$2)=10,$P51,IF(MONTH(S$2)=11,$Q51,$R51))))))))))) -> 03:00:00
A52: COPA DOS CAMPÕES | B52: 4 | C52: Absenteísmo | D52: Absenteísmo | E52: =[1]LETs!E52 -> 2 | F52: =[1]LETs!F52 -> 0.0214 | G52: =[1]LETs!G52 -> 0.0194 | H52: =[1]LETs!H52 -> 0.027 | I52: =[1]LETs!I52 -> 0 | J52: =[1]LETs!J52 -> 0 | K52: =[1]LETs!K52 -> 0 | L52: =[1]LETs!L52 -> 0 | M52: =[1]LETs!M52 -> 0 | N52: =[1]LETs!N52 -> 0 | O52: =[1]LETs!O52 -> 0 | P52: =[1]LETs!P52 -> 0 | Q52: =[1]LETs!Q52 -> 0 | R52: =[1]LETs!R52 -> 0 | S52: =IFERROR(INDEX([1]LETs!$F$3:$AZZ$214,MATCH($D52,[1]LETs!$D$3:$D$214,0),MATCH($S$2,[1]LETs!$F$2:$AZZ$2,0)),0) -> 0.0139
B53: Inbound | D53: Quadro Líquido | F53: =[1]LETs!F53 -> 700 | G53: =[1]LETs!G53 -> 515 | H53: =[1]LETs!H53 -> 185 | I53: =[1]LETs!I53 -> 0 | J53: =[1]LETs!J53 -> 0 | K53: =[1]LETs!K53 -> 0 | L53: =[1]LETs!L53 -> 0 | M53: =[1]LETs!M53 -> 0 | N53: =[1]LETs!N53 -> 0 | O53: =[1]LETs!O53 -> 0 | P53: =[1]LETs!P53 -> 0 | Q53: =[1]LETs!Q53 -> 0 | R53: =[1]LETs!R53 -> 0 | S53: =IFERROR(INDEX([1]LETs!$F$3:$AZZ$214,MATCH($D53,[1]LETs!$D$3:$D$214,0),MATCH($S$2,[1]LETs!$F$2:$AZZ$2,0)),0) -> 360
D54: Faltas | F54: =[1]LETs!F54 -> 15 | G54: =[1]LETs!G54 -> 10 | H54: =[1]LETs!H54 -> 5 | I54: =[1]LETs!I54 -> 0 | J54: =[1]LETs!J54 -> 0 | K54: =[1]LETs!K54 -> 0 | L54: =[1]LETs!L54 -> 0 | M54: =[1]LETs!M54 -> 0 | N54: =[1]LETs!N54 -> 0 | O54: =[1]LETs!O54 -> 0 | P54: =[1]LETs!P54 -> 0 | Q54: =[1]LETs!Q54 -> 0 | R54: =[1]LETs!R54 -> 0 | S54: =IFERROR(INDEX([1]LETs!$F$3:$AZZ$214,MATCH($D54,[1]LETs!$D$3:$D$214,0),MATCH($S$2,[1]LETs!$F$2:$AZZ$2,0)),0) -> 5
D55: Quadro Total | F55: =[1]LETs!F55 -> 778 | G55: =[1]LETs!G55 -> 577 | H55: =[1]LETs!H55 -> 201 | I55: =[1]LETs!I55 -> 0 | J55: =[1]LETs!J55 -> 0 | K55: =[1]LETs!K55 -> 0 | L55: =[1]LETs!L55 -> 0 | M55: =[1]LETs!M55 -> 0 | N55: =[1]LETs!N55 -> 0 | O55: =[1]LETs!O55 -> 0 | P55: =[1]LETs!P55 -> 0 | Q55: =[1]LETs!Q55 -> 0 | R55: =[1]LETs!R55 -> 0 | S55: =IFERROR(INDEX([1]LETs!$F$3:$AZZ$214,MATCH($D55,[1]LETs!$D$3:$D$214,0),MATCH($S$2,[1]LETs!$F$2:$AZZ$2,0)),0) -> 438
D56: Ger. e Coord. | F56: =[1]LETs!F56 -> 0 | G56: =[1]LETs!G56 -> 0 | H56: =[1]LETs!H56 -> 0 | I56: =[1]LETs!I56 -> 0 | J56: =[1]LETs!J56 -> 0 | K56: =[1]LETs!K56 -> 0 | L56: =[1]LETs!L56 -> 0 | M56: =[1]LETs!M56 -> 0 | N56: =[1]LETs!N56 -> 0 | O56: =[1]LETs!O56 -> 0 | P56: =[1]LETs!P56 -> 0 | Q56: =[1]LETs!Q56 -> 0 | R56: =[1]LETs!R56 -> 0 | S56: =IFERROR(INDEX([1]LETs!$F$3:$AZZ$214,MATCH($D56,[1]LETs!$D$3:$D$214,0),MATCH($S$2,[1]LETs!$F$2:$AZZ$2,0)),0) -> 7
D57: Sup. e Liderança | F57: =[1]LETs!F57 -> 131 | G57: =[1]LETs!G57 -> 101 | H57: =[1]LETs!H57 -> 30 | I57: =[1]LETs!I57 -> 0 | J57: =[1]LETs!J57 -> 0 | K57: =[1]LETs!K57 -> 0 | L57: =[1]LETs!L57 -> 0 | M57: =[1]LETs!M57 -> 0 | N57: =[1]LETs!N57 -> 0 | O57: =[1]LETs!O57 -> 0 | P57: =[1]LETs!P57 -> 0 | Q57: =[1]LETs!Q57 -> 0 | R57: =[1]LETs!R57 -> 0 | S57: =IFERROR(INDEX([1]LETs!$F$3:$AZZ$214,MATCH($D57,[1]LETs!$D$3:$D$214,0),MATCH($S$2,[1]LETs!$F$2:$AZZ$2,0)),0) -> 42
D58: Inativos | F58: =[1]LETs!F58 -> 0 | G58: =[1]LETs!G58 -> 0 | H58: =[1]LETs!H58 -> 0 | I58: =[1]LETs!I58 -> 0 | J58: =[1]LETs!J58 -> 0 | K58: =[1]LETs!K58 -> 0 | L58: =[1]LETs!L58 -> 0 | M58: =[1]LETs!M58 -> 0 | N58: =[1]LETs!N58 -> 0 | O58: =[1]LETs!O58 -> 0 | P58: =[1]LETs!P58 -> 0 | Q58: =[1]LETs!Q58 -> 0 | R58: =[1]LETs!R58 -> 0 | S58: =IFERROR(INDEX([1]LETs!$F$3:$AZZ$214,MATCH($D58,[1]LETs!$D$3:$D$214,0),MATCH($S$2,[1]LETs!$F$2:$AZZ$2,0)),0) -> 21
D59: Ausências | F59: =[1]LETs!F59 -> 78 | G59: =[1]LETs!G59 -> 62 | H59: =[1]LETs!H59 -> 16 | I59: =[1]LETs!I59 -> 0 | J59: =[1]LETs!J59 -> 0 | K59: =[1]LETs!K59 -> 0 | L59: =[1]LETs!L59 -> 0 | M59: =[1]LETs!M59 -> 0 | N59: =[1]LETs!N59 -> 0 | O59: =[1]LETs!O59 -> 0 | P59: =[1]LETs!P59 -> 0 | Q59: =[1]LETs!Q59 -> 0 | R59: =[1]LETs!R59 -> 0 | S59: =IFERROR(INDEX([1]LETs!$F$3:$AZZ$214,MATCH($D59,[1]LETs!$D$3:$D$214,0),MATCH($S$2,[1]LETs!$F$2:$AZZ$2,0)),0) -> 50
D60: Sumidos | E60: =[1]LETs!E60 -> 2 | F60: =[1]LETs!F60 -> 0 | G60: =[1]LETs!G60 -> 0 | H60: =[1]LETs!H60 -> 0 | I60: =[1]LETs!I60 -> 0 | J60: =[1]LETs!J60 -> 0 | K60: =[1]LETs!K60 -> 0 | L60: =[1]LETs!L60 -> 0 | M60: =[1]LETs!M60 -> 0 | N60: =[1]LETs!N60 -> 0 | O60: =[1]LETs!O60 -> 0 | P60: =[1]LETs!P60 -> 0 | Q60: =[1]LETs!Q60 -> 0 | R60: =[1]LETs!R60 -> 0 | S60: =IFERROR(INDEX([1]LETs!$F$3:$AZZ$214,MATCH($D60,[1]LETs!$D$3:$D$214,0),MATCH($S$2,[1]LETs!$F$2:$AZZ$2,0)),0) -> 0
D61: Meta | E61: =[1]LETs!E61 -> 0 | F61: =[1]LETs!F61 -> 0.024 | G61: =[1]LETs!G61 -> 0.024 | H61: =[1]LETs!H61 -> 0.024 | I61: =[1]LETs!I61 -> 0 | J61: =[1]LETs!J61 -> 0 | K61: =[1]LETs!K61 -> 0 | L61: =[1]LETs!L61 -> 0 | M61: =[1]LETs!M61 -> 0 | N61: =[1]LETs!N61 -> 0 | O61: =[1]LETs!O61 -> 0 | P61: =[1]LETs!P61 -> 0 | Q61: =[1]LETs!Q61 -> 0 | R61: =[1]LETs!R61 -> 0 | S61: =IF(MONTH(S$2)=1,$G61,IF(MONTH(S$2)=2,$H61,IF(MONTH(S$2)=3,$I61,IF(MONTH(S$2)=4,$J61,IF(MONTH(S$2)=5,$K61,IF(MONTH(S$2)=6,$L61,IF(MONTH(S$2)=7,$M61,IF(MONTH(S$2)=8,$N61,IF(MONTH(S$2)=9,$O61,IF(MONTH(S$2)=10,$P61,IF(MONTH(S$2)=11,$Q61,$R61))))))))))) -> 0.024
C62: Acidentes (Típicos + Trajeto) | D62: Acidentes | E62: =[1]LETs!E62 -> -0,50 P | F62: =[1]LETs!F62 -> 0 | G62: =[1]LETs!G62 -> 0 | H62: =[1]LETs!H62 -> 0 | I62: =[1]LETs!I62 -> 0 | J62: =[1]LETs!J62 -> 0 | K62: =[1]LETs!K62 -> 0 | L62: =[1]LETs!L62 -> 0 | M62: =[1]LETs!M62 -> 0 | N62: =[1]LETs!N62 -> 0 | O62: =[1]LETs!O62 -> 0 | P62: =[1]LETs!P62 -> 0 | Q62: =[1]LETs!Q62 -> 0 | R62: =[1]LETs!R62 -> 0 | S62: =IFERROR(INDEX([1]LETs!$F$3:$AZZ$214,MATCH($D62,[1]LETs!$D$3:$D$214,0),MATCH($S$2,[1]LETs!$F$2:$AZZ$2,0)),0) -> 0
D63: Meta | F63: =[1]LETs!F63 -> 0 | G63: =[1]LETs!G63 -> 0 | H63: =[1]LETs!H63 -> 0 | I63: =[1]LETs!I63 -> 0 | J63: =[1]LETs!J63 -> 0 | K63: =[1]LETs!K63 -> 0 | L63: =[1]LETs!L63 -> 0 | M63: =[1]LETs!M63 -> 0 | N63: =[1]LETs!N63 -> 0 | O63: =[1]LETs!O63 -> 0 | P63: =[1]LETs!P63 -> 0 | Q63: =[1]LETs!Q63 -> 0 | R63: =[1]LETs!R63 -> 0 | S63: =IF(MONTH(S$2)=1,$G63,IF(MONTH(S$2)=2,$H63,IF(MONTH(S$2)=3,$I63,IF(MONTH(S$2)=4,$J63,IF(MONTH(S$2)=5,$K63,IF(MONTH(S$2)=6,$L63,IF(MONTH(S$2)=7,$M63,IF(MONTH(S$2)=8,$N63,IF(MONTH(S$2)=9,$O63,IF(MONTH(S$2)=10,$P63,IF(MONTH(S$2)=11,$Q63,$R63))))))))))) -> 0
C64: Anomalias | D64: Anomalias | E64: =[1]LETs!E64 -> -0,50 P | F64: =[1]LETs!F64 -> 0 | G64: =[1]LETs!G64 -> 0 | H64: =[1]LETs!H64 -> 0 | I64: =[1]LETs!I64 -> 0 | J64: =[1]LETs!J64 -> 0 | K64: =[1]LETs!K64 -> 0 | L64: =[1]LETs!L64 -> 0 | M64: =[1]LETs!M64 -> 0 | N64: =[1]LETs!N64 -> 0 | O64: =[1]LETs!O64 -> 0 | P64: =[1]LETs!P64 -> 0 | Q64: =[1]LETs!Q64 -> 0 | R64: =[1]LETs!R64 -> 0 | S64: =IFERROR(INDEX([1]LETs!$F$3:$AZZ$214,MATCH($D64,[1]LETs!$D$3:$D$214,0),MATCH($S$2,[1]LETs!$F$2:$AZZ$2,0)),0) -> 0
D65: Meta | F65: =[1]LETs!F65 -> 0 | G65: =[1]LETs!G65 -> 0 | H65: =[1]LETs!H65 -> 0 | I65: =[1]LETs!I65 -> 0 | J65: =[1]LETs!J65 -> 0 | K65: =[1]LETs!K65 -> 0 | L65: =[1]LETs!L65 -> 0 | M65: =[1]LETs!M65 -> 0 | N65: =[1]LETs!N65 -> 0 | O65: =[1]LETs!O65 -> 0 | P65: =[1]LETs!P65 -> 0 | Q65: =[1]LETs!Q65 -> 0 | R65: =[1]LETs!R65 -> 0 | S65: =IF(MONTH(S$2)=1,$G65,IF(MONTH(S$2)=2,$H65,IF(MONTH(S$2)=3,$I65,IF(MONTH(S$2)=4,$J65,IF(MONTH(S$2)=5,$K65,IF(MONTH(S$2)=6,$L65,IF(MONTH(S$2)=7,$M65,IF(MONTH(S$2)=8,$N65,IF(MONTH(S$2)=9,$O65,IF(MONTH(S$2)=10,$P65,IF(MONTH(S$2)=11,$Q65,$R65))))))))))) -> 0
C66: Produtividade Área | D66: Produtividade Inbound | E66: =[1]LETs!E66 -> 2 | F66: =[1]LETs!F66 -> 109.84 | G66: =[1]LETs!G66 -> 108.04 | H66: =[1]LETs!H66 -> 114.86 | I66: =[1]LETs!I66 -> 0 | J66: =[1]LETs!J66 -> 0 | K66: =[1]LETs!K66 -> 0 | L66: =[1]LETs!L66 -> 0 | M66: =[1]LETs!M66 -> 0 | N66: =[1]LETs!N66 -> 0 | O66: =[1]LETs!O66 -> 0 | P66: =[1]LETs!P66 -> 0 | Q66: =[1]LETs!Q66 -> 0 | R66: =[1]LETs!R66 -> 0 | S66: =IFERROR(INDEX([1]LETs!$F$3:$AZZ$214,MATCH($D66,[1]LETs!$D$3:$D$214,0),MATCH($S$2,[1]LETs!$F$2:$AZZ$2,0)),0) -> 87.74
D67: Produção (Área) | F67: =[1]LETs!F67 -> 461942 | G67: =[1]LETs!G67 -> 334280 | H67: =[1]LETs!H67 -> 127662 | I67: =[1]LETs!I67 -> 0 | J67: =[1]LETs!J67 -> 0 | K67: =[1]LETs!K67 -> 0 | L67: =[1]LETs!L67 -> 0 | M67: =[1]LETs!M67 -> 0 | N67: =[1]LETs!N67 -> 0 | O67: =[1]LETs!O67 -> 0 | P67: =[1]LETs!P67 -> 0 | Q67: =[1]LETs!Q67 -> 0 | R67: =[1]LETs!R67 -> 0 | S67: =IFERROR(INDEX([1]LETs!$F$3:$AZZ$214,MATCH($D67,[1]LETs!$D$3:$D$214,0),MATCH($S$2,[1]LETs!$F$2:$AZZ$2,0)),0) -> 10836
D68: Quadro Produtivo (Área) | F68: =[1]LETs!F68 -> 647 | G68: =[1]LETs!G68 -> 476 | H68: =[1]LETs!H68 -> 171 | I68: =[1]LETs!I68 -> 0 | J68: =[1]LETs!J68 -> 0 | K68: =[1]LETs!K68 -> 0 | L68: =[1]LETs!L68 -> 0 | M68: =[1]LETs!M68 -> 0 | N68: =[1]LETs!N68 -> 0 | O68: =[1]LETs!O68 -> 0 | P68: =[1]LETs!P68 -> 0 | Q68: =[1]LETs!Q68 -> 0 | R68: =[1]LETs!R68 -> 0 | S68: =IFERROR(INDEX([1]LETs!$F$3:$AZZ$214,MATCH($D68,[1]LETs!$D$3:$D$214,0),MATCH($S$2,[1]LETs!$F$2:$AZZ$2,0)),0) -> 19
D69: Horas (Área) | F69: =[1]LETs!F69 -> 6.5 | G69: =[1]LETs!G69 -> 6.5 | H69: =[1]LETs!H69 -> 6.5 | I69: =[1]LETs!I69 -> 0 | J69: =[1]LETs!J69 -> 0 | K69: =[1]LETs!K69 -> 0 | L69: =[1]LETs!L69 -> 0 | M69: =[1]LETs!M69 -> 0 | N69: =[1]LETs!N69 -> 0 | O69: =[1]LETs!O69 -> 0 | P69: =[1]LETs!P69 -> 0 | Q69: =[1]LETs!Q69 -> 0 | R69: =[1]LETs!R69 -> 0 | S69: =IFERROR(INDEX([1]LETs!$F$3:$AZZ$214,MATCH($D69,[1]LETs!$D$3:$D$214,0),MATCH($S$2,[1]LETs!$F$2:$AZZ$2,0)),0) -> 6.5
D70: Meta | F70: =[1]LETs!F70 -> 222.33783 | G70: =[1]LETs!G70 -> 234.1346154 | H70: =[1]LETs!H70 -> 189.5 | I70: =[1]LETs!I70 -> 0 | J70: =[1]LETs!J70 -> 0 | K70: =[1]LETs!K70 -> 0 | L70: =[1]LETs!L70 -> 0 | M70: =[1]LETs!M70 -> 0 | N70: =[1]LETs!N70 -> 0 | O70: =[1]LETs!O70 -> 0 | P70: =[1]LETs!P70 -> 0 | Q70: =[1]LETs!Q70 -> 0 | R70: =[1]LETs!R70 -> 0 | S70: =IF(MONTH(S$2)=1,$G70,IF(MONTH(S$2)=2,$H70,IF(MONTH(S$2)=3,$I70,IF(MONTH(S$2)=4,$J70,IF(MONTH(S$2)=5,$K70,IF(MONTH(S$2)=6,$L70,IF(MONTH(S$2)=7,$M70,IF(MONTH(S$2)=8,$N70,IF(MONTH(S$2)=9,$O70,IF(MONTH(S$2)=10,$P70,IF(MONTH(S$2)=11,$Q70,$R70))))))))))) -> 189.5
C71: Erro em Doca - Recebimento | D71: Erro em Doca - Recebimento | E71: =[1]LETs!E71 -> 2 | F71: =[1]LETs!F71 -> 0 | G71: =[1]LETs!G71 -> 0 | H71: =[1]LETs!H71 -> 0 | I71: =[1]LETs!I71 -> 0 | J71: =[1]LETs!J71 -> 0 | K71: =[1]LETs!K71 -> 0 | L71: =[1]LETs!L71 -> 0 | M71: =[1]LETs!M71 -> 0 | N71: =[1]LETs!N71 -> 0 | O71: =[1]LETs!O71 -> 0 | P71: =[1]LETs!P71 -> 0 | Q71: =[1]LETs!Q71 -> 0 | R71: =[1]LETs!R71 -> 0 | S71: =IFERROR(INDEX([1]LETs!$F$3:$AZZ$214,MATCH($D71,[1]LETs!$D$3:$D$214,0),MATCH($S$2,[1]LETs!$F$2:$AZZ$2,0)),0) -> 0
D72: Auditado (REC) | F72: =[1]LETs!F72 -> 57966 | G72: =[1]LETs!G72 -> 41629 | H72: =[1]LETs!H72 -> 16337 | I72: =[1]LETs!I72 -> 0 | J72: =[1]LETs!J72 -> 0 | K72: =[1]LETs!K72 -> 0 | L72: =[1]LETs!L72 -> 0 | M72: =[1]LETs!M72 -> 0 | N72: =[1]LETs!N72 -> 0 | O72: =[1]LETs!O72 -> 0 | P72: =[1]LETs!P72 -> 0 | Q72: =[1]LETs!Q72 -> 0 | R72: =[1]LETs!R72 -> 0 | S72: =IFERROR(INDEX([1]LETs!$F$3:$AZZ$214,MATCH($D72,[1]LETs!$D$3:$D$214,0),MATCH($S$2,[1]LETs!$F$2:$AZZ$2,0)),0) -> 1472
D73: Erros (REC) | F73: =[1]LETs!F73 -> 0 | G73: =[1]LETs!G73 -> 0 | H73: =[1]LETs!H73 -> 0 | I73: =[1]LETs!I73 -> 0 | J73: =[1]LETs!J73 -> 0 | K73: =[1]LETs!K73 -> 0 | L73: =[1]LETs!L73 -> 0 | M73: =[1]LETs!M73 -> 0 | N73: =[1]LETs!N73 -> 0 | O73: =[1]LETs!O73 -> 0 | P73: =[1]LETs!P73 -> 0 | Q73: =[1]LETs!Q73 -> 0 | R73: =[1]LETs!R73 -> 0 | S73: =IFERROR(INDEX([1]LETs!$F$3:$AZZ$214,MATCH($D73,[1]LETs!$D$3:$D$214,0),MATCH($S$2,[1]LETs!$F$2:$AZZ$2,0)),0) -> 0
D74: Meta | F74: =[1]LETs!F74 -> 2e-06 | G74: =[1]LETs!G74 -> 2e-06 | H74: =[1]LETs!H74 -> 2e-06 | I74: =[1]LETs!I74 -> 0 | J74: =[1]LETs!J74 -> 0 | K74: =[1]LETs!K74 -> 0 | L74: =[1]LETs!L74 -> 0 | M74: =[1]LETs!M74 -> 0 | N74: =[1]LETs!N74 -> 0 | O74: =[1]LETs!O74 -> 0 | P74: =[1]LETs!P74 -> 0 | Q74: =[1]LETs!Q74 -> 0 | R74: =[1]LETs!R74 -> 0 | S74: =IF(MONTH(S$2)=1,$G74,IF(MONTH(S$2)=2,$H74,IF(MONTH(S$2)=3,$I74,IF(MONTH(S$2)=4,$J74,IF(MONTH(S$2)=5,$K74,IF(MONTH(S$2)=6,$L74,IF(MONTH(S$2)=7,$M74,IF(MONTH(S$2)=8,$N74,IF(MONTH(S$2)=9,$O74,IF(MONTH(S$2)=10,$P74,IF(MONTH(S$2)=11,$Q74,$R74))))))))))) -> 2e-06
C75: Recebimento no Prazo | D75: Recebimento no Prazo | E75: =[1]LETs!E75 -> 2 | F75: =[1]LETs!F75 -> 0.9604 | G75: =[1]LETs!G75 -> 0.9801 | H75: =[1]LETs!H75 -> 0.9113 | I75: =[1]LETs!I75 -> 0 | J75: =[1]LETs!J75 -> 0 | K75: =[1]LETs!K75 -> 0 | L75: =[1]LETs!L75 -> 0 | M75: =[1]LETs!M75 -> 0 | N75: =[1]LETs!N75 -> 0 | O75: =[1]LETs!O75 -> 0 | P75: =[1]LETs!P75 -> 0 | Q75: =[1]LETs!Q75 -> 0 | R75: =[1]LETs!R75 -> 0 | S75: =IFERROR(INDEX([1]LETs!$F$3:$AZZ$214,MATCH($D75,[1]LETs!$D$3:$D$214,0),MATCH($S$2,[1]LETs!$F$2:$AZZ$2,0)),0) -> 0.8085
D76: Prazo (REC) | F76: =[1]LETs!F76 -> 449923 | G76: =[1]LETs!G76 -> 327934 | H76: =[1]LETs!H76 -> 121989 | I76: =[1]LETs!I76 -> 0 | J76: =[1]LETs!J76 -> 0 | K76: =[1]LETs!K76 -> 0 | L76: =[1]LETs!L76 -> 0 | M76: =[1]LETs!M76 -> 0 | N76: =[1]LETs!N76 -> 0 | O76: =[1]LETs!O76 -> 0 | P76: =[1]LETs!P76 -> 0 | Q76: =[1]LETs!Q76 -> 0 | R76: =[1]LETs!R76 -> 0 | S76: =IFERROR(INDEX([1]LETs!$F$3:$AZZ$214,MATCH($D76,[1]LETs!$D$3:$D$214,0),MATCH($S$2,[1]LETs!$F$2:$AZZ$2,0)),0) -> 9394
D77: Atraso (REC) | F77: =[1]LETs!F77 -> 18537 | G77: =[1]LETs!G77 -> 6661 | H77: =[1]LETs!H77 -> 11876 | I77: =[1]LETs!I77 -> 0 | J77: =[1]LETs!J77 -> 0 | K77: =[1]LETs!K77 -> 0 | L77: =[1]LETs!L77 -> 0 | M77: =[1]LETs!M77 -> 0 | N77: =[1]LETs!N77 -> 0 | O77: =[1]LETs!O77 -> 0 | P77: =[1]LETs!P77 -> 0 | Q77: =[1]LETs!Q77 -> 0 | R77: =[1]LETs!R77 -> 0 | S77: =IFERROR(INDEX([1]LETs!$F$3:$AZZ$214,MATCH($D77,[1]LETs!$D$3:$D$214,0),MATCH($S$2,[1]LETs!$F$2:$AZZ$2,0)),0) -> 2225
D78: Meta | F78: =[1]LETs!F78 -> 0.9999 | G78: =[1]LETs!G78 -> 0.9999 | H78: =[1]LETs!H78 -> 0.9999 | I78: =[1]LETs!I78 -> 0 | J78: =[1]LETs!J78 -> 0 | K78: =[1]LETs!K78 -> 0 | L78: =[1]LETs!L78 -> 0 | M78: =[1]LETs!M78 -> 0 | N78: =[1]LETs!N78 -> 0 | O78: =[1]LETs!O78 -> 0 | P78: =[1]LETs!P78 -> 0 | Q78: =[1]LETs!Q78 -> 0 | R78: =[1]LETs!R78 -> 0 | S78: =IF(MONTH(S$2)=1,$G78,IF(MONTH(S$2)=2,$H78,IF(MONTH(S$2)=3,$I78,IF(MONTH(S$2)=4,$J78,IF(MONTH(S$2)=5,$K78,IF(MONTH(S$2)=6,$L78,IF(MONTH(S$2)=7,$M78,IF(MONTH(S$2)=8,$N78,IF(MONTH(S$2)=9,$O78,IF(MONTH(S$2)=10,$P78,IF(MONTH(S$2)=11,$Q78,$R78))))))))))) -> 0.9999
B79: 9.09 | C79: Absenteísmo | D79: Absenteísmo | E79: =[1]LETs!E79 -> 2 | F79: =[1]LETs!F79 -> 0.0199 | G79: =[1]LETs!G79 -> 0.0213 | H79: =[1]LETs!H79 -> 0.0157 | I79: =[1]LETs!I79 -> 0 | J79: =[1]LETs!J79 -> 0 | K79: =[1]LETs!K79 -> 0 | L79: =[1]LETs!L79 -> 0 | M79: =[1]LETs!M79 -> 0 | N79: =[1]LETs!N79 -> 0 | O79: =[1]LETs!O79 -> 0 | P79: =[1]LETs!P79 -> 0 | Q79: =[1]LETs!Q79 -> 0 | R79: =[1]LETs!R79 -> 0 | S79: =IFERROR(INDEX([1]LETs!$F$3:$AZZ$214,MATCH($D79,[1]LETs!$D$3:$D$214,0),MATCH($S$2,[1]LETs!$F$2:$AZZ$2,0)),0) -> 0.0139
B80: Estoque | D80: Quadro Líquido | F80: =[1]LETs!F80 -> 4174 | G80: =[1]LETs!G80 -> 3093 | H80: =[1]LETs!H80 -> 1081 | I80: =[1]LETs!I80 -> 0 | J80: =[1]LETs!J80 -> 0 | K80: =[1]LETs!K80 -> 0 | L80: =[1]LETs!L80 -> 0 | M80: =[1]LETs!M80 -> 0 | N80: =[1]LETs!N80 -> 0 | O80: =[1]LETs!O80 -> 0 | P80: =[1]LETs!P80 -> 0 | Q80: =[1]LETs!Q80 -> 0 | R80: =[1]LETs!R80 -> 0 | S80: =IFERROR(INDEX([1]LETs!$F$3:$AZZ$214,MATCH($D80,[1]LETs!$D$3:$D$214,0),MATCH($S$2,[1]LETs!$F$2:$AZZ$2,0)),0) -> 360
D81: Faltas | F81: =[1]LETs!F81 -> 83 | G81: =[1]LETs!G81 -> 66 | H81: =[1]LETs!H81 -> 17 | I81: =[1]LETs!I81 -> 0 | J81: =[1]LETs!J81 -> 0 | K81: =[1]LETs!K81 -> 0 | L81: =[1]LETs!L81 -> 0 | M81: =[1]LETs!M81 -> 0 | N81: =[1]LETs!N81 -> 0 | O81: =[1]LETs!O81 -> 0 | P81: =[1]LETs!P81 -> 0 | Q81: =[1]LETs!Q81 -> 0 | R81: =[1]LETs!R81 -> 0 | S81: =IFERROR(INDEX([1]LETs!$F$3:$AZZ$214,MATCH($D81,[1]LETs!$D$3:$D$214,0),MATCH($S$2,[1]LETs!$F$2:$AZZ$2,0)),0) -> 5
D82: Quadro Total | F82: =[1]LETs!F82 -> 5417 | G82: =[1]LETs!G82 -> 4060 | H82: =[1]LETs!H82 -> 1357 | I82: =[1]LETs!I82 -> 0 | J82: =[1]LETs!J82 -> 0 | K82: =[1]LETs!K82 -> 0 | L82: =[1]LETs!L82 -> 0 | M82: =[1]LETs!M82 -> 0 | N82: =[1]LETs!N82 -> 0 | O82: =[1]LETs!O82 -> 0 | P82: =[1]LETs!P82 -> 0 | Q82: =[1]LETs!Q82 -> 0 | R82: =[1]LETs!R82 -> 0 | S82: =IFERROR(INDEX([1]LETs!$F$3:$AZZ$214,MATCH($D82,[1]LETs!$D$3:$D$214,0),MATCH($S$2,[1]LETs!$F$2:$AZZ$2,0)),0) -> 438
D83: Ger. e Coord. | F83: =[1]LETs!F83 -> 99 | G83: =[1]LETs!G83 -> 71 | H83: =[1]LETs!H83 -> 28 | I83: =[1]LETs!I83 -> 0 | J83: =[1]LETs!J83 -> 0 | K83: =[1]LETs!K83 -> 0 | L83: =[1]LETs!L83 -> 0 | M83: =[1]LETs!M83 -> 0 | N83: =[1]LETs!N83 -> 0 | O83: =[1]LETs!O83 -> 0 | P83: =[1]LETs!P83 -> 0 | Q83: =[1]LETs!Q83 -> 0 | R83: =[1]LETs!R83 -> 0 | S83: =IFERROR(INDEX([1]LETs!$F$3:$AZZ$214,MATCH($D83,[1]LETs!$D$3:$D$214,0),MATCH($S$2,[1]LETs!$F$2:$AZZ$2,0)),0) -> 7
D84: Sup. e Liderança | F84: =[1]LETs!F84 -> 449 | G84: =[1]LETs!G84 -> 330 | H84: =[1]LETs!H84 -> 119 | I84: =[1]LETs!I84 -> 0 | J84: =[1]LETs!J84 -> 0 | K84: =[1]LETs!K84 -> 0 | L84: =[1]LETs!L84 -> 0 | M84: =[1]LETs!M84 -> 0 | N84: =[1]LETs!N84 -> 0 | O84: =[1]LETs!O84 -> 0 | P84: =[1]LETs!P84 -> 0 | Q84: =[1]LETs!Q84 -> 0 | R84: =[1]LETs!R84 -> 0 | S84: =IFERROR(INDEX([1]LETs!$F$3:$AZZ$214,MATCH($D84,[1]LETs!$D$3:$D$214,0),MATCH($S$2,[1]LETs!$F$2:$AZZ$2,0)),0) -> 42
D85: Inativos | E85: =[1]LETs!E85 -> 0.5 | F85: =[1]LETs!F85 -> 202 | G85: =[1]LETs!G85 -> 144 | H85: =[1]LETs!H85 -> 58 | I85: =[1]LETs!I85 -> 0 | J85: =[1]LETs!J85 -> 0 | K85: =[1]LETs!K85 -> 0 | L85: =[1]LETs!L85 -> 0 | M85: =[1]LETs!M85 -> 0 | N85: =[1]LETs!N85 -> 0 | O85: =[1]LETs!O85 -> 0 | P85: =[1]LETs!P85 -> 0 | Q85: =[1]LETs!Q85 -> 0 | R85: =[1]LETs!R85 -> 0 | S85: =IFERROR(INDEX([1]LETs!$F$3:$AZZ$214,MATCH($D85,[1]LETs!$D$3:$D$214,0),MATCH($S$2,[1]LETs!$F$2:$AZZ$2,0)),0) -> 21
D86: Ausências | E86: =[1]LETs!E86 -> 0.75 | F86: =[1]LETs!F86 -> 859 | G86: =[1]LETs!G86 -> 669 | H86: =[1]LETs!H86 -> 190 | I86: =[1]LETs!I86 -> 0 | J86: =[1]LETs!J86 -> 0 | K86: =[1]LETs!K86 -> 0 | L86: =[1]LETs!L86 -> 0 | M86: =[1]LETs!M86 -> 0 | N86: =[1]LETs!N86 -> 0 | O86: =[1]LETs!O86 -> 0 | P86: =[1]LETs!P86 -> 0 | Q86: =[1]LETs!Q86 -> 0 | R86: =[1]LETs!R86 -> 0 | S86: =IFERROR(INDEX([1]LETs!$F$3:$AZZ$214,MATCH($D86,[1]LETs!$D$3:$D$214,0),MATCH($S$2,[1]LETs!$F$2:$AZZ$2,0)),0) -> 50
D87: Sumidos | E87: =[1]LETs!E87 -> 1.75 | F87: =[1]LETs!F87 -> 83 | G87: =[1]LETs!G87 -> 83 | H87: =[1]LETs!H87 -> 0 | I87: =[1]LETs!I87 -> 0 | J87: =[1]LETs!J87 -> 0 | K87: =[1]LETs!K87 -> 0 | L87: =[1]LETs!L87 -> 0 | M87: =[1]LETs!M87 -> 0 | N87: =[1]LETs!N87 -> 0 | O87: =[1]LETs!O87 -> 0 | P87: =[1]LETs!P87 -> 0 | Q87: =[1]LETs!Q87 -> 0 | R87: =[1]LETs!R87 -> 0 | S87: =IFERROR(INDEX([1]LETs!$F$3:$AZZ$214,MATCH($D87,[1]LETs!$D$3:$D$214,0),MATCH($S$2,[1]LETs!$F$2:$AZZ$2,0)),0) -> 0
D88: Meta | E88: =[1]LETs!E88 -> 0 | F88: =[1]LETs!F88 -> 0.024 | G88: =[1]LETs!G88 -> 0.024 | H88: =[1]LETs!H88 -> 0.024 | I88: =[1]LETs!I88 -> 0 | J88: =[1]LETs!J88 -> 0 | K88: =[1]LETs!K88 -> 0 | L88: =[1]LETs!L88 -> 0 | M88: =[1]LETs!M88 -> 0 | N88: =[1]LETs!N88 -> 0 | O88: =[1]LETs!O88 -> 0 | P88: =[1]LETs!P88 -> 0 | Q88: =[1]LETs!Q88 -> 0 | R88: =[1]LETs!R88 -> 0 | S88: =IF(MONTH(S$2)=1,$G88,IF(MONTH(S$2)=2,$H88,IF(MONTH(S$2)=3,$I88,IF(MONTH(S$2)=4,$J88,IF(MONTH(S$2)=5,$K88,IF(MONTH(S$2)=6,$L88,IF(MONTH(S$2)=7,$M88,IF(MONTH(S$2)=8,$N88,IF(MONTH(S$2)=9,$O88,IF(MONTH(S$2)=10,$P88,IF(MONTH(S$2)=11,$Q88,$R88))))))))))) -> 0.024
C89: Acidentes (Típicos + Trajeto) | D89: Acidentes | E89: =[1]LETs!E89 -> -0,50 P | F89: =[1]LETs!F89 -> 0 | G89: =[1]LETs!G89 -> 0 | H89: =[1]LETs!H89 -> 0 | I89: =[1]LETs!I89 -> 0 | J89: =[1]LETs!J89 -> 0 | K89: =[1]LETs!K89 -> 0 | L89: =[1]LETs!L89 -> 0 | M89: =[1]LETs!M89 -> 0 | N89: =[1]LETs!N89 -> 0 | O89: =[1]LETs!O89 -> 0 | P89: =[1]LETs!P89 -> 0 | Q89: =[1]LETs!Q89 -> 0 | R89: =[1]LETs!R89 -> 0 | S89: =IFERROR(INDEX([1]LETs!$F$3:$AZZ$214,MATCH($D89,[1]LETs!$D$3:$D$214,0),MATCH($S$2,[1]LETs!$F$2:$AZZ$2,0)),0) -> 0
D90: Meta | F90: =[1]LETs!F90 -> 0 | G90: =[1]LETs!G90 -> 0 | H90: =[1]LETs!H90 -> 0 | I90: =[1]LETs!I90 -> 0 | J90: =[1]LETs!J90 -> 0 | K90: =[1]LETs!K90 -> 0 | L90: =[1]LETs!L90 -> 0 | M90: =[1]LETs!M90 -> 0 | N90: =[1]LETs!N90 -> 0 | O90: =[1]LETs!O90 -> 0 | P90: =[1]LETs!P90 -> 0 | Q90: =[1]LETs!Q90 -> 0 | R90: =[1]LETs!R90 -> 0 | S90: =IF(MONTH(S$2)=1,$G90,IF(MONTH(S$2)=2,$H90,IF(MONTH(S$2)=3,$I90,IF(MONTH(S$2)=4,$J90,IF(MONTH(S$2)=5,$K90,IF(MONTH(S$2)=6,$L90,IF(MONTH(S$2)=7,$M90,IF(MONTH(S$2)=8,$N90,IF(MONTH(S$2)=9,$O90,IF(MONTH(S$2)=10,$P90,IF(MONTH(S$2)=11,$Q90,$R90))))))))))) -> 0
C91: Anomalias | D91: Anomalias | E91: =[1]LETs!E91 -> -0,50 P | F91: =[1]LETs!F91 -> 0 | G91: =[1]LETs!G91 -> 0 | H91: =[1]LETs!H91 -> 0 | I91: =[1]LETs!I91 -> 0 | J91: =[1]LETs!J91 -> 0 | K91: =[1]LETs!K91 -> 0 | L91: =[1]LETs!L91 -> 0 | M91: =[1]LETs!M91 -> 0 | N91: =[1]LETs!N91 -> 0 | O91: =[1]LETs!O91 -> 0 | P91: =[1]LETs!P91 -> 0 | Q91: =[1]LETs!Q91 -> 0 | R91: =[1]LETs!R91 -> 0 | S91: =IFERROR(INDEX([1]LETs!$F$3:$AZZ$214,MATCH($D91,[1]LETs!$D$3:$D$214,0),MATCH($S$2,[1]LETs!$F$2:$AZZ$2,0)),0) -> 0
D92: Meta | F92: =[1]LETs!F92 -> 0 | G92: =[1]LETs!G92 -> 0 | H92: =[1]LETs!H92 -> 0 | I92: =[1]LETs!I92 -> 0 | J92: =[1]LETs!J92 -> 0 | K92: =[1]LETs!K92 -> 0 | L92: =[1]LETs!L92 -> 0 | M92: =[1]LETs!M92 -> 0 | N92: =[1]LETs!N92 -> 0 | O92: =[1]LETs!O92 -> 0 | P92: =[1]LETs!P92 -> 0 | Q92: =[1]LETs!Q92 -> 0 | R92: =[1]LETs!R92 -> 0 | S92: =IF(MONTH(S$2)=1,$G92,IF(MONTH(S$2)=2,$H92,IF(MONTH(S$2)=3,$I92,IF(MONTH(S$2)=4,$J92,IF(MONTH(S$2)=5,$K92,IF(MONTH(S$2)=6,$L92,IF(MONTH(S$2)=7,$M92,IF(MONTH(S$2)=8,$N92,IF(MONTH(S$2)=9,$O92,IF(MONTH(S$2)=10,$P92,IF(MONTH(S$2)=11,$Q92,$R92))))))))))) -> 0
C93: Produtividade Área | D93: Produtividade Estoque | E93: =[1]LETs!E93 -> 1 | F93: =[1]LETs!F93 -> 12.17 | G93: =[1]LETs!G93 -> 11.73 | H93: =[1]LETs!H93 -> 13.52 | I93: =[1]LETs!I93 -> 0 | J93: =[1]LETs!J93 -> 0 | K93: =[1]LETs!K93 -> 0 | L93: =[1]LETs!L93 -> 0 | M93: =[1]LETs!M93 -> 0 | N93: =[1]LETs!N93 -> 0 | O93: =[1]LETs!O93 -> 0 | P93: =[1]LETs!P93 -> 0 | Q93: =[1]LETs!Q93 -> 0 | R93: =[1]LETs!R93 -> 0 | S93: =IFERROR(INDEX([1]LETs!$F$3:$AZZ$214,MATCH($D93,[1]LETs!$D$3:$D$214,0),MATCH($S$2,[1]LETs!$F$2:$AZZ$2,0)),0) -> 17.22
D94: Produção (Área) | F94: =[1]LETs!F94 -> 369120 | G94: =[1]LETs!G94 -> 267907 | H94: =[1]LETs!H94 -> 101213 | I94: =[1]LETs!I94 -> 0 | J94: =[1]LETs!J94 -> 0 | K94: =[1]LETs!K94 -> 0 | L94: =[1]LETs!L94 -> 0 | M94: =[1]LETs!M94 -> 0 | N94: =[1]LETs!N94 -> 0 | O94: =[1]LETs!O94 -> 0 | P94: =[1]LETs!P94 -> 0 | Q94: =[1]LETs!Q94 -> 0 | R94: =[1]LETs!R94 -> 0 | S94: =IFERROR(INDEX([1]LETs!$F$3:$AZZ$214,MATCH($D94,[1]LETs!$D$3:$D$214,0),MATCH($S$2,[1]LETs!$F$2:$AZZ$2,0)),0) -> 10836
D95: Quadro Produtivo (Área) | F95: =[1]LETs!F95 -> 4667 | G95: =[1]LETs!G95 -> 3515 | H95: =[1]LETs!H95 -> 1152 | I95: =[1]LETs!I95 -> 0 | J95: =[1]LETs!J95 -> 0 | K95: =[1]LETs!K95 -> 0 | L95: =[1]LETs!L95 -> 0 | M95: =[1]LETs!M95 -> 0 | N95: =[1]LETs!N95 -> 0 | O95: =[1]LETs!O95 -> 0 | P95: =[1]LETs!P95 -> 0 | Q95: =[1]LETs!Q95 -> 0 | R95: =[1]LETs!R95 -> 0 | S95: =IFERROR(INDEX([1]LETs!$F$3:$AZZ$214,MATCH($D95,[1]LETs!$D$3:$D$214,0),MATCH($S$2,[1]LETs!$F$2:$AZZ$2,0)),0) -> 19
D96: Horas (Área) | F96: =[1]LETs!F96 -> 6.5 | G96: =[1]LETs!G96 -> 6.5 | H96: =[1]LETs!H96 -> 6.5 | I96: =[1]LETs!I96 -> 0 | J96: =[1]LETs!J96 -> 0 | K96: =[1]LETs!K96 -> 0 | L96: =[1]LETs!L96 -> 0 | M96: =[1]LETs!M96 -> 0 | N96: =[1]LETs!N96 -> 0 | O96: =[1]LETs!O96 -> 0 | P96: =[1]LETs!P96 -> 0 | Q96: =[1]LETs!Q96 -> 0 | R96: =[1]LETs!R96 -> 0 | S96: =IFERROR(INDEX([1]LETs!$F$3:$AZZ$214,MATCH($D96,[1]LETs!$D$3:$D$214,0),MATCH($S$2,[1]LETs!$F$2:$AZZ$2,0)),0) -> 6.5
D97: Meta | F97: =[1]LETs!F97 -> 14.18842 | G97: =[1]LETs!G97 -> 15.12248958 | H97: =[1]LETs!H97 -> 11.33838241 | I97: =[1]LETs!I97 -> 0 | J97: =[1]LETs!J97 -> 0 | K97: =[1]LETs!K97 -> 0 | L97: =[1]LETs!L97 -> 0 | M97: =[1]LETs!M97 -> 0 | N97: =[1]LETs!N97 -> 0 | O97: =[1]LETs!O97 -> 0 | P97: =[1]LETs!P97 -> 0 | Q97: =[1]LETs!Q97 -> 0 | R97: =[1]LETs!R97 -> 0 | S97: =IF(MONTH(S$2)=1,$G97,IF(MONTH(S$2)=2,$H97,IF(MONTH(S$2)=3,$I97,IF(MONTH(S$2)=4,$J97,IF(MONTH(S$2)=5,$K97,IF(MONTH(S$2)=6,$L97,IF(MONTH(S$2)=7,$M97,IF(MONTH(S$2)=8,$N97,IF(MONTH(S$2)=9,$O97,IF(MONTH(S$2)=10,$P97,IF(MONTH(S$2)=11,$Q97,$R97))))))))))) -> 11.33838241
C98: Cancelamentos | D98: Cancelamentos | E98: =[1]LETs!E98 -> 0.5 | F98: =[1]LETs!F98 -> 8e-06 | G98: =[1]LETs!G98 -> 7e-06 | H98: =[1]LETs!H98 -> 1e-05 | I98: =[1]LETs!I98 -> 0 | J98: =[1]LETs!J98 -> 0 | K98: =[1]LETs!K98 -> 0 | L98: =[1]LETs!L98 -> 0 | M98: =[1]LETs!M98 -> 0 | N98: =[1]LETs!N98 -> 0 | O98: =[1]LETs!O98 -> 0 | P98: =[1]LETs!P98 -> 0 | Q98: =[1]LETs!Q98 -> 0 | R98: =[1]LETs!R98 -> 0 | S98: =IFERROR(INDEX([1]LETs!$F$3:$AZZ$214,MATCH($D98,[1]LETs!$D$3:$D$214,0),MATCH($S$2,[1]LETs!$F$2:$AZZ$2,0)),0) -> 0
D99: Qtd. Cancel. | F99: =[1]LETs!F99 -> 3 | G99: =[1]LETs!G99 -> 2 | H99: =[1]LETs!H99 -> 1 | I99: =[1]LETs!I99 -> 0 | J99: =[1]LETs!J99 -> 0 | K99: =[1]LETs!K99 -> 0 | L99: =[1]LETs!L99 -> 0 | M99: =[1]LETs!M99 -> 0 | N99: =[1]LETs!N99 -> 0 | O99: =[1]LETs!O99 -> 0 | P99: =[1]LETs!P99 -> 0 | Q99: =[1]LETs!Q99 -> 0 | R99: =[1]LETs!R99 -> 0 | S99: =IFERROR(INDEX([1]LETs!$F$3:$AZZ$214,MATCH($D99,[1]LETs!$D$3:$D$214,0),MATCH($S$2,[1]LETs!$F$2:$AZZ$2,0)),0) -> 0
D100: Faturamento | F100: =[1]LETs!F100 -> 366850 | G100: =[1]LETs!G100 -> 266743 | H100: =[1]LETs!H100 -> 100107 | I100: =[1]LETs!I100 -> 0 | J100: =[1]LETs!J100 -> 0 | K100: =[1]LETs!K100 -> 0 | L100: =[1]LETs!L100 -> 0 | M100: =[1]LETs!M100 -> 0 | N100: =[1]LETs!N100 -> 0 | O100: =[1]LETs!O100 -> 0 | P100: =[1]LETs!P100 -> 0 | Q100: =[1]LETs!Q100 -> 0 | R100: =[1]LETs!R100 -> 0 | S100: =IFERROR(INDEX([1]LETs!$F$3:$AZZ$214,MATCH($D100,[1]LETs!$D$3:$D$214,0),MATCH($S$2,[1]LETs!$F$2:$AZZ$2,0)),0) -> 13851
D101: Meta | F101: =[1]LETs!F101 -> 3e-06 | G101: =[1]LETs!G101 -> 3e-06 | H101: =[1]LETs!H101 -> 3e-06 | I101: =[1]LETs!I101 -> 0 | J101: =[1]LETs!J101 -> 0 | K101: =[1]LETs!K101 -> 0 | L101: =[1]LETs!L101 -> 0 | M101: =[1]LETs!M101 -> 0 | N101: =[1]LETs!N101 -> 0 | O101: =[1]LETs!O101 -> 0 | P101: =[1]LETs!P101 -> 0 | Q101: =[1]LETs!Q101 -> 0 | R101: =[1]LETs!R101 -> 0 | S101: =IF(MONTH(S$2)=1,$G101,IF(MONTH(S$2)=2,$H101,IF(MONTH(S$2)=3,$I101,IF(MONTH(S$2)=4,$J101,IF(MONTH(S$2)=5,$K101,IF(MONTH(S$2)=6,$L101,IF(MONTH(S$2)=7,$M101,IF(MONTH(S$2)=8,$N101,IF(MONTH(S$2)=9,$O101,IF(MONTH(S$2)=10,$P101,IF(MONTH(S$2)=11,$Q101,$R101))))))))))) -> 3e-06
C102: Não Conformidades | D102: Não Conformidades | E102: =[1]LETs!E102 -> 1.25 | F102: =[1]LETs!F102 -> 3e-06 | G102: =[1]LETs!G102 -> 4e-06 | H102: =[1]LETs!H102 -> 0 | I102: =[1]LETs!I102 -> 0 | J102: =[1]LETs!J102 -> 0 | K102: =[1]LETs!K102 -> 0 | L102: =[1]LETs!L102 -> 0 | M102: =[1]LETs!M102 -> 0 | N102: =[1]LETs!N102 -> 0 | O102: =[1]LETs!O102 -> 0 | P102: =[1]LETs!P102 -> 0 | Q102: =[1]LETs!Q102 -> 0 | R102: =[1]LETs!R102 -> 0 | S102: =IFERROR(INDEX([1]LETs!$F$3:$AZZ$214,MATCH($D102,[1]LETs!$D$3:$D$214,0),MATCH($S$2,[1]LETs!$F$2:$AZZ$2,0)),0) -> 0
D103: Qtd. NC | F103: =[1]LETs!F103 -> 1 | G103: =[1]LETs!G103 -> 1 | H103: =[1]LETs!H103 -> 0 | I103: =[1]LETs!I103 -> 0 | J103: =[1]LETs!J103 -> 0 | K103: =[1]LETs!K103 -> 0 | L103: =[1]LETs!L103 -> 0 | M103: =[1]LETs!M103 -> 0 | N103: =[1]LETs!N103 -> 0 | O103: =[1]LETs!O103 -> 0 | P103: =[1]LETs!P103 -> 0 | Q103: =[1]LETs!Q103 -> 0 | R103: =[1]LETs!R103 -> 0 | S103: =IFERROR(INDEX([1]LETs!$F$3:$AZZ$214,MATCH($D103,[1]LETs!$D$3:$D$214,0),MATCH($S$2,[1]LETs!$F$2:$AZZ$2,0)),0) -> 0
D104: Separados | F104: =[1]LETs!F104 -> 369120 | G104: =[1]LETs!G104 -> 267907 | H104: =[1]LETs!H104 -> 101213 | I104: =[1]LETs!I104 -> 0 | J104: =[1]LETs!J104 -> 0 | K104: =[1]LETs!K104 -> 0 | L104: =[1]LETs!L104 -> 0 | M104: =[1]LETs!M104 -> 0 | N104: =[1]LETs!N104 -> 0 | O104: =[1]LETs!O104 -> 0 | P104: =[1]LETs!P104 -> 0 | Q104: =[1]LETs!Q104 -> 0 | R104: =[1]LETs!R104 -> 0 | S104: =IFERROR(INDEX([1]LETs!$F$3:$AZZ$214,MATCH($D104,[1]LETs!$D$3:$D$214,0),MATCH($S$2,[1]LETs!$F$2:$AZZ$2,0)),0) -> 14218
D105: Meta | F105: =[1]LETs!F105 -> 5e-05 | G105: =[1]LETs!G105 -> 5.1e-05 | H105: =[1]LETs!H105 -> 5.1e-05 | I105: =[1]LETs!I105 -> 0 | J105: =[1]LETs!J105 -> 0 | K105: =[1]LETs!K105 -> 0 | L105: =[1]LETs!L105 -> 0 | M105: =[1]LETs!M105 -> 0 | N105: =[1]LETs!N105 -> 0 | O105: =[1]LETs!O105 -> 0 | P105: =[1]LETs!P105 -> 0 | Q105: =[1]LETs!Q105 -> 0 | R105: =[1]LETs!R105 -> 0 | S105: =IF(MONTH(S$2)=1,$G105,IF(MONTH(S$2)=2,$H105,IF(MONTH(S$2)=3,$I105,IF(MONTH(S$2)=4,$J105,IF(MONTH(S$2)=5,$K105,IF(MONTH(S$2)=6,$L105,IF(MONTH(S$2)=7,$M105,IF(MONTH(S$2)=8,$N105,IF(MONTH(S$2)=9,$O105,IF(MONTH(S$2)=10,$P105,IF(MONTH(S$2)=11,$Q105,$R105))))))))))) -> 5.1e-05
C106: Divergência Picking no Packing | D106: Divergência Picking no Packing | E106: =[1]LETs!E106 -> 0.5 | F106: =[1]LETs!F106 -> 0.00022 | G106: =[1]LETs!G106 -> 0.00024 | H106: =[1]LETs!H106 -> 0.00016 | I106: =[1]LETs!I106 -> 0 | J106: =[1]LETs!J106 -> 0 | K106: =[1]LETs!K106 -> 0 | L106: =[1]LETs!L106 -> 0 | M106: =[1]LETs!M106 -> 0 | N106: =[1]LETs!N106 -> 0 | O106: =[1]LETs!O106 -> 0 | P106: =[1]LETs!P106 -> 0 | Q106: =[1]LETs!Q106 -> 0 | R106: =[1]LETs!R106 -> 0 | S106: =IFERROR(INDEX([1]LETs!$F$3:$AZZ$214,MATCH($D106,[1]LETs!$D$3:$D$214,0),MATCH($S$2,[1]LETs!$F$2:$AZZ$2,0)),0) -> 7e-05
D107: Divergente (Pedidos) | F107: =[1]LETs!F107 -> 79 | G107: =[1]LETs!G107 -> 63 | H107: =[1]LETs!H107 -> 16 | I107: =[1]LETs!I107 -> 0 | J107: =[1]LETs!J107 -> 0 | K107: =[1]LETs!K107 -> 0 | L107: =[1]LETs!L107 -> 0 | M107: =[1]LETs!M107 -> 0 | N107: =[1]LETs!N107 -> 0 | O107: =[1]LETs!O107 -> 0 | P107: =[1]LETs!P107 -> 0 | Q107: =[1]LETs!Q107 -> 0 | R107: =[1]LETs!R107 -> 0 | S107: =IFERROR(INDEX([1]LETs!$F$3:$AZZ$214,MATCH($D107,[1]LETs!$D$3:$D$214,0),MATCH($S$2,[1]LETs!$F$2:$AZZ$2,0)),0) -> 1
D108: Meta | F108: =[1]LETs!F108 -> 0.00012 | G108: =[1]LETs!G108 -> 0.00012 | H108: =[1]LETs!H108 -> 0.00012 | I108: =[1]LETs!I108 -> 0 | J108: =[1]LETs!J108 -> 0 | K108: =[1]LETs!K108 -> 0 | L108: =[1]LETs!L108 -> 0 | M108: =[1]LETs!M108 -> 0 | N108: =[1]LETs!N108 -> 0 | O108: =[1]LETs!O108 -> 0 | P108: =[1]LETs!P108 -> 0 | Q108: =[1]LETs!Q108 -> 0 | R108: =[1]LETs!R108 -> 0 | S108: =IF(MONTH(S$2)=1,$G108,IF(MONTH(S$2)=2,$H108,IF(MONTH(S$2)=3,$I108,IF(MONTH(S$2)=4,$J108,IF(MONTH(S$2)=5,$K108,IF(MONTH(S$2)=6,$L108,IF(MONTH(S$2)=7,$M108,IF(MONTH(S$2)=8,$N108,IF(MONTH(S$2)=9,$O108,IF(MONTH(S$2)=10,$P108,IF(MONTH(S$2)=11,$Q108,$R108))))))))))) -> 0.00012
C109: Acurácia de Armazenagem | D109: Acurácia de Armazenagem | E109: =[1]LETs!E109 -> 0.5 | F109: =[1]LETs!F109 -> 1 | G109: =[1]LETs!G109 -> 1 | H109: =[1]LETs!H109 -> 1 | I109: =[1]LETs!I109 -> 0 | J109: =[1]LETs!J109 -> 0 | K109: =[1]LETs!K109 -> 0 | L109: =[1]LETs!L109 -> 0 | M109: =[1]LETs!M109 -> 0 | N109: =[1]LETs!N109 -> 0 | O109: =[1]LETs!O109 -> 0 | P109: =[1]LETs!P109 -> 0 | Q109: =[1]LETs!Q109 -> 0 | R109: =[1]LETs!R109 -> 0 | S109: =IFERROR(INDEX([1]LETs!$F$3:$AZZ$214,MATCH($D109,[1]LETs!$D$3:$D$214,0),MATCH($S$2,[1]LETs!$F$2:$AZZ$2,0)),0) -> 1
D110: Locais Auditados (Arm) | F110: =[1]LETs!F110 -> 1916 | G110: =[1]LETs!G110 -> 1463 | H110: =[1]LETs!H110 -> 453 | I110: =[1]LETs!I110 -> 0 | J110: =[1]LETs!J110 -> 0 | K110: =[1]LETs!K110 -> 0 | L110: =[1]LETs!L110 -> 0 | M110: =[1]LETs!M110 -> 0 | N110: =[1]LETs!N110 -> 0 | O110: =[1]LETs!O110 -> 0 | P110: =[1]LETs!P110 -> 0 | Q110: =[1]LETs!Q110 -> 0 | R110: =[1]LETs!R110 -> 0 | S110: =IFERROR(INDEX([1]LETs!$F$3:$AZZ$214,MATCH($D110,[1]LETs!$D$3:$D$214,0),MATCH($S$2,[1]LETs!$F$2:$AZZ$2,0)),0) -> 64
D111: Erros de Armazenagem | F111: =[1]LETs!F111 -> 0 | G111: =[1]LETs!G111 -> 0 | H111: =[1]LETs!H111 -> 0 | I111: =[1]LETs!I111 -> 0 | J111: =[1]LETs!J111 -> 0 | K111: =[1]LETs!K111 -> 0 | L111: =[1]LETs!L111 -> 0 | M111: =[1]LETs!M111 -> 0 | N111: =[1]LETs!N111 -> 0 | O111: =[1]LETs!O111 -> 0 | P111: =[1]LETs!P111 -> 0 | Q111: =[1]LETs!Q111 -> 0 | R111: =[1]LETs!R111 -> 0 | S111: =IFERROR(INDEX([1]LETs!$F$3:$AZZ$214,MATCH($D111,[1]LETs!$D$3:$D$214,0),MATCH($S$2,[1]LETs!$F$2:$AZZ$2,0)),0) -> 0
D112: Meta | F112: =[1]LETs!F112 -> 0.9999 | G112: =[1]LETs!G112 -> 0.9999 | H112: =[1]LETs!H112 -> 0.9999 | I112: =[1]LETs!I112 -> 0 | J112: =[1]LETs!J112 -> 0 | K112: =[1]LETs!K112 -> 0 | L112: =[1]LETs!L112 -> 0 | M112: =[1]LETs!M112 -> 0 | N112: =[1]LETs!N112 -> 0 | O112: =[1]LETs!O112 -> 0 | P112: =[1]LETs!P112 -> 0 | Q112: =[1]LETs!Q112 -> 0 | R112: =[1]LETs!R112 -> 0 | S112: =IF(MONTH(S$2)=1,$G112,IF(MONTH(S$2)=2,$H112,IF(MONTH(S$2)=3,$I112,IF(MONTH(S$2)=4,$J112,IF(MONTH(S$2)=5,$K112,IF(MONTH(S$2)=6,$L112,IF(MONTH(S$2)=7,$M112,IF(MONTH(S$2)=8,$N112,IF(MONTH(S$2)=9,$O112,IF(MONTH(S$2)=10,$P112,IF(MONTH(S$2)=11,$Q112,$R112))))))))))) -> 0.9999
C113: Acurácia de Movimentação | D113: Acurácia de Movimentação | E113: =[1]LETs!E113 -> 0.5 | F113: =[1]LETs!F113 -> 0.9998 | G113: =[1]LETs!G113 -> 1 | H113: =[1]LETs!H113 -> 0.9991 | I113: =[1]LETs!I113 -> 0 | J113: =[1]LETs!J113 -> 0 | K113: =[1]LETs!K113 -> 0 | L113: =[1]LETs!L113 -> 0 | M113: =[1]LETs!M113 -> 0 | N113: =[1]LETs!N113 -> 0 | O113: =[1]LETs!O113 -> 0 | P113: =[1]LETs!P113 -> 0 | Q113: =[1]LETs!Q113 -> 0 | R113: =[1]LETs!R113 -> 0 | S113: =IFERROR(INDEX([1]LETs!$F$3:$AZZ$214,MATCH($D113,[1]LETs!$D$3:$D$214,0),MATCH($S$2,[1]LETs!$F$2:$AZZ$2,0)),0) -> 1
D114: Locais Auditados (Mov) | F114: =[1]LETs!F114 -> 4525 | G114: =[1]LETs!G114 -> 3419 | H114: =[1]LETs!H114 -> 1106 | I114: =[1]LETs!I114 -> 0 | J114: =[1]LETs!J114 -> 0 | K114: =[1]LETs!K114 -> 0 | L114: =[1]LETs!L114 -> 0 | M114: =[1]LETs!M114 -> 0 | N114: =[1]LETs!N114 -> 0 | O114: =[1]LETs!O114 -> 0 | P114: =[1]LETs!P114 -> 0 | Q114: =[1]LETs!Q114 -> 0 | R114: =[1]LETs!R114 -> 0 | S114: =IFERROR(INDEX([1]LETs!$F$3:$AZZ$214,MATCH($D114,[1]LETs!$D$3:$D$214,0),MATCH($S$2,[1]LETs!$F$2:$AZZ$2,0)),0) -> 173
D115: Erros de Movimentação | F115: =[1]LETs!F115 -> 1 | G115: =[1]LETs!G115 -> 0 | H115: =[1]LETs!H115 -> 1 | I115: =[1]LETs!I115 -> 0 | J115: =[1]LETs!J115 -> 0 | K115: =[1]LETs!K115 -> 0 | L115: =[1]LETs!L115 -> 0 | M115: =[1]LETs!M115 -> 0 | N115: =[1]LETs!N115 -> 0 | O115: =[1]LETs!O115 -> 0 | P115: =[1]LETs!P115 -> 0 | Q115: =[1]LETs!Q115 -> 0 | R115: =[1]LETs!R115 -> 0 | S115: =IFERROR(INDEX([1]LETs!$F$3:$AZZ$214,MATCH($D115,[1]LETs!$D$3:$D$214,0),MATCH($S$2,[1]LETs!$F$2:$AZZ$2,0)),0) -> 0
D116: Meta | F116: =[1]LETs!F116 -> 0.9995 | G116: =[1]LETs!G116 -> 0.9995 | H116: =[1]LETs!H116 -> 0.9995 | I116: =[1]LETs!I116 -> 0 | J116: =[1]LETs!J116 -> 0 | K116: =[1]LETs!K116 -> 0 | L116: =[1]LETs!L116 -> 0 | M116: =[1]LETs!M116 -> 0 | N116: =[1]LETs!N116 -> 0 | O116: =[1]LETs!O116 -> 0 | P116: =[1]LETs!P116 -> 0 | Q116: =[1]LETs!Q116 -> 0 | R116: =[1]LETs!R116 -> 0 | S116: =IF(MONTH(S$2)=1,$G116,IF(MONTH(S$2)=2,$H116,IF(MONTH(S$2)=3,$I116,IF(MONTH(S$2)=4,$J116,IF(MONTH(S$2)=5,$K116,IF(MONTH(S$2)=6,$L116,IF(MONTH(S$2)=7,$M116,IF(MONTH(S$2)=8,$N116,IF(MONTH(S$2)=9,$O116,IF(MONTH(S$2)=10,$P116,IF(MONTH(S$2)=11,$Q116,$R116))))))))))) -> 0.9995
C117: PGE | D117: PGE | E117: =[1]LETs!E117 -> 0.75 | F117: =[1]LETs!F117 -> 0.9876 | G117: =[1]LETs!G117 -> 0.9866 | H117: =[1]LETs!H117 -> 0.99 | I117: =[1]LETs!I117 -> 0 | J117: =[1]LETs!J117 -> 0 | K117: =[1]LETs!K117 -> 0 | L117: =[1]LETs!L117 -> 0 | M117: =[1]LETs!M117 -> 0 | N117: =[1]LETs!N117 -> 0 | O117: =[1]LETs!O117 -> 0 | P117: =[1]LETs!P117 -> 0 | Q117: =[1]LETs!Q117 -> 0 | R117: =[1]LETs!R117 -> 0 | S117: =IFERROR(INDEX([1]LETs!$F$3:$AZZ$214,MATCH($D117,[1]LETs!$D$3:$D$214,0),MATCH($S$2,[1]LETs!$F$2:$AZZ$2,0)),0) -> 0.9899
D118: Total Baixo | F118: =[1]LETs!F118 -> 168354 | G118: =[1]LETs!G118 -> 116723 | H118: =[1]LETs!H118 -> 51631 | I118: =[1]LETs!I118 -> 0 | J118: =[1]LETs!J118 -> 0 | K118: =[1]LETs!K118 -> 0 | L118: =[1]LETs!L118 -> 0 | M118: =[1]LETs!M118 -> 0 | N118: =[1]LETs!N118 -> 0 | O118: =[1]LETs!O118 -> 0 | P118: =[1]LETs!P118 -> 0 | Q118: =[1]LETs!Q118 -> 0 | R118: =[1]LETs!R118 -> 0 | S118: =IFERROR(INDEX([1]LETs!$F$3:$AZZ$214,MATCH($D118,[1]LETs!$D$3:$D$214,0),MATCH($S$2,[1]LETs!$F$2:$AZZ$2,0)),0) -> 6539
D119: Indisponível no Baixo | F119: =[1]LETs!F119 -> 2109 | G119: =[1]LETs!G119 -> 1586 | H119: =[1]LETs!H119 -> 523 | I119: =[1]LETs!I119 -> 0 | J119: =[1]LETs!J119 -> 0 | K119: =[1]LETs!K119 -> 0 | L119: =[1]LETs!L119 -> 0 | M119: =[1]LETs!M119 -> 0 | N119: =[1]LETs!N119 -> 0 | O119: =[1]LETs!O119 -> 0 | P119: =[1]LETs!P119 -> 0 | Q119: =[1]LETs!Q119 -> 0 | R119: =[1]LETs!R119 -> 0 | S119: =IFERROR(INDEX([1]LETs!$F$3:$AZZ$214,MATCH($D119,[1]LETs!$D$3:$D$214,0),MATCH($S$2,[1]LETs!$F$2:$AZZ$2,0)),0) -> 67
D120: Meta | F120: =[1]LETs!F120 -> 0.98 | G120: =[1]LETs!G120 -> 0.98 | H120: =[1]LETs!H120 -> 0.98 | I120: =[1]LETs!I120 -> 0 | J120: =[1]LETs!J120 -> 0 | K120: =[1]LETs!K120 -> 0 | L120: =[1]LETs!L120 -> 0 | M120: =[1]LETs!M120 -> 0 | N120: =[1]LETs!N120 -> 0 | O120: =[1]LETs!O120 -> 0 | P120: =[1]LETs!P120 -> 0 | Q120: =[1]LETs!Q120 -> 0 | R120: =[1]LETs!R120 -> 0 | S120: =IF(MONTH(S$2)=1,$G120,IF(MONTH(S$2)=2,$H120,IF(MONTH(S$2)=3,$I120,IF(MONTH(S$2)=4,$J120,IF(MONTH(S$2)=5,$K120,IF(MONTH(S$2)=6,$L120,IF(MONTH(S$2)=7,$M120,IF(MONTH(S$2)=8,$N120,IF(MONTH(S$2)=9,$O120,IF(MONTH(S$2)=10,$P120,IF(MONTH(S$2)=11,$Q120,$R120))))))))))) -> 0.98
B121: 8.75 | C121: Absenteísmo | D121: Absenteísmo | E121: =[1]LETs!E121 -> 2 | F121: =[1]LETs!F121 -> 0.0202 | G121: =[1]LETs!G121 -> 0.0193 | H121: =[1]LETs!H121 -> 0.0228 | I121: =[1]LETs!I121 -> 0 | J121: =[1]LETs!J121 -> 0 | K121: =[1]LETs!K121 -> 0 | L121: =[1]LETs!L121 -> 0 | M121: =[1]LETs!M121 -> 0 | N121: =[1]LETs!N121 -> 0 | O121: =[1]LETs!O121 -> 0 | P121: =[1]LETs!P121 -> 0 | Q121: =[1]LETs!Q121 -> 0 | R121: =[1]LETs!R121 -> 0 | S121: =IFERROR(INDEX([1]LETs!$F$3:$AZZ$214,MATCH($D121,[1]LETs!$D$3:$D$214,0),MATCH($S$2,[1]LETs!$F$2:$AZZ$2,0)),0) -> 0.0139
B122: Outbound | D122: Quadro Líquido | F122: =[1]LETs!F122 -> 4802 | G122: =[1]LETs!G122 -> 3576 | H122: =[1]LETs!H122 -> 1226 | I122: =[1]LETs!I122 -> 0 | J122: =[1]LETs!J122 -> 0 | K122: =[1]LETs!K122 -> 0 | L122: =[1]LETs!L122 -> 0 | M122: =[1]LETs!M122 -> 0 | N122: =[1]LETs!N122 -> 0 | O122: =[1]LETs!O122 -> 0 | P122: =[1]LETs!P122 -> 0 | Q122: =[1]LETs!Q122 -> 0 | R122: =[1]LETs!R122 -> 0 | S122: =IFERROR(INDEX([1]LETs!$F$3:$AZZ$214,MATCH($D122,[1]LETs!$D$3:$D$214,0),MATCH($S$2,[1]LETs!$F$2:$AZZ$2,0)),0) -> 360
D123: Faltas | F123: =[1]LETs!F123 -> 97 | G123: =[1]LETs!G123 -> 69 | H123: =[1]LETs!H123 -> 28 | I123: =[1]LETs!I123 -> 0 | J123: =[1]LETs!J123 -> 0 | K123: =[1]LETs!K123 -> 0 | L123: =[1]LETs!L123 -> 0 | M123: =[1]LETs!M123 -> 0 | N123: =[1]LETs!N123 -> 0 | O123: =[1]LETs!O123 -> 0 | P123: =[1]LETs!P123 -> 0 | Q123: =[1]LETs!Q123 -> 0 | R123: =[1]LETs!R123 -> 0 | S123: =IFERROR(INDEX([1]LETs!$F$3:$AZZ$214,MATCH($D123,[1]LETs!$D$3:$D$214,0),MATCH($S$2,[1]LETs!$F$2:$AZZ$2,0)),0) -> 5
D124: Quadro Total | F124: =[1]LETs!F124 -> 6026 | G124: =[1]LETs!G124 -> 4488 | H124: =[1]LETs!H124 -> 1538 | I124: =[1]LETs!I124 -> 0 | J124: =[1]LETs!J124 -> 0 | K124: =[1]LETs!K124 -> 0 | L124: =[1]LETs!L124 -> 0 | M124: =[1]LETs!M124 -> 0 | N124: =[1]LETs!N124 -> 0 | O124: =[1]LETs!O124 -> 0 | P124: =[1]LETs!P124 -> 0 | Q124: =[1]LETs!Q124 -> 0 | R124: =[1]LETs!R124 -> 0 | S124: =IFERROR(INDEX([1]LETs!$F$3:$AZZ$214,MATCH($D124,[1]LETs!$D$3:$D$214,0),MATCH($S$2,[1]LETs!$F$2:$AZZ$2,0)),0) -> 438
D125: Ger. e Coord. | F125: =[1]LETs!F125 -> 72 | G125: =[1]LETs!G125 -> 54 | H125: =[1]LETs!H125 -> 18 | I125: =[1]LETs!I125 -> 0 | J125: =[1]LETs!J125 -> 0 | K125: =[1]LETs!K125 -> 0 | L125: =[1]LETs!L125 -> 0 | M125: =[1]LETs!M125 -> 0 | N125: =[1]LETs!N125 -> 0 | O125: =[1]LETs!O125 -> 0 | P125: =[1]LETs!P125 -> 0 | Q125: =[1]LETs!Q125 -> 0 | R125: =[1]LETs!R125 -> 0 | S125: =IFERROR(INDEX([1]LETs!$F$3:$AZZ$214,MATCH($D125,[1]LETs!$D$3:$D$214,0),MATCH($S$2,[1]LETs!$F$2:$AZZ$2,0)),0) -> 7
D126: Sup. e Liderança | F126: =[1]LETs!F126 -> 534 | G126: =[1]LETs!G126 -> 392 | H126: =[1]LETs!H126 -> 142 | I126: =[1]LETs!I126 -> 0 | J126: =[1]LETs!J126 -> 0 | K126: =[1]LETs!K126 -> 0 | L126: =[1]LETs!L126 -> 0 | M126: =[1]LETs!M126 -> 0 | N126: =[1]LETs!N126 -> 0 | O126: =[1]LETs!O126 -> 0 | P126: =[1]LETs!P126 -> 0 | Q126: =[1]LETs!Q126 -> 0 | R126: =[1]LETs!R126 -> 0 | S126: =IFERROR(INDEX([1]LETs!$F$3:$AZZ$214,MATCH($D126,[1]LETs!$D$3:$D$214,0),MATCH($S$2,[1]LETs!$F$2:$AZZ$2,0)),0) -> 42
D127: Inativos | E127: =[1]LETs!E127 -> 3.75 | F127: =[1]LETs!F127 -> 429 | G127: =[1]LETs!G127 -> 322 | H127: =[1]LETs!H127 -> 107 | I127: =[1]LETs!I127 -> 0 | J127: =[1]LETs!J127 -> 0 | K127: =[1]LETs!K127 -> 0 | L127: =[1]LETs!L127 -> 0 | M127: =[1]LETs!M127 -> 0 | N127: =[1]LETs!N127 -> 0 | O127: =[1]LETs!O127 -> 0 | P127: =[1]LETs!P127 -> 0 | Q127: =[1]LETs!Q127 -> 0 | R127: =[1]LETs!R127 -> 0 | S127: =IFERROR(INDEX([1]LETs!$F$3:$AZZ$214,MATCH($D127,[1]LETs!$D$3:$D$214,0),MATCH($S$2,[1]LETs!$F$2:$AZZ$2,0)),0) -> 21
D128: Ausências | E128: =[1]LETs!E128 -> 0.75 | F128: =[1]LETs!F128 -> 723 | G128: =[1]LETs!G128 -> 536 | H128: =[1]LETs!H128 -> 187 | I128: =[1]LETs!I128 -> 0 | J128: =[1]LETs!J128 -> 0 | K128: =[1]LETs!K128 -> 0 | L128: =[1]LETs!L128 -> 0 | M128: =[1]LETs!M128 -> 0 | N128: =[1]LETs!N128 -> 0 | O128: =[1]LETs!O128 -> 0 | P128: =[1]LETs!P128 -> 0 | Q128: =[1]LETs!Q128 -> 0 | R128: =[1]LETs!R128 -> 0 | S128: =IFERROR(INDEX([1]LETs!$F$3:$AZZ$214,MATCH($D128,[1]LETs!$D$3:$D$214,0),MATCH($S$2,[1]LETs!$F$2:$AZZ$2,0)),0) -> 50
D129: Sumidos | E129: =[1]LETs!E129 -> 1 | F129: =[1]LETs!F129 -> 0 | G129: =[1]LETs!G129 -> 0 | H129: =[1]LETs!H129 -> 0 | I129: =[1]LETs!I129 -> 0 | J129: =[1]LETs!J129 -> 0 | K129: =[1]LETs!K129 -> 0 | L129: =[1]LETs!L129 -> 0 | M129: =[1]LETs!M129 -> 0 | N129: =[1]LETs!N129 -> 0 | O129: =[1]LETs!O129 -> 0 | P129: =[1]LETs!P129 -> 0 | Q129: =[1]LETs!Q129 -> 0 | R129: =[1]LETs!R129 -> 0 | S129: =IFERROR(INDEX([1]LETs!$F$3:$AZZ$214,MATCH($D129,[1]LETs!$D$3:$D$214,0),MATCH($S$2,[1]LETs!$F$2:$AZZ$2,0)),0) -> 0
D130: Meta | E130: =[1]LETs!E130 -> 0 | F130: =[1]LETs!F130 -> 0.024 | G130: =[1]LETs!G130 -> 0.024 | H130: =[1]LETs!H130 -> 0.024 | I130: =[1]LETs!I130 -> 0 | J130: =[1]LETs!J130 -> 0 | K130: =[1]LETs!K130 -> 0 | L130: =[1]LETs!L130 -> 0 | M130: =[1]LETs!M130 -> 0 | N130: =[1]LETs!N130 -> 0 | O130: =[1]LETs!O130 -> 0 | P130: =[1]LETs!P130 -> 0 | Q130: =[1]LETs!Q130 -> 0 | R130: =[1]LETs!R130 -> 0 | S130: =IF(MONTH(S$2)=1,$G130,IF(MONTH(S$2)=2,$H130,IF(MONTH(S$2)=3,$I130,IF(MONTH(S$2)=4,$J130,IF(MONTH(S$2)=5,$K130,IF(MONTH(S$2)=6,$L130,IF(MONTH(S$2)=7,$M130,IF(MONTH(S$2)=8,$N130,IF(MONTH(S$2)=9,$O130,IF(MONTH(S$2)=10,$P130,IF(MONTH(S$2)=11,$Q130,$R130))))))))))) -> 0.024
C131: Acidentes (Típicos + Trajeto) | D131: Acidentes | E131: =[1]LETs!E131 -> -0,50 P | F131: =[1]LETs!F131 -> 0 | G131: =[1]LETs!G131 -> 0 | H131: =[1]LETs!H131 -> 0 | I131: =[1]LETs!I131 -> 0 | J131: =[1]LETs!J131 -> 0 | K131: =[1]LETs!K131 -> 0 | L131: =[1]LETs!L131 -> 0 | M131: =[1]LETs!M131 -> 0 | N131: =[1]LETs!N131 -> 0 | O131: =[1]LETs!O131 -> 0 | P131: =[1]LETs!P131 -> 0 | Q131: =[1]LETs!Q131 -> 0 | R131: =[1]LETs!R131 -> 0 | S131: =IFERROR(INDEX([1]LETs!$F$3:$AZZ$214,MATCH($D131,[1]LETs!$D$3:$D$214,0),MATCH($S$2,[1]LETs!$F$2:$AZZ$2,0)),0) -> 0
D132: Meta | F132: =[1]LETs!F132 -> 0 | G132: =[1]LETs!G132 -> 0 | H132: =[1]LETs!H132 -> 0 | I132: =[1]LETs!I132 -> 0 | J132: =[1]LETs!J132 -> 0 | K132: =[1]LETs!K132 -> 0 | L132: =[1]LETs!L132 -> 0 | M132: =[1]LETs!M132 -> 0 | N132: =[1]LETs!N132 -> 0 | O132: =[1]LETs!O132 -> 0 | P132: =[1]LETs!P132 -> 0 | Q132: =[1]LETs!Q132 -> 0 | R132: =[1]LETs!R132 -> 0 | S132: =IF(MONTH(S$2)=1,$G132,IF(MONTH(S$2)=2,$H132,IF(MONTH(S$2)=3,$I132,IF(MONTH(S$2)=4,$J132,IF(MONTH(S$2)=5,$K132,IF(MONTH(S$2)=6,$L132,IF(MONTH(S$2)=7,$M132,IF(MONTH(S$2)=8,$N132,IF(MONTH(S$2)=9,$O132,IF(MONTH(S$2)=10,$P132,IF(MONTH(S$2)=11,$Q132,$R132))))))))))) -> 0
C133: Anomalias | D133: Anomalias | E133: =[1]LETs!E133 -> -0,50 P | F133: =[1]LETs!F133 -> 0 | G133: =[1]LETs!G133 -> 0 | H133: =[1]LETs!H133 -> 0 | I133: =[1]LETs!I133 -> 0 | J133: =[1]LETs!J133 -> 0 | K133: =[1]LETs!K133 -> 0 | L133: =[1]LETs!L133 -> 0 | M133: =[1]LETs!M133 -> 0 | N133: =[1]LETs!N133 -> 0 | O133: =[1]LETs!O133 -> 0 | P133: =[1]LETs!P133 -> 0 | Q133: =[1]LETs!Q133 -> 0 | R133: =[1]LETs!R133 -> 0 | S133: =IFERROR(INDEX([1]LETs!$F$3:$AZZ$214,MATCH($D133,[1]LETs!$D$3:$D$214,0),MATCH($S$2,[1]LETs!$F$2:$AZZ$2,0)),0) -> 0
D134: Meta | F134: =[1]LETs!F134 -> 0 | G134: =[1]LETs!G134 -> 0 | H134: =[1]LETs!H134 -> 0 | I134: =[1]LETs!I134 -> 0 | J134: =[1]LETs!J134 -> 0 | K134: =[1]LETs!K134 -> 0 | L134: =[1]LETs!L134 -> 0 | M134: =[1]LETs!M134 -> 0 | N134: =[1]LETs!N134 -> 0 | O134: =[1]LETs!O134 -> 0 | P134: =[1]LETs!P134 -> 0 | Q134: =[1]LETs!Q134 -> 0 | R134: =[1]LETs!R134 -> 0 | S134: =IF(MONTH(S$2)=1,$G134,IF(MONTH(S$2)=2,$H134,IF(MONTH(S$2)=3,$I134,IF(MONTH(S$2)=4,$J134,IF(MONTH(S$2)=5,$K134,IF(MONTH(S$2)=6,$L134,IF(MONTH(S$2)=7,$M134,IF(MONTH(S$2)=8,$N134,IF(MONTH(S$2)=9,$O134,IF(MONTH(S$2)=10,$P134,IF(MONTH(S$2)=11,$Q134,$R134))))))))))) -> 0
C135: Produtividade Área | D135: Produtividade Outbound | E135: =[1]LETs!E135 -> 1 | F135: =[1]LETs!F135 -> 11.31 | G135: =[1]LETs!G135 -> 11.03 | H135: =[1]LETs!H135 -> 12.12 | I135: =[1]LETs!I135 -> 0 | J135: =[1]LETs!J135 -> 0 | K135: =[1]LETs!K135 -> 0 | L135: =[1]LETs!L135 -> 0 | M135: =[1]LETs!M135 -> 0 | N135: =[1]LETs!N135 -> 0 | O135: =[1]LETs!O135 -> 0 | P135: =[1]LETs!P135 -> 0 | Q135: =[1]LETs!Q135 -> 0 | R135: =[1]LETs!R135 -> 0 | S135: =IFERROR(INDEX([1]LETs!$F$3:$AZZ$214,MATCH($D135,[1]LETs!$D$3:$D$214,0),MATCH($S$2,[1]LETs!$F$2:$AZZ$2,0)),0) -> 15.44
D136: Produção (Área) | F136: =[1]LETs!F136 -> 366850 | G136: =[1]LETs!G136 -> 266743 | H136: =[1]LETs!H136 -> 100107 | I136: =[1]LETs!I136 -> 0 | J136: =[1]LETs!J136 -> 0 | K136: =[1]LETs!K136 -> 0 | L136: =[1]LETs!L136 -> 0 | M136: =[1]LETs!M136 -> 0 | N136: =[1]LETs!N136 -> 0 | O136: =[1]LETs!O136 -> 0 | P136: =[1]LETs!P136 -> 0 | Q136: =[1]LETs!Q136 -> 0 | R136: =[1]LETs!R136 -> 0 | S136: =IFERROR(INDEX([1]LETs!$F$3:$AZZ$214,MATCH($D136,[1]LETs!$D$3:$D$214,0),MATCH($S$2,[1]LETs!$F$2:$AZZ$2,0)),0) -> 10836
D137: Quadro Produtivo (Área) | F137: =[1]LETs!F137 -> 4991 | G137: =[1]LETs!G137 -> 3720 | H137: =[1]LETs!H137 -> 1271 | I137: =[1]LETs!I137 -> 0 | J137: =[1]LETs!J137 -> 0 | K137: =[1]LETs!K137 -> 0 | L137: =[1]LETs!L137 -> 0 | M137: =[1]LETs!M137 -> 0 | N137: =[1]LETs!N137 -> 0 | O137: =[1]LETs!O137 -> 0 | P137: =[1]LETs!P137 -> 0 | Q137: =[1]LETs!Q137 -> 0 | R137: =[1]LETs!R137 -> 0 | S137: =IFERROR(INDEX([1]LETs!$F$3:$AZZ$214,MATCH($D137,[1]LETs!$D$3:$D$214,0),MATCH($S$2,[1]LETs!$F$2:$AZZ$2,0)),0) -> 19
D138: Horas (Área) | F138: =[1]LETs!F138 -> 6.5 | G138: =[1]LETs!G138 -> 6.5 | H138: =[1]LETs!H138 -> 6.5 | I138: =[1]LETs!I138 -> 0 | J138: =[1]LETs!J138 -> 0 | K138: =[1]LETs!K138 -> 0 | L138: =[1]LETs!L138 -> 0 | M138: =[1]LETs!M138 -> 0 | N138: =[1]LETs!N138 -> 0 | O138: =[1]LETs!O138 -> 0 | P138: =[1]LETs!P138 -> 0 | Q138: =[1]LETs!Q138 -> 0 | R138: =[1]LETs!R138 -> 0 | S138: =IFERROR(INDEX([1]LETs!$F$3:$AZZ$214,MATCH($D138,[1]LETs!$D$3:$D$214,0),MATCH($S$2,[1]LETs!$F$2:$AZZ$2,0)),0) -> 6.5
D139: Meta | F139: =[1]LETs!F139 -> 12.79353 | G139: =[1]LETs!G139 -> 13.51858917 | H139: =[1]LETs!H139 -> 10.67141874 | I139: =[1]LETs!I139 -> 0 | J139: =[1]LETs!J139 -> 0 | K139: =[1]LETs!K139 -> 0 | L139: =[1]LETs!L139 -> 0 | M139: =[1]LETs!M139 -> 0 | N139: =[1]LETs!N139 -> 0 | O139: =[1]LETs!O139 -> 0 | P139: =[1]LETs!P139 -> 0 | Q139: =[1]LETs!Q139 -> 0 | R139: =[1]LETs!R139 -> 0 | S139: =IF(MONTH(S$2)=1,$G139,IF(MONTH(S$2)=2,$H139,IF(MONTH(S$2)=3,$I139,IF(MONTH(S$2)=4,$J139,IF(MONTH(S$2)=5,$K139,IF(MONTH(S$2)=6,$L139,IF(MONTH(S$2)=7,$M139,IF(MONTH(S$2)=8,$N139,IF(MONTH(S$2)=9,$O139,IF(MONTH(S$2)=10,$P139,IF(MONTH(S$2)=11,$Q139,$R139))))))))))) -> 10.67141874
C140: Reclamações de Clientes | D140: Reclamações de Clientes | E140: =[1]LETs!E140 -> 1 | F140: =[1]LETs!F140 -> 5e-06 | G140: =[1]LETs!G140 -> 8e-06 | H140: =[1]LETs!H140 -> 0 | I140: =[1]LETs!I140 -> 0 | J140: =[1]LETs!J140 -> 0 | K140: =[1]LETs!K140 -> 0 | L140: =[1]LETs!L140 -> 0 | M140: =[1]LETs!M140 -> 0 | N140: =[1]LETs!N140 -> 0 | O140: =[1]LETs!O140 -> 0 | P140: =[1]LETs!P140 -> 0 | Q140: =[1]LETs!Q140 -> 0 | R140: =[1]LETs!R140 -> 0 | S140: =IFERROR(INDEX([1]LETs!$F$3:$AZZ$214,MATCH($D140,[1]LETs!$D$3:$D$214,0),MATCH($S$2,[1]LETs!$F$2:$AZZ$2,0)),0) -> 0
D141: Qtde. Reclamações | F141: =[1]LETs!F141 -> 2 | G141: =[1]LETs!G141 -> 2 | H141: =[1]LETs!H141 -> 0 | I141: =[1]LETs!I141 -> 0 | J141: =[1]LETs!J141 -> 0 | K141: =[1]LETs!K141 -> 0 | L141: =[1]LETs!L141 -> 0 | M141: =[1]LETs!M141 -> 0 | N141: =[1]LETs!N141 -> 0 | O141: =[1]LETs!O141 -> 0 | P141: =[1]LETs!P141 -> 0 | Q141: =[1]LETs!Q141 -> 0 | R141: =[1]LETs!R141 -> 0 | S141: =IFERROR(INDEX([1]LETs!$F$3:$AZZ$214,MATCH($D141,[1]LETs!$D$3:$D$214,0),MATCH($S$2,[1]LETs!$F$2:$AZZ$2,0)),0) -> 0
D142: Expedidos (SEC) | F142: =[1]LETs!F142 -> 364307 | G142: =[1]LETs!G142 -> 266553 | H142: =[1]LETs!H142 -> 97754 | I142: =[1]LETs!I142 -> 0 | J142: =[1]LETs!J142 -> 0 | K142: =[1]LETs!K142 -> 0 | L142: =[1]LETs!L142 -> 0 | M142: =[1]LETs!M142 -> 0 | N142: =[1]LETs!N142 -> 0 | O142: =[1]LETs!O142 -> 0 | P142: =[1]LETs!P142 -> 0 | Q142: =[1]LETs!Q142 -> 0 | R142: =[1]LETs!R142 -> 0 | S142: =IFERROR(INDEX([1]LETs!$F$3:$AZZ$214,MATCH($D142,[1]LETs!$D$3:$D$214,0),MATCH($S$2,[1]LETs!$F$2:$AZZ$2,0)),0) -> 12118
D143: Meta | F143: =[1]LETs!F143 -> 2e-05 | G143: =[1]LETs!G143 -> 1.9e-05 | H143: =[1]LETs!H143 -> 1.9e-05 | I143: =[1]LETs!I143 -> 0 | J143: =[1]LETs!J143 -> 0 | K143: =[1]LETs!K143 -> 0 | L143: =[1]LETs!L143 -> 0 | M143: =[1]LETs!M143 -> 0 | N143: =[1]LETs!N143 -> 0 | O143: =[1]LETs!O143 -> 0 | P143: =[1]LETs!P143 -> 0 | Q143: =[1]LETs!Q143 -> 0 | R143: =[1]LETs!R143 -> 0 | S143: =IF(MONTH(S$2)=1,$G143,IF(MONTH(S$2)=2,$H143,IF(MONTH(S$2)=3,$I143,IF(MONTH(S$2)=4,$J143,IF(MONTH(S$2)=5,$K143,IF(MONTH(S$2)=6,$L143,IF(MONTH(S$2)=7,$M143,IF(MONTH(S$2)=8,$N143,IF(MONTH(S$2)=9,$O143,IF(MONTH(S$2)=10,$P143,IF(MONTH(S$2)=11,$Q143,$R143))))))))))) -> 1.9e-05
C144: Acerto Embalagens | D144: Acerto Embalagens | E144: =[1]LETs!E144 -> 0.5 | F144: =[1]LETs!F144 -> 0.9969 | G144: =[1]LETs!G144 -> 0.9972 | H144: =[1]LETs!H144 -> 0.9957 | I144: =[1]LETs!I144 -> 0 | J144: =[1]LETs!J144 -> 0 | K144: =[1]LETs!K144 -> 0 | L144: =[1]LETs!L144 -> 0 | M144: =[1]LETs!M144 -> 0 | N144: =[1]LETs!N144 -> 0 | O144: =[1]LETs!O144 -> 0 | P144: =[1]LETs!P144 -> 0 | Q144: =[1]LETs!Q144 -> 0 | R144: =[1]LETs!R144 -> 0 | S144: =IFERROR(INDEX([1]LETs!$F$3:$AZZ$214,MATCH($D144,[1]LETs!$D$3:$D$214,0),MATCH($S$2,[1]LETs!$F$2:$AZZ$2,0)),0) -> 
D145: Mono Faturados | F145: =[1]LETs!F145 -> 310487 | G145: =[1]LETs!G145 -> 247183 | H145: =[1]LETs!H145 -> 63304 | I145: =[1]LETs!I145 -> 0 | J145: =[1]LETs!J145 -> 0 | K145: =[1]LETs!K145 -> 0 | L145: =[1]LETs!L145 -> 0 | M145: =[1]LETs!M145 -> 0 | N145: =[1]LETs!N145 -> 0 | O145: =[1]LETs!O145 -> 0 | P145: =[1]LETs!P145 -> 0 | Q145: =[1]LETs!Q145 -> 0 | R145: =[1]LETs!R145 -> 0 | S145: =IFERROR(INDEX([1]LETs!$F$3:$AZZ$214,MATCH($D145,[1]LETs!$D$3:$D$214,0),MATCH($S$2,[1]LETs!$F$2:$AZZ$2,0)),0) -> 0
D146: Nº Acertos | F146: =[1]LETs!F146 -> 309524 | G146: =[1]LETs!G146 -> 246491 | H146: =[1]LETs!H146 -> 63033 | I146: =[1]LETs!I146 -> 0 | J146: =[1]LETs!J146 -> 0 | K146: =[1]LETs!K146 -> 0 | L146: =[1]LETs!L146 -> 0 | M146: =[1]LETs!M146 -> 0 | N146: =[1]LETs!N146 -> 0 | O146: =[1]LETs!O146 -> 0 | P146: =[1]LETs!P146 -> 0 | Q146: =[1]LETs!Q146 -> 0 | R146: =[1]LETs!R146 -> 0 | S146: =IFERROR(INDEX([1]LETs!$F$3:$AZZ$214,MATCH($D146,[1]LETs!$D$3:$D$214,0),MATCH($S$2,[1]LETs!$F$2:$AZZ$2,0)),0) -> 0
D147: Meta | F147: =[1]LETs!F147 -> 0.994 | G147: =[1]LETs!G147 -> 0.994 | H147: =[1]LETs!H147 -> 0.994 | I147: =[1]LETs!I147 -> 0 | J147: =[1]LETs!J147 -> 0 | K147: =[1]LETs!K147 -> 0 | L147: =[1]LETs!L147 -> 0 | M147: =[1]LETs!M147 -> 0 | N147: =[1]LETs!N147 -> 0 | O147: =[1]LETs!O147 -> 0 | P147: =[1]LETs!P147 -> 0 | Q147: =[1]LETs!Q147 -> 0 | R147: =[1]LETs!R147 -> 0 | S147: =IF(MONTH(S$2)=1,$G147,IF(MONTH(S$2)=2,$H147,IF(MONTH(S$2)=3,$I147,IF(MONTH(S$2)=4,$J147,IF(MONTH(S$2)=5,$K147,IF(MONTH(S$2)=6,$L147,IF(MONTH(S$2)=7,$M147,IF(MONTH(S$2)=8,$N147,IF(MONTH(S$2)=9,$O147,IF(MONTH(S$2)=10,$P147,IF(MONTH(S$2)=11,$Q147,$R147))))))))))) -> 0.994
A148: TRANSFERÊNCIA | C148: Absenteísmo | D148: Absenteísmo | F148: =[1]LETs!F148 -> 0.0202 | G148: =[1]LETs!G148 -> 0.0193 | H148: =[1]LETs!H148 -> 0.0228 | I148: =[1]LETs!I148 -> 0 | J148: =[1]LETs!J148 -> 0 | K148: =[1]LETs!K148 -> 0 | L148: =[1]LETs!L148 -> 0 | M148: =[1]LETs!M148 -> 0 | N148: =[1]LETs!N148 -> 0 | O148: =[1]LETs!O148 -> 0 | P148: =[1]LETs!P148 -> 0 | Q148: =[1]LETs!Q148 -> 0 | R148: =[1]LETs!R148 -> 0 | S148: =IFERROR(INDEX([1]LETs!$F$3:$AZZ$214,MATCH($D148,[1]LETs!$D$3:$D$214,0),MATCH($S$2,[1]LETs!$F$2:$AZZ$2,0)),0) -> 0.0139
D149: Quadro Líquido | F149: =[1]LETs!F149 -> 4802 | G149: =[1]LETs!G149 -> 3576 | H149: =[1]LETs!H149 -> 1226 | I149: =[1]LETs!I149 -> 0 | J149: =[1]LETs!J149 -> 0 | K149: =[1]LETs!K149 -> 0 | L149: =[1]LETs!L149 -> 0 | M149: =[1]LETs!M149 -> 0 | N149: =[1]LETs!N149 -> 0 | O149: =[1]LETs!O149 -> 0 | P149: =[1]LETs!P149 -> 0 | Q149: =[1]LETs!Q149 -> 0 | R149: =[1]LETs!R149 -> 0 | S149: =IFERROR(INDEX([1]LETs!$F$3:$AZZ$214,MATCH($D149,[1]LETs!$D$3:$D$214,0),MATCH($S$2,[1]LETs!$F$2:$AZZ$2,0)),0) -> 360
D150: Faltas | F150: =[1]LETs!F150 -> 97 | G150: =[1]LETs!G150 -> 69 | H150: =[1]LETs!H150 -> 28 | I150: =[1]LETs!I150 -> 0 | J150: =[1]LETs!J150 -> 0 | K150: =[1]LETs!K150 -> 0 | L150: =[1]LETs!L150 -> 0 | M150: =[1]LETs!M150 -> 0 | N150: =[1]LETs!N150 -> 0 | O150: =[1]LETs!O150 -> 0 | P150: =[1]LETs!P150 -> 0 | Q150: =[1]LETs!Q150 -> 0 | R150: =[1]LETs!R150 -> 0 | S150: =IFERROR(INDEX([1]LETs!$F$3:$AZZ$214,MATCH($D150,[1]LETs!$D$3:$D$214,0),MATCH($S$2,[1]LETs!$F$2:$AZZ$2,0)),0) -> 5
D151: Quadro Total | F151: =[1]LETs!F151 -> 6026 | G151: =[1]LETs!G151 -> 4488 | H151: =[1]LETs!H151 -> 1538 | I151: =[1]LETs!I151 -> 0 | J151: =[1]LETs!J151 -> 0 | K151: =[1]LETs!K151 -> 0 | L151: =[1]LETs!L151 -> 0 | M151: =[1]LETs!M151 -> 0 | N151: =[1]LETs!N151 -> 0 | O151: =[1]LETs!O151 -> 0 | P151: =[1]LETs!P151 -> 0 | Q151: =[1]LETs!Q151 -> 0 | R151: =[1]LETs!R151 -> 0 | S151: =IFERROR(INDEX([1]LETs!$F$3:$AZZ$214,MATCH($D151,[1]LETs!$D$3:$D$214,0),MATCH($S$2,[1]LETs!$F$2:$AZZ$2,0)),0) -> 438
D152: Ger. e Coord. | F152: =[1]LETs!F152 -> 72 | G152: =[1]LETs!G152 -> 54 | H152: =[1]LETs!H152 -> 18 | I152: =[1]LETs!I152 -> 0 | J152: =[1]LETs!J152 -> 0 | K152: =[1]LETs!K152 -> 0 | L152: =[1]LETs!L152 -> 0 | M152: =[1]LETs!M152 -> 0 | N152: =[1]LETs!N152 -> 0 | O152: =[1]LETs!O152 -> 0 | P152: =[1]LETs!P152 -> 0 | Q152: =[1]LETs!Q152 -> 0 | R152: =[1]LETs!R152 -> 0 | S152: =IFERROR(INDEX([1]LETs!$F$3:$AZZ$214,MATCH($D152,[1]LETs!$D$3:$D$214,0),MATCH($S$2,[1]LETs!$F$2:$AZZ$2,0)),0) -> 7
D153: Sup. e Liderança | F153: =[1]LETs!F153 -> 534 | G153: =[1]LETs!G153 -> 392 | H153: =[1]LETs!H153 -> 142 | I153: =[1]LETs!I153 -> 0 | J153: =[1]LETs!J153 -> 0 | K153: =[1]LETs!K153 -> 0 | L153: =[1]LETs!L153 -> 0 | M153: =[1]LETs!M153 -> 0 | N153: =[1]LETs!N153 -> 0 | O153: =[1]LETs!O153 -> 0 | P153: =[1]LETs!P153 -> 0 | Q153: =[1]LETs!Q153 -> 0 | R153: =[1]LETs!R153 -> 0 | S153: =IFERROR(INDEX([1]LETs!$F$3:$AZZ$214,MATCH($D153,[1]LETs!$D$3:$D$214,0),MATCH($S$2,[1]LETs!$F$2:$AZZ$2,0)),0) -> 42
D154: Inativos | F154: =[1]LETs!F154 -> 429 | G154: =[1]LETs!G154 -> 322 | H154: =[1]LETs!H154 -> 107 | I154: =[1]LETs!I154 -> 0 | J154: =[1]LETs!J154 -> 0 | K154: =[1]LETs!K154 -> 0 | L154: =[1]LETs!L154 -> 0 | M154: =[1]LETs!M154 -> 0 | N154: =[1]LETs!N154 -> 0 | O154: =[1]LETs!O154 -> 0 | P154: =[1]LETs!P154 -> 0 | Q154: =[1]LETs!Q154 -> 0 | R154: =[1]LETs!R154 -> 0 | S154: =IFERROR(INDEX([1]LETs!$F$3:$AZZ$214,MATCH($D154,[1]LETs!$D$3:$D$214,0),MATCH($S$2,[1]LETs!$F$2:$AZZ$2,0)),0) -> 21
D155: Ausências | F155: =[1]LETs!F155 -> 723 | G155: =[1]LETs!G155 -> 536 | H155: =[1]LETs!H155 -> 187 | I155: =[1]LETs!I155 -> 0 | J155: =[1]LETs!J155 -> 0 | K155: =[1]LETs!K155 -> 0 | L155: =[1]LETs!L155 -> 0 | M155: =[1]LETs!M155 -> 0 | N155: =[1]LETs!N155 -> 0 | O155: =[1]LETs!O155 -> 0 | P155: =[1]LETs!P155 -> 0 | Q155: =[1]LETs!Q155 -> 0 | R155: =[1]LETs!R155 -> 0 | S155: =IFERROR(INDEX([1]LETs!$F$3:$AZZ$214,MATCH($D155,[1]LETs!$D$3:$D$214,0),MATCH($S$2,[1]LETs!$F$2:$AZZ$2,0)),0) -> 50
D156: Sumidos | F156: =[1]LETs!F156 -> 0 | G156: =[1]LETs!G156 -> 0 | H156: =[1]LETs!H156 -> 0 | I156: =[1]LETs!I156 -> 0 | J156: =[1]LETs!J156 -> 0 | K156: =[1]LETs!K156 -> 0 | L156: =[1]LETs!L156 -> 0 | M156: =[1]LETs!M156 -> 0 | N156: =[1]LETs!N156 -> 0 | O156: =[1]LETs!O156 -> 0 | P156: =[1]LETs!P156 -> 0 | Q156: =[1]LETs!Q156 -> 0 | R156: =[1]LETs!R156 -> 0 | S156: =IFERROR(INDEX([1]LETs!$F$3:$AZZ$214,MATCH($D156,[1]LETs!$D$3:$D$214,0),MATCH($S$2,[1]LETs!$F$2:$AZZ$2,0)),0) -> 0
D157: Meta | F157: =[1]LETs!F157 -> 0.024 | G157: =[1]LETs!G157 -> 0.024 | H157: =[1]LETs!H157 -> 0.024 | I157: =[1]LETs!I157 -> 0 | J157: =[1]LETs!J157 -> 0 | K157: =[1]LETs!K157 -> 0 | L157: =[1]LETs!L157 -> 0 | M157: =[1]LETs!M157 -> 0 | N157: =[1]LETs!N157 -> 0 | O157: =[1]LETs!O157 -> 0 | P157: =[1]LETs!P157 -> 0 | Q157: =[1]LETs!Q157 -> 0 | R157: =[1]LETs!R157 -> 0 | S157: =IF(MONTH(S$2)=1,$G157,IF(MONTH(S$2)=2,$H157,IF(MONTH(S$2)=3,$I157,IF(MONTH(S$2)=4,$J157,IF(MONTH(S$2)=5,$K157,IF(MONTH(S$2)=6,$L157,IF(MONTH(S$2)=7,$M157,IF(MONTH(S$2)=8,$N157,IF(MONTH(S$2)=9,$O157,IF(MONTH(S$2)=10,$P157,IF(MONTH(S$2)=11,$Q157,$R157))))))))))) -> 0.024
C158: Acidentes (Típicos + Trajeto) | D158: Acidentes | F158: =[1]LETs!F158 -> 0 | G158: =[1]LETs!G158 -> 0 | H158: =[1]LETs!H158 -> 0 | I158: =[1]LETs!I158 -> 0 | J158: =[1]LETs!J158 -> 0 | K158: =[1]LETs!K158 -> 0 | L158: =[1]LETs!L158 -> 0 | M158: =[1]LETs!M158 -> 0 | N158: =[1]LETs!N158 -> 0 | O158: =[1]LETs!O158 -> 0 | P158: =[1]LETs!P158 -> 0 | Q158: =[1]LETs!Q158 -> 0 | R158: =[1]LETs!R158 -> 0 | S158: =IFERROR(INDEX([1]LETs!$F$3:$AZZ$214,MATCH($D158,[1]LETs!$D$3:$D$214,0),MATCH($S$2,[1]LETs!$F$2:$AZZ$2,0)),0) -> 0
D159: Meta | F159: =[1]LETs!F159 -> 0 | G159: =[1]LETs!G159 -> 0 | H159: =[1]LETs!H159 -> 0 | I159: =[1]LETs!I159 -> 0 | J159: =[1]LETs!J159 -> 0 | K159: =[1]LETs!K159 -> 0 | L159: =[1]LETs!L159 -> 0 | M159: =[1]LETs!M159 -> 0 | N159: =[1]LETs!N159 -> 0 | O159: =[1]LETs!O159 -> 0 | P159: =[1]LETs!P159 -> 0 | Q159: =[1]LETs!Q159 -> 0 | R159: =[1]LETs!R159 -> 0 | S159: =IF(MONTH(S$2)=1,$G159,IF(MONTH(S$2)=2,$H159,IF(MONTH(S$2)=3,$I159,IF(MONTH(S$2)=4,$J159,IF(MONTH(S$2)=5,$K159,IF(MONTH(S$2)=6,$L159,IF(MONTH(S$2)=7,$M159,IF(MONTH(S$2)=8,$N159,IF(MONTH(S$2)=9,$O159,IF(MONTH(S$2)=10,$P159,IF(MONTH(S$2)=11,$Q159,$R159))))))))))) -> 0
C160: Anomalias | D160: Anomalias | F160: =[1]LETs!F160 -> 0 | G160: =[1]LETs!G160 -> 0 | H160: =[1]LETs!H160 -> 0 | I160: =[1]LETs!I160 -> 0 | J160: =[1]LETs!J160 -> 0 | K160: =[1]LETs!K160 -> 0 | L160: =[1]LETs!L160 -> 0 | M160: =[1]LETs!M160 -> 0 | N160: =[1]LETs!N160 -> 0 | O160: =[1]LETs!O160 -> 0 | P160: =[1]LETs!P160 -> 0 | Q160: =[1]LETs!Q160 -> 0 | R160: =[1]LETs!R160 -> 0 | S160: =IFERROR(INDEX([1]LETs!$F$3:$AZZ$214,MATCH($D160,[1]LETs!$D$3:$D$214,0),MATCH($S$2,[1]LETs!$F$2:$AZZ$2,0)),0) -> 0
D161: Meta | F161: =[1]LETs!F161 -> 0 | G161: =[1]LETs!G161 -> 0 | H161: =[1]LETs!H161 -> 0 | I161: =[1]LETs!I161 -> 0 | J161: =[1]LETs!J161 -> 0 | K161: =[1]LETs!K161 -> 0 | L161: =[1]LETs!L161 -> 0 | M161: =[1]LETs!M161 -> 0 | N161: =[1]LETs!N161 -> 0 | O161: =[1]LETs!O161 -> 0 | P161: =[1]LETs!P161 -> 0 | Q161: =[1]LETs!Q161 -> 0 | R161: =[1]LETs!R161 -> 0 | S161: =IF(MONTH(S$2)=1,$G161,IF(MONTH(S$2)=2,$H161,IF(MONTH(S$2)=3,$I161,IF(MONTH(S$2)=4,$J161,IF(MONTH(S$2)=5,$K161,IF(MONTH(S$2)=6,$L161,IF(MONTH(S$2)=7,$M161,IF(MONTH(S$2)=8,$N161,IF(MONTH(S$2)=9,$O161,IF(MONTH(S$2)=10,$P161,IF(MONTH(S$2)=11,$Q161,$R161))))))))))) -> 0
C162: Produtividade Área | D162: Produtividade Transferência | F162: =[1]LETs!F162 -> 1.13 | G162: =[1]LETs!G162 -> 0.36 | H162: =[1]LETs!H162 -> 1.21 | I162: =[1]LETs!I162 -> 0 | J162: =[1]LETs!J162 -> 0 | K162: =[1]LETs!K162 -> 0 | L162: =[1]LETs!L162 -> 0 | M162: =[1]LETs!M162 -> 0 | N162: =[1]LETs!N162 -> 0 | O162: =[1]LETs!O162 -> 0 | P162: =[1]LETs!P162 -> 0 | Q162: =[1]LETs!Q162 -> 0 | R162: =[1]LETs!R162 -> 0 | S162: =IFERROR(INDEX([1]LETs!$F$3:$AZZ$214,MATCH($D162,[1]LETs!$D$3:$D$214,0),MATCH($S$2,[1]LETs!$F$2:$AZZ$2,0)),0) -> 25.05
D163: Produção (Área) | F163: =[1]LETs!F163 -> 366850 | G163: =[1]LETs!G163 -> 266743 | H163: =[1]LETs!H163 -> 100107 | I163: =[1]LETs!I163 -> 0 | J163: =[1]LETs!J163 -> 0 | K163: =[1]LETs!K163 -> 0 | L163: =[1]LETs!L163 -> 0 | M163: =[1]LETs!M163 -> 0 | N163: =[1]LETs!N163 -> 0 | O163: =[1]LETs!O163 -> 0 | P163: =[1]LETs!P163 -> 0 | Q163: =[1]LETs!Q163 -> 0 | R163: =[1]LETs!R163 -> 0 | S163: =IFERROR(INDEX([1]LETs!$F$3:$AZZ$214,MATCH($D163,[1]LETs!$D$3:$D$214,0),MATCH($S$2,[1]LETs!$F$2:$AZZ$2,0)),0) -> 10836
D164: Quadro Produtivo (Área) | F164: =[1]LETs!F164 -> 4991 | G164: =[1]LETs!G164 -> 3720 | H164: =[1]LETs!H164 -> 1271 | I164: =[1]LETs!I164 -> 0 | J164: =[1]LETs!J164 -> 0 | K164: =[1]LETs!K164 -> 0 | L164: =[1]LETs!L164 -> 0 | M164: =[1]LETs!M164 -> 0 | N164: =[1]LETs!N164 -> 0 | O164: =[1]LETs!O164 -> 0 | P164: =[1]LETs!P164 -> 0 | Q164: =[1]LETs!Q164 -> 0 | R164: =[1]LETs!R164 -> 0 | S164: =IFERROR(INDEX([1]LETs!$F$3:$AZZ$214,MATCH($D164,[1]LETs!$D$3:$D$214,0),MATCH($S$2,[1]LETs!$F$2:$AZZ$2,0)),0) -> 19
D165: Horas (Área) | F165: =[1]LETs!F165 -> 65 | G165: =[1]LETs!G165 -> 201.5 | H165: =[1]LETs!H165 -> 65 | I165: =[1]LETs!I165 -> 0 | J165: =[1]LETs!J165 -> 0 | K165: =[1]LETs!K165 -> 0 | L165: =[1]LETs!L165 -> 0 | M165: =[1]LETs!M165 -> 0 | N165: =[1]LETs!N165 -> 0 | O165: =[1]LETs!O165 -> 0 | P165: =[1]LETs!P165 -> 0 | Q165: =[1]LETs!Q165 -> 0 | R165: =[1]LETs!R165 -> 0 | S165: =IFERROR(INDEX([1]LETs!$F$3:$AZZ$214,MATCH($D165,[1]LETs!$D$3:$D$214,0),MATCH($S$2,[1]LETs!$F$2:$AZZ$2,0)),0) -> 6.5
D166: Meta | F166: =[1]LETs!F166 -> 21.32 | G166: =[1]LETs!G166 -> 21.32 | H166: =[1]LETs!H166 -> 21.32 | I166: =[1]LETs!I166 -> 0 | J166: =[1]LETs!J166 -> 0 | K166: =[1]LETs!K166 -> 0 | L166: =[1]LETs!L166 -> 0 | M166: =[1]LETs!M166 -> 0 | N166: =[1]LETs!N166 -> 0 | O166: =[1]LETs!O166 -> 0 | P166: =[1]LETs!P166 -> 0 | Q166: =[1]LETs!Q166 -> 0 | R166: =[1]LETs!R166 -> 0 | S166: =IF(MONTH(S$2)=1,$G166,IF(MONTH(S$2)=2,$H166,IF(MONTH(S$2)=3,$I166,IF(MONTH(S$2)=4,$J166,IF(MONTH(S$2)=5,$K166,IF(MONTH(S$2)=6,$L166,IF(MONTH(S$2)=7,$M166,IF(MONTH(S$2)=8,$N166,IF(MONTH(S$2)=9,$O166,IF(MONTH(S$2)=10,$P166,IF(MONTH(S$2)=11,$Q166,$R166))))))))))) -> 21.32
C167: NF's em Aberto | D167: Seropédica (Origem) | F167: =[1]LETs!F167 -> 25885 | G167: =[1]LETs!G167 -> 20560 | H167: =[1]LETs!H167 -> 5325 | I167: =[1]LETs!I167 -> 0 | J167: =[1]LETs!J167 -> 0 | K167: =[1]LETs!K167 -> 0 | L167: =[1]LETs!L167 -> 0 | M167: =[1]LETs!M167 -> 0 | N167: =[1]LETs!N167 -> 0 | O167: =[1]LETs!O167 -> 0 | P167: =[1]LETs!P167 -> 0 | Q167: =[1]LETs!Q167 -> 0 | R167: =[1]LETs!R167 -> 0 | S167: =IFERROR(INDEX([1]LETs!$F$3:$AZZ$214,MATCH($D167,[1]LETs!$D$3:$D$214,0),MATCH($S$2,[1]LETs!$F$2:$AZZ$2,0)),0) -> 0
D168: Demais < 10 Dias | F168: =[1]LETs!F168 -> 3472 | G168: =[1]LETs!G168 -> 2025 | H168: =[1]LETs!H168 -> 1447 | I168: =[1]LETs!I168 -> 0 | J168: =[1]LETs!J168 -> 0 | K168: =[1]LETs!K168 -> 0 | L168: =[1]LETs!L168 -> 0 | M168: =[1]LETs!M168 -> 0 | N168: =[1]LETs!N168 -> 0 | O168: =[1]LETs!O168 -> 0 | P168: =[1]LETs!P168 -> 0 | Q168: =[1]LETs!Q168 -> 0 | R168: =[1]LETs!R168 -> 0 | S168: =IFERROR(INDEX([1]LETs!$F$3:$AZZ$214,MATCH($D168,[1]LETs!$D$3:$D$214,0),MATCH($S$2,[1]LETs!$F$2:$AZZ$2,0)),0) -> 0
D169: Vencidos > 15 Dias | F169: =[1]LETs!F169 -> 8150 | G169: =[1]LETs!G169 -> 7224 | H169: =[1]LETs!H169 -> 926 | I169: =[1]LETs!I169 -> 0 | J169: =[1]LETs!J169 -> 0 | K169: =[1]LETs!K169 -> 0 | L169: =[1]LETs!L169 -> 0 | M169: =[1]LETs!M169 -> 0 | N169: =[1]LETs!N169 -> 0 | O169: =[1]LETs!O169 -> 0 | P169: =[1]LETs!P169 -> 0 | Q169: =[1]LETs!Q169 -> 0 | R169: =[1]LETs!R169 -> 0 | S169: =IFERROR(INDEX([1]LETs!$F$3:$AZZ$214,MATCH($D169,[1]LETs!$D$3:$D$214,0),MATCH($S$2,[1]LETs!$F$2:$AZZ$2,0)),0) -> 0
D170: À Vencer > 10 Dias | F170: =[1]LETs!F170 -> 14263 | G170: =[1]LETs!G170 -> 11311 | H170: =[1]LETs!H170 -> 2952 | I170: =[1]LETs!I170 -> 0 | J170: =[1]LETs!J170 -> 0 | K170: =[1]LETs!K170 -> 0 | L170: =[1]LETs!L170 -> 0 | M170: =[1]LETs!M170 -> 0 | N170: =[1]LETs!N170 -> 0 | O170: =[1]LETs!O170 -> 0 | P170: =[1]LETs!P170 -> 0 | Q170: =[1]LETs!Q170 -> 0 | R170: =[1]LETs!R170 -> 0 | S170: =IFERROR(INDEX([1]LETs!$F$3:$AZZ$214,MATCH($D170,[1]LETs!$D$3:$D$214,0),MATCH($S$2,[1]LETs!$F$2:$AZZ$2,0)),0) -> 0
D171: Meta | F171: =[1]LETs!F171 -> 4 | G171: =[1]LETs!G171 -> 4 | H171: =[1]LETs!H171 -> 4 | I171: =[1]LETs!I171 -> 0 | J171: =[1]LETs!J171 -> 0 | K171: =[1]LETs!K171 -> 0 | L171: =[1]LETs!L171 -> 0 | M171: =[1]LETs!M171 -> 0 | N171: =[1]LETs!N171 -> 0 | O171: =[1]LETs!O171 -> 0 | P171: =[1]LETs!P171 -> 0 | Q171: =[1]LETs!Q171 -> 0 | R171: =[1]LETs!R171 -> 0 | S171: =IF(MONTH(S$2)=1,$G171,IF(MONTH(S$2)=2,$H171,IF(MONTH(S$2)=3,$I171,IF(MONTH(S$2)=4,$J171,IF(MONTH(S$2)=5,$K171,IF(MONTH(S$2)=6,$L171,IF(MONTH(S$2)=7,$M171,IF(MONTH(S$2)=8,$N171,IF(MONTH(S$2)=9,$O171,IF(MONTH(S$2)=10,$P171,IF(MONTH(S$2)=11,$Q171,$R171))))))))))) -> 4
D172: Belém | F172: =[1]LETs!F172 -> 0 | G172: =[1]LETs!G172 -> 0 | H172: =[1]LETs!H172 -> 0 | I172: =[1]LETs!I172 -> 0 | J172: =[1]LETs!J172 -> 0 | K172: =[1]LETs!K172 -> 0 | L172: =[1]LETs!L172 -> 0 | M172: =[1]LETs!M172 -> 0 | N172: =[1]LETs!N172 -> 0 | O172: =[1]LETs!O172 -> 0 | P172: =[1]LETs!P172 -> 0 | Q172: =[1]LETs!Q172 -> 0 | R172: =[1]LETs!R172 -> 0 | S172: =IFERROR(INDEX([1]LETs!$F$3:$AZZ$214,MATCH($D172,[1]LETs!$D$3:$D$214,0),MATCH($S$2,[1]LETs!$F$2:$AZZ$2,0)),0) -> 0
D173: Meta | F173: =[1]LETs!F173 -> 15 | G173: =[1]LETs!G173 -> 15 | H173: =[1]LETs!H173 -> 15 | I173: =[1]LETs!I173 -> 0 | J173: =[1]LETs!J173 -> 0 | K173: =[1]LETs!K173 -> 0 | L173: =[1]LETs!L173 -> 0 | M173: =[1]LETs!M173 -> 0 | N173: =[1]LETs!N173 -> 0 | O173: =[1]LETs!O173 -> 0 | P173: =[1]LETs!P173 -> 0 | Q173: =[1]LETs!Q173 -> 0 | R173: =[1]LETs!R173 -> 0 | S173: =IF(MONTH(S$2)=1,$G173,IF(MONTH(S$2)=2,$H173,IF(MONTH(S$2)=3,$I173,IF(MONTH(S$2)=4,$J173,IF(MONTH(S$2)=5,$K173,IF(MONTH(S$2)=6,$L173,IF(MONTH(S$2)=7,$M173,IF(MONTH(S$2)=8,$N173,IF(MONTH(S$2)=9,$O173,IF(MONTH(S$2)=10,$P173,IF(MONTH(S$2)=11,$Q173,$R173))))))))))) -> 15
D174: Cajamar | F174: =[1]LETs!F174 -> 0 | G174: =[1]LETs!G174 -> 0 | H174: =[1]LETs!H174 -> 0 | I174: =[1]LETs!I174 -> 0 | J174: =[1]LETs!J174 -> 0 | K174: =[1]LETs!K174 -> 0 | L174: =[1]LETs!L174 -> 0 | M174: =[1]LETs!M174 -> 0 | N174: =[1]LETs!N174 -> 0 | O174: =[1]LETs!O174 -> 0 | P174: =[1]LETs!P174 -> 0 | Q174: =[1]LETs!Q174 -> 0 | R174: =[1]LETs!R174 -> 0 | S174: =IFERROR(INDEX([1]LETs!$F$3:$AZZ$214,MATCH($D174,[1]LETs!$D$3:$D$214,0),MATCH($S$2,[1]LETs!$F$2:$AZZ$2,0)),0) -> 0
D175: Meta | F175: =[1]LETs!F175 -> 4 | G175: =[1]LETs!G175 -> 4 | H175: =[1]LETs!H175 -> 4 | I175: =[1]LETs!I175 -> 0 | J175: =[1]LETs!J175 -> 0 | K175: =[1]LETs!K175 -> 0 | L175: =[1]LETs!L175 -> 0 | M175: =[1]LETs!M175 -> 0 | N175: =[1]LETs!N175 -> 0 | O175: =[1]LETs!O175 -> 0 | P175: =[1]LETs!P175 -> 0 | Q175: =[1]LETs!Q175 -> 0 | R175: =[1]LETs!R175 -> 0 | S175: =IF(MONTH(S$2)=1,$G175,IF(MONTH(S$2)=2,$H175,IF(MONTH(S$2)=3,$I175,IF(MONTH(S$2)=4,$J175,IF(MONTH(S$2)=5,$K175,IF(MONTH(S$2)=6,$L175,IF(MONTH(S$2)=7,$M175,IF(MONTH(S$2)=8,$N175,IF(MONTH(S$2)=9,$O175,IF(MONTH(S$2)=10,$P175,IF(MONTH(S$2)=11,$Q175,$R175))))))))))) -> 4
D176: Curitiba | F176: =[1]LETs!F176 -> 0 | G176: =[1]LETs!G176 -> 0 | H176: =[1]LETs!H176 -> 0 | I176: =[1]LETs!I176 -> 0 | J176: =[1]LETs!J176 -> 0 | K176: =[1]LETs!K176 -> 0 | L176: =[1]LETs!L176 -> 0 | M176: =[1]LETs!M176 -> 0 | N176: =[1]LETs!N176 -> 0 | O176: =[1]LETs!O176 -> 0 | P176: =[1]LETs!P176 -> 0 | Q176: =[1]LETs!Q176 -> 0 | R176: =[1]LETs!R176 -> 0 | S176: =IFERROR(INDEX([1]LETs!$F$3:$AZZ$214,MATCH($D176,[1]LETs!$D$3:$D$214,0),MATCH($S$2,[1]LETs!$F$2:$AZZ$2,0)),0) -> 0
D177: Meta | F177: =[1]LETs!F177 -> 6 | G177: =[1]LETs!G177 -> 6 | H177: =[1]LETs!H177 -> 6 | I177: =[1]LETs!I177 -> 0 | J177: =[1]LETs!J177 -> 0 | K177: =[1]LETs!K177 -> 0 | L177: =[1]LETs!L177 -> 0 | M177: =[1]LETs!M177 -> 0 | N177: =[1]LETs!N177 -> 0 | O177: =[1]LETs!O177 -> 0 | P177: =[1]LETs!P177 -> 0 | Q177: =[1]LETs!Q177 -> 0 | R177: =[1]LETs!R177 -> 0 | S177: =IF(MONTH(S$2)=1,$G177,IF(MONTH(S$2)=2,$H177,IF(MONTH(S$2)=3,$I177,IF(MONTH(S$2)=4,$J177,IF(MONTH(S$2)=5,$K177,IF(MONTH(S$2)=6,$L177,IF(MONTH(S$2)=7,$M177,IF(MONTH(S$2)=8,$N177,IF(MONTH(S$2)=9,$O177,IF(MONTH(S$2)=10,$P177,IF(MONTH(S$2)=11,$Q177,$R177))))))))))) -> 6
D178: Contagem | F178: =[1]LETs!F178 -> 0 | G178: =[1]LETs!G178 -> 0 | H178: =[1]LETs!H178 -> 0 | I178: =[1]LETs!I178 -> 0 | J178: =[1]LETs!J178 -> 0 | K178: =[1]LETs!K178 -> 0 | L178: =[1]LETs!L178 -> 0 | M178: =[1]LETs!M178 -> 0 | N178: =[1]LETs!N178 -> 0 | O178: =[1]LETs!O178 -> 0 | P178: =[1]LETs!P178 -> 0 | Q178: =[1]LETs!Q178 -> 0 | R178: =[1]LETs!R178 -> 0 | S178: =IFERROR(INDEX([1]LETs!$F$3:$AZZ$214,MATCH($D178,[1]LETs!$D$3:$D$214,0),MATCH($S$2,[1]LETs!$F$2:$AZZ$2,0)),0) -> 0
D179: Meta | F179: =[1]LETs!F179 -> 4 | G179: =[1]LETs!G179 -> 4 | H179: =[1]LETs!H179 -> 4 | I179: =[1]LETs!I179 -> 0 | J179: =[1]LETs!J179 -> 0 | K179: =[1]LETs!K179 -> 0 | L179: =[1]LETs!L179 -> 0 | M179: =[1]LETs!M179 -> 0 | N179: =[1]LETs!N179 -> 0 | O179: =[1]LETs!O179 -> 0 | P179: =[1]LETs!P179 -> 0 | Q179: =[1]LETs!Q179 -> 0 | R179: =[1]LETs!R179 -> 0 | S179: =IF(MONTH(S$2)=1,$G179,IF(MONTH(S$2)=2,$H179,IF(MONTH(S$2)=3,$I179,IF(MONTH(S$2)=4,$J179,IF(MONTH(S$2)=5,$K179,IF(MONTH(S$2)=6,$L179,IF(MONTH(S$2)=7,$M179,IF(MONTH(S$2)=8,$N179,IF(MONTH(S$2)=9,$O179,IF(MONTH(S$2)=10,$P179,IF(MONTH(S$2)=11,$Q179,$R179))))))))))) -> 4
D180: Fortaleza | F180: =[1]LETs!F180 -> 0 | G180: =[1]LETs!G180 -> 0 | H180: =[1]LETs!H180 -> 0 | I180: =[1]LETs!I180 -> 0 | J180: =[1]LETs!J180 -> 0 | K180: =[1]LETs!K180 -> 0 | L180: =[1]LETs!L180 -> 0 | M180: =[1]LETs!M180 -> 0 | N180: =[1]LETs!N180 -> 0 | O180: =[1]LETs!O180 -> 0 | P180: =[1]LETs!P180 -> 0 | Q180: =[1]LETs!Q180 -> 0 | R180: =[1]LETs!R180 -> 0 | S180: =IFERROR(INDEX([1]LETs!$F$3:$AZZ$214,MATCH($D180,[1]LETs!$D$3:$D$214,0),MATCH($S$2,[1]LETs!$F$2:$AZZ$2,0)),0) -> 0
D181: Meta | F181: =[1]LETs!F181 -> 8 | G181: =[1]LETs!G181 -> 8 | H181: =[1]LETs!H181 -> 8 | I181: =[1]LETs!I181 -> 0 | J181: =[1]LETs!J181 -> 0 | K181: =[1]LETs!K181 -> 0 | L181: =[1]LETs!L181 -> 0 | M181: =[1]LETs!M181 -> 0 | N181: =[1]LETs!N181 -> 0 | O181: =[1]LETs!O181 -> 0 | P181: =[1]LETs!P181 -> 0 | Q181: =[1]LETs!Q181 -> 0 | R181: =[1]LETs!R181 -> 0 | S181: =IF(MONTH(S$2)=1,$G181,IF(MONTH(S$2)=2,$H181,IF(MONTH(S$2)=3,$I181,IF(MONTH(S$2)=4,$J181,IF(MONTH(S$2)=5,$K181,IF(MONTH(S$2)=6,$L181,IF(MONTH(S$2)=7,$M181,IF(MONTH(S$2)=8,$N181,IF(MONTH(S$2)=9,$O181,IF(MONTH(S$2)=10,$P181,IF(MONTH(S$2)=11,$Q181,$R181))))))))))) -> 8
D182: Gravataí | F182: =[1]LETs!F182 -> 0 | G182: =[1]LETs!G182 -> 0 | H182: =[1]LETs!H182 -> 0 | I182: =[1]LETs!I182 -> 0 | J182: =[1]LETs!J182 -> 0 | K182: =[1]LETs!K182 -> 0 | L182: =[1]LETs!L182 -> 0 | M182: =[1]LETs!M182 -> 0 | N182: =[1]LETs!N182 -> 0 | O182: =[1]LETs!O182 -> 0 | P182: =[1]LETs!P182 -> 0 | Q182: =[1]LETs!Q182 -> 0 | R182: =[1]LETs!R182 -> 0 | S182: =IFERROR(INDEX([1]LETs!$F$3:$AZZ$214,MATCH($D182,[1]LETs!$D$3:$D$214,0),MATCH($S$2,[1]LETs!$F$2:$AZZ$2,0)),0) -> 0
D183: Meta | F183: =[1]LETs!F183 -> 6 | G183: =[1]LETs!G183 -> 6 | H183: =[1]LETs!H183 -> 6 | I183: =[1]LETs!I183 -> 0 | J183: =[1]LETs!J183 -> 0 | K183: =[1]LETs!K183 -> 0 | L183: =[1]LETs!L183 -> 0 | M183: =[1]LETs!M183 -> 0 | N183: =[1]LETs!N183 -> 0 | O183: =[1]LETs!O183 -> 0 | P183: =[1]LETs!P183 -> 0 | Q183: =[1]LETs!Q183 -> 0 | R183: =[1]LETs!R183 -> 0 | S183: =IF(MONTH(S$2)=1,$G183,IF(MONTH(S$2)=2,$H183,IF(MONTH(S$2)=3,$I183,IF(MONTH(S$2)=4,$J183,IF(MONTH(S$2)=5,$K183,IF(MONTH(S$2)=6,$L183,IF(MONTH(S$2)=7,$M183,IF(MONTH(S$2)=8,$N183,IF(MONTH(S$2)=9,$O183,IF(MONTH(S$2)=10,$P183,IF(MONTH(S$2)=11,$Q183,$R183))))))))))) -> 6
D184: Itapevi | F184: =[1]LETs!F184 -> 0 | G184: =[1]LETs!G184 -> 0 | H184: =[1]LETs!H184 -> 0 | I184: =[1]LETs!I184 -> 0 | J184: =[1]LETs!J184 -> 0 | K184: =[1]LETs!K184 -> 0 | L184: =[1]LETs!L184 -> 0 | M184: =[1]LETs!M184 -> 0 | N184: =[1]LETs!N184 -> 0 | O184: =[1]LETs!O184 -> 0 | P184: =[1]LETs!P184 -> 0 | Q184: =[1]LETs!Q184 -> 0 | R184: =[1]LETs!R184 -> 0 | S184: =IFERROR(INDEX([1]LETs!$F$3:$AZZ$214,MATCH($D184,[1]LETs!$D$3:$D$214,0),MATCH($S$2,[1]LETs!$F$2:$AZZ$2,0)),0) -> 0
D185: Meta | F185: =[1]LETs!F185 -> 4 | G185: =[1]LETs!G185 -> 4 | H185: =[1]LETs!H185 -> 4 | I185: =[1]LETs!I185 -> 0 | J185: =[1]LETs!J185 -> 0 | K185: =[1]LETs!K185 -> 0 | L185: =[1]LETs!L185 -> 0 | M185: =[1]LETs!M185 -> 0 | N185: =[1]LETs!N185 -> 0 | O185: =[1]LETs!O185 -> 0 | P185: =[1]LETs!P185 -> 0 | Q185: =[1]LETs!Q185 -> 0 | R185: =[1]LETs!R185 -> 0 | S185: =IF(MONTH(S$2)=1,$G185,IF(MONTH(S$2)=2,$H185,IF(MONTH(S$2)=3,$I185,IF(MONTH(S$2)=4,$J185,IF(MONTH(S$2)=5,$K185,IF(MONTH(S$2)=6,$L185,IF(MONTH(S$2)=7,$M185,IF(MONTH(S$2)=8,$N185,IF(MONTH(S$2)=9,$O185,IF(MONTH(S$2)=10,$P185,IF(MONTH(S$2)=11,$Q185,$R185))))))))))) -> 4
D186: Recife | F186: =[1]LETs!F186 -> 0 | G186: =[1]LETs!G186 -> 0 | H186: =[1]LETs!H186 -> 0 | I186: =[1]LETs!I186 -> 0 | J186: =[1]LETs!J186 -> 0 | K186: =[1]LETs!K186 -> 0 | L186: =[1]LETs!L186 -> 0 | M186: =[1]LETs!M186 -> 0 | N186: =[1]LETs!N186 -> 0 | O186: =[1]LETs!O186 -> 0 | P186: =[1]LETs!P186 -> 0 | Q186: =[1]LETs!Q186 -> 0 | R186: =[1]LETs!R186 -> 0 | S186: =IFERROR(INDEX([1]LETs!$F$3:$AZZ$214,MATCH($D186,[1]LETs!$D$3:$D$214,0),MATCH($S$2,[1]LETs!$F$2:$AZZ$2,0)),0) -> 0
D187: Meta | F187: =[1]LETs!F187 -> 8 | G187: =[1]LETs!G187 -> 8 | H187: =[1]LETs!H187 -> 8 | I187: =[1]LETs!I187 -> 0 | J187: =[1]LETs!J187 -> 0 | K187: =[1]LETs!K187 -> 0 | L187: =[1]LETs!L187 -> 0 | M187: =[1]LETs!M187 -> 0 | N187: =[1]LETs!N187 -> 0 | O187: =[1]LETs!O187 -> 0 | P187: =[1]LETs!P187 -> 0 | Q187: =[1]LETs!Q187 -> 0 | R187: =[1]LETs!R187 -> 0 | S187: =IF(MONTH(S$2)=1,$G187,IF(MONTH(S$2)=2,$H187,IF(MONTH(S$2)=3,$I187,IF(MONTH(S$2)=4,$J187,IF(MONTH(S$2)=5,$K187,IF(MONTH(S$2)=6,$L187,IF(MONTH(S$2)=7,$M187,IF(MONTH(S$2)=8,$N187,IF(MONTH(S$2)=9,$O187,IF(MONTH(S$2)=10,$P187,IF(MONTH(S$2)=11,$Q187,$R187))))))))))) -> 8
D188: Ribeirão Preto | F188: =[1]LETs!F188 -> 0 | G188: =[1]LETs!G188 -> 0 | H188: =[1]LETs!H188 -> 0 | I188: =[1]LETs!I188 -> 0 | J188: =[1]LETs!J188 -> 0 | K188: =[1]LETs!K188 -> 0 | L188: =[1]LETs!L188 -> 0 | M188: =[1]LETs!M188 -> 0 | N188: =[1]LETs!N188 -> 0 | O188: =[1]LETs!O188 -> 0 | P188: =[1]LETs!P188 -> 0 | Q188: =[1]LETs!Q188 -> 0 | R188: =[1]LETs!R188 -> 0 | S188: =IFERROR(INDEX([1]LETs!$F$3:$AZZ$214,MATCH($D188,[1]LETs!$D$3:$D$214,0),MATCH($S$2,[1]LETs!$F$2:$AZZ$2,0)),0) -> 0
D189: Meta | F189: =[1]LETs!F189 -> 4 | G189: =[1]LETs!G189 -> 4 | H189: =[1]LETs!H189 -> 4 | I189: =[1]LETs!I189 -> 0 | J189: =[1]LETs!J189 -> 0 | K189: =[1]LETs!K189 -> 0 | L189: =[1]LETs!L189 -> 0 | M189: =[1]LETs!M189 -> 0 | N189: =[1]LETs!N189 -> 0 | O189: =[1]LETs!O189 -> 0 | P189: =[1]LETs!P189 -> 0 | Q189: =[1]LETs!Q189 -> 0 | R189: =[1]LETs!R189 -> 0 | S189: =IF(MONTH(S$2)=1,$G189,IF(MONTH(S$2)=2,$H189,IF(MONTH(S$2)=3,$I189,IF(MONTH(S$2)=4,$J189,IF(MONTH(S$2)=5,$K189,IF(MONTH(S$2)=6,$L189,IF(MONTH(S$2)=7,$M189,IF(MONTH(S$2)=8,$N189,IF(MONTH(S$2)=9,$O189,IF(MONTH(S$2)=10,$P189,IF(MONTH(S$2)=11,$Q189,$R189))))))))))) -> 4
D190: Salvador | F190: =[1]LETs!F190 -> 0 | G190: =[1]LETs!G190 -> 0 | H190: =[1]LETs!H190 -> 0 | I190: =[1]LETs!I190 -> 0 | J190: =[1]LETs!J190 -> 0 | K190: =[1]LETs!K190 -> 0 | L190: =[1]LETs!L190 -> 0 | M190: =[1]LETs!M190 -> 0 | N190: =[1]LETs!N190 -> 0 | O190: =[1]LETs!O190 -> 0 | P190: =[1]LETs!P190 -> 0 | Q190: =[1]LETs!Q190 -> 0 | R190: =[1]LETs!R190 -> 0 | S190: =IFERROR(INDEX([1]LETs!$F$3:$AZZ$214,MATCH($D190,[1]LETs!$D$3:$D$214,0),MATCH($S$2,[1]LETs!$F$2:$AZZ$2,0)),0) -> 0
D191: Meta | F191: =[1]LETs!F191 -> 8 | G191: =[1]LETs!G191 -> 8 | H191: =[1]LETs!H191 -> 8 | I191: =[1]LETs!I191 -> 0 | J191: =[1]LETs!J191 -> 0 | K191: =[1]LETs!K191 -> 0 | L191: =[1]LETs!L191 -> 0 | M191: =[1]LETs!M191 -> 0 | N191: =[1]LETs!N191 -> 0 | O191: =[1]LETs!O191 -> 0 | P191: =[1]LETs!P191 -> 0 | Q191: =[1]LETs!Q191 -> 0 | R191: =[1]LETs!R191 -> 0 | S191: =IF(MONTH(S$2)=1,$G191,IF(MONTH(S$2)=2,$H191,IF(MONTH(S$2)=3,$I191,IF(MONTH(S$2)=4,$J191,IF(MONTH(S$2)=5,$K191,IF(MONTH(S$2)=6,$L191,IF(MONTH(S$2)=7,$M191,IF(MONTH(S$2)=8,$N191,IF(MONTH(S$2)=9,$O191,IF(MONTH(S$2)=10,$P191,IF(MONTH(S$2)=11,$Q191,$R191))))))))))) -> 8
C192: Etapa de Evento | D192: Etapa de evento | F192: =[1]LETs!F192 -> 0.6363 | G192: =[1]LETs!G192 -> 0.6363 | H192: =[1]LETs!H192 -> 0.4805 | I192: =[1]LETs!I192 -> 0 | J192: =[1]LETs!J192 -> 0 | K192: =[1]LETs!K192 -> 0 | L192: =[1]LETs!L192 -> 0 | M192: =[1]LETs!M192 -> 0 | N192: =[1]LETs!N192 -> 0 | O192: =[1]LETs!O192 -> 0 | P192: =[1]LETs!P192 -> 0 | Q192: =[1]LETs!Q192 -> 0 | R192: =[1]LETs!R192 -> 0 | S192: =IFERROR(INDEX([1]LETs!$F$3:$AZZ$214,MATCH($D192,[1]LETs!$D$3:$D$214,0),MATCH($S$2,[1]LETs!$F$2:$AZZ$2,0)),0) -> 
D193: Andiatado | F193: =[1]LETs!F193 -> 4539 | G193: =[1]LETs!G193 -> 4539 | H193: =[1]LETs!H193 -> 1320 | I193: =[1]LETs!I193 -> 0 | J193: =[1]LETs!J193 -> 0 | K193: =[1]LETs!K193 -> 0 | L193: =[1]LETs!L193 -> 0 | M193: =[1]LETs!M193 -> 0 | N193: =[1]LETs!N193 -> 0 | O193: =[1]LETs!O193 -> 0 | P193: =[1]LETs!P193 -> 0 | Q193: =[1]LETs!Q193 -> 0 | R193: =[1]LETs!R193 -> 0 | S193: =IFERROR(INDEX([1]LETs!$F$3:$AZZ$214,MATCH($D193,[1]LETs!$D$3:$D$214,0),MATCH($S$2,[1]LETs!$F$2:$AZZ$2,0)),0) -> 0
D194: Recebimento do Host | F194: =[1]LETs!F194 -> 1392 | G194: =[1]LETs!G194 -> 1392 | H194: =[1]LETs!H194 -> 118 | I194: =[1]LETs!I194 -> 0 | J194: =[1]LETs!J194 -> 0 | K194: =[1]LETs!K194 -> 0 | L194: =[1]LETs!L194 -> 0 | M194: =[1]LETs!M194 -> 0 | N194: =[1]LETs!N194 -> 0 | O194: =[1]LETs!O194 -> 0 | P194: =[1]LETs!P194 -> 0 | Q194: =[1]LETs!Q194 -> 0 | R194: =[1]LETs!R194 -> 0 | S194: =IFERROR(INDEX([1]LETs!$F$3:$AZZ$214,MATCH($D194,[1]LETs!$D$3:$D$214,0),MATCH($S$2,[1]LETs!$F$2:$AZZ$2,0)),0) -> 0
D195: Picking liberado | F195: =[1]LETs!F195 -> 758 | G195: =[1]LETs!G195 -> 758 | H195: =[1]LETs!H195 -> 561 | I195: =[1]LETs!I195 -> 0 | J195: =[1]LETs!J195 -> 0 | K195: =[1]LETs!K195 -> 0 | L195: =[1]LETs!L195 -> 0 | M195: =[1]LETs!M195 -> 0 | N195: =[1]LETs!N195 -> 0 | O195: =[1]LETs!O195 -> 0 | P195: =[1]LETs!P195 -> 0 | Q195: =[1]LETs!Q195 -> 0 | R195: =[1]LETs!R195 -> 0 | S195: =IFERROR(INDEX([1]LETs!$F$3:$AZZ$214,MATCH($D195,[1]LETs!$D$3:$D$214,0),MATCH($S$2,[1]LETs!$F$2:$AZZ$2,0)),0) -> 0
D196: Conferência OK | F196: =[1]LETs!F196 -> 6 | G196: =[1]LETs!G196 -> 6 | H196: =[1]LETs!H196 -> 0 | I196: =[1]LETs!I196 -> 0 | J196: =[1]LETs!J196 -> 0 | K196: =[1]LETs!K196 -> 0 | L196: =[1]LETs!L196 -> 0 | M196: =[1]LETs!M196 -> 0 | N196: =[1]LETs!N196 -> 0 | O196: =[1]LETs!O196 -> 0 | P196: =[1]LETs!P196 -> 0 | Q196: =[1]LETs!Q196 -> 0 | R196: =[1]LETs!R196 -> 0 | S196: =IFERROR(INDEX([1]LETs!$F$3:$AZZ$214,MATCH($D196,[1]LETs!$D$3:$D$214,0),MATCH($S$2,[1]LETs!$F$2:$AZZ$2,0)),0) -> 0
D197: Nota fiscal aprovada | F197: =[1]LETs!F197 -> 48 | G197: =[1]LETs!G197 -> 48 | H197: =[1]LETs!H197 -> 1 | I197: =[1]LETs!I197 -> 0 | J197: =[1]LETs!J197 -> 0 | K197: =[1]LETs!K197 -> 0 | L197: =[1]LETs!L197 -> 0 | M197: =[1]LETs!M197 -> 0 | N197: =[1]LETs!N197 -> 0 | O197: =[1]LETs!O197 -> 0 | P197: =[1]LETs!P197 -> 0 | Q197: =[1]LETs!Q197 -> 0 | R197: =[1]LETs!R197 -> 0 | S197: =IFERROR(INDEX([1]LETs!$F$3:$AZZ$214,MATCH($D197,[1]LETs!$D$3:$D$214,0),MATCH($S$2,[1]LETs!$F$2:$AZZ$2,0)),0) -> 0
D198: Nota fiscal conferida | F198: =[1]LETs!F198 -> 381 | G198: =[1]LETs!G198 -> 381 | H198: =[1]LETs!H198 -> 409 | I198: =[1]LETs!I198 -> 0 | J198: =[1]LETs!J198 -> 0 | K198: =[1]LETs!K198 -> 0 | L198: =[1]LETs!L198 -> 0 | M198: =[1]LETs!M198 -> 0 | N198: =[1]LETs!N198 -> 0 | O198: =[1]LETs!O198 -> 0 | P198: =[1]LETs!P198 -> 0 | Q198: =[1]LETs!Q198 -> 0 | R198: =[1]LETs!R198 -> 0 | S198: =IFERROR(INDEX([1]LETs!$F$3:$AZZ$214,MATCH($D198,[1]LETs!$D$3:$D$214,0),MATCH($S$2,[1]LETs!$F$2:$AZZ$2,0)),0) -> 0
D199: Exclusão de onda de coleta | F199: =[1]LETs!F199 -> 216 | G199: =[1]LETs!G199 -> 216 | H199: =[1]LETs!H199 -> 28 | I199: =[1]LETs!I199 -> 0 | J199: =[1]LETs!J199 -> 0 | K199: =[1]LETs!K199 -> 0 | L199: =[1]LETs!L199 -> 0 | M199: =[1]LETs!M199 -> 0 | N199: =[1]LETs!N199 -> 0 | O199: =[1]LETs!O199 -> 0 | P199: =[1]LETs!P199 -> 0 | Q199: =[1]LETs!Q199 -> 0 | R199: =[1]LETs!R199 -> 0 | S199: =IFERROR(INDEX([1]LETs!$F$3:$AZZ$214,MATCH($D199,[1]LETs!$D$3:$D$214,0),MATCH($S$2,[1]LETs!$F$2:$AZZ$2,0)),0) -> 0
D200: Exclusão de programa de coleta | F200: =[1]LETs!F200 -> 870 | G200: =[1]LETs!G200 -> 870 | H200: =[1]LETs!H200 -> 52 | I200: =[1]LETs!I200 -> 0 | J200: =[1]LETs!J200 -> 0 | K200: =[1]LETs!K200 -> 0 | L200: =[1]LETs!L200 -> 0 | M200: =[1]LETs!M200 -> 0 | N200: =[1]LETs!N200 -> 0 | O200: =[1]LETs!O200 -> 0 | P200: =[1]LETs!P200 -> 0 | Q200: =[1]LETs!Q200 -> 0 | R200: =[1]LETs!R200 -> 0 | S200: =IFERROR(INDEX([1]LETs!$F$3:$AZZ$214,MATCH($D200,[1]LETs!$D$3:$D$214,0),MATCH($S$2,[1]LETs!$F$2:$AZZ$2,0)),0) -> 0
... 14 more rows

Sheet Metas
A1: Performance - SEC | B1: Jan/21 | C1: Fev/21 | D1: Mar/21 | E1: Abr/21 | F1: Mai/21 | G1: Jun/21 | H1: Jul/21 | I1: Ago/21 | J1: Set/21 | K1: Out/21 | L1: Nov/21 | M1: Dez/21 | N1: 2021
A2: CD | B2: 0.98 | C2: 0.98 | N2: =IFERROR(ROUND(SUMPRODUCT(B2:M2,B3:M3)/N3,4),B2) -> 0.98
A3: Total SEC | B3: =IFERROR(SUMIFS([1]Base!$F:$F,[1]Base!$A:$A,">="&DATE(YEAR(B$1),MONTH(B$1),1),[1]Base!$A:$A,"<="&EOMONTH(B$1,0),[1]Base!$C:$C,$A2),0)+IFERROR(SUMIFS([1]Base!$E:$E,[1]Base!$A:$A,">="&DATE(YEAR(B$1),MONTH(B$1),1),[1]Base!$A:$A,"<="&EOMONTH(B$1,0),[1]Base!$C:$C,$A2),0) -> 0 | C3: =IFERROR(SUMIFS([1]Base!$F:$F,[1]Base!$A:$A,">="&DATE(YEAR(C$1),MONTH(C$1),1),[1]Base!$A:$A,"<="&EOMONTH(C$1,0),[1]Base!$C:$C,$A2),0)+IFERROR(SUMIFS([1]Base!$E:$E,[1]Base!$A:$A,">="&DATE(YEAR(C$1),MONTH(C$1),1),[1]Base!$A:$A,"<="&EOMONTH(C$1,0),[1]Base!$C:$C,$A2),0) -> 0 | N3: =SUM(B3:M3) -> 0
A4: Inbound | B4: - | C4: -
A5: - | B5: - | C5: -
A6: Estoque | B6: - | C6: -
A7: - | B7: - | C7: -
A8: Outbound | B8: =$B$2 -> 0.98 | C8: =$B$2 -> 0.98 | N8: =N2 -> 0.98
A9: Total SEC | B9: =B3 -> 0 | C9: =C3 -> 0 | N9: =N3 -> 0
A11: Reclamações de Clientes | B11: =B$1 -> Jan/21 | C11: =C$1 -> Fev/21 | D11: =D$1 -> Mar/21 | E11: Abr/21 | F11: Mai/21 | G11: Jun/21 | H11: Jul/21 | I11: Ago/21 | J11: Set/21 | K11: Out/21 | L11: Nov/21 | M11: Dez/21 | N11: 2021
A12: CD | B12: 1.9e-05 | C12: 1.9e-05 | N12: =IFERROR(ROUND(SUMPRODUCT(B12:M12,B13:M13)/N13,5),B12) -> 1.9e-05
A13: Expedidos | B13: =IFERROR(SUMIFS([1]Base!$AP:$AP,[1]Base!$A:$A,">="&DATE(YEAR(B$1),MONTH(B$1),1),[1]Base!$A:$A,"<="&EOMONTH(B$1,0),[1]Base!$C:$C,$A12),0) -> 0 | C13: =IFERROR(SUMIFS([1]Base!$AP:$AP,[1]Base!$A:$A,">="&DATE(YEAR(C$1),MONTH(C$1),1),[1]Base!$A:$A,"<="&EOMONTH(C$1,0),[1]Base!$C:$C,$A12),0) -> 0 | N13: =SUM(B13:M13) -> 0
A14: Inbound | B14: - | C14: -
A15: - | B15: - | C15: -
A16: Estoque | B16: - | C16: -
A17: - | B17: - | C17: -
A18: Outbound | B18: =B12 -> 1.9e-05 | C18: =C12 -> 1.9e-05 | N18: =N12 -> 1.9e-05
A19: Expedidos | B19: =B13 -> 0 | C19: =C13 -> 0 | N19: =N13 -> 0
A21: Perda Operacional | B21: =B$1 -> Jan/21 | C21: =C$1 -> Fev/21 | D21: =D$1 -> Mar/21 | E21: Abr/21 | F21: Mai/21 | G21: Jun/21 | H21: Jul/21 | I21: Ago/21 | J21: Set/21 | K21: Out/21 | L21: Nov/21 | M21: Dez/21 | N21: 2021
A22: CD | B22: 50 | C22: 50 | N22: =IFERROR(ROUND(SUMPRODUCT(B22:M22,B23:M23)/N23,5),B22) -> 50
A23: Qtd. Dias | B23: =DAY(EOMONTH(B$1,0)) -> 31 | C23: =DAY(EOMONTH(C$1,0)) -> 28 | N23: =SUM(B23:M23) -> 59
A24: Inbound | B24: - | C24: -
A25: Qtd. Dias | B25: - | C25: -
A26: Estoque | B26: =B22 -> 50 | C26: =C22 -> 50 | N26: =N22 -> 50
A27: Qtd. Dias | B27: =B23 -> 31 | C27: =C23 -> 28 | N27: 59
A28: Outbound | B28: - | C28: -
A29: - | B29: - | C29: -
A31: Disp. Equipamentos | B31: =B$1 -> Jan/21 | C31: =C$1 -> Fev/21 | D31: =D$1 -> Mar/21 | E31: Abr/21 | F31: Mai/21 | G31: Jun/21 | H31: Jul/21 | I31: Ago/21 | J31: Set/21 | K31: Out/21 | L31: Nov/21 | M31: Dez/21 | N31: =N$1 -> 2021
A32: CD | B32: 0.9561 | C32: 0.9561 | N32: =IFERROR(ROUND(SUMPRODUCT(B32:M32,B33:M33)/N33,5),B32) -> 0.9561
A33: Total de Equipamentos | B33: =IFERROR(SUMIFS([1]Base!$AU:$AU,[1]Base!$A:$A,">="&DATE(YEAR(B$1),MONTH(B$1),1),[1]Base!$A:$A,"<="&EOMONTH(B$1,0),[1]Base!$C:$C,$A32),0) -> 0 | C33: =IFERROR(SUMIFS([1]Base!$AU:$AU,[1]Base!$A:$A,">="&DATE(YEAR(C$1),MONTH(C$1),1),[1]Base!$A:$A,"<="&EOMONTH(C$1,0),[1]Base!$C:$C,$A32),0) -> 0 | N33: =SUM(B33:M33) -> 0
A34: Inbound | B34: - | C34: -
A35: - | B35: - | C35: -
A36: Estoque | B36: - | C36: -
A37: - | B37: - | C37: -
A38: Outbound | B38: - | C38: -
A39: - | B39: - | C39: -
A41: Produtividade CD | B41: =B$1 -> Jan/21 | C41: =C$1 -> Fev/21 | D41: =D$1 -> Mar/21 | E41: Abr/21 | F41: Mai/21 | G41: Jun/21 | H41: Jul/21 | I41: Ago/21 | J41: Set/21 | K41: Out/21 | L41: Nov/21 | M41: Dez/21 | N41: 2021
A42: CD | B42: 43.60507333 | C42: 33.90647263 | N42: =IFERROR(ROUND(SUMPRODUCT(B42:M42,B43:M43)/N43,5),B42) -> 43.60507333
A43: Quadro Produtivo Total | B43: =IFERROR(SUMIFS([1]Base!$H:$H,[1]Base!$A:$A,">="&DATE(YEAR(B$1),MONTH(B$1),1),[1]Base!$A:$A,"<="&EOMONTH(B$1,0),[1]Base!$C:$C,$A42),0) -> 0 | C43: =IFERROR(SUMIFS([1]Base!$H:$H,[1]Base!$A:$A,">="&DATE(YEAR(C$1),MONTH(C$1),1),[1]Base!$A:$A,"<="&EOMONTH(C$1,0),[1]Base!$C:$C,$A42),0) -> 0 | N43: =SUM(B43:M43) -> 0
A44: Inbound | B44: 234.1346154 | C44: 189.5 | N44: =IFERROR(ROUND(SUMPRODUCT(B44:M44,B45:M45)/N45,5),B44) -> 234.1346154
A45: Quadro Produtivo Total | B45: =IFERROR(SUMIFS([1]Base!$H:$H,[1]Base!$A:$A,">="&DATE(YEAR(B$1),MONTH(B$1),1),[1]Base!$A:$A,"<="&EOMONTH(B$1,0),[1]Base!$C:$C,$A44),0) -> 0 | C45: =IFERROR(SUMIFS([1]Base!$H:$H,[1]Base!$A:$A,">="&DATE(YEAR(C$1),MONTH(C$1),1),[1]Base!$A:$A,"<="&EOMONTH(C$1,0),[1]Base!$C:$C,$A44),0) -> 0 | N45: =SUM(B45:M45) -> 0
A46: Estoque | B46: 15.12248958 | C46: 11.33838241 | N46: =IFERROR(ROUND(SUMPRODUCT(B46:M46,B47:M47)/N47,5),B46) -> 15.12248958
A47: Quadro Produtivo Total | B47: =IFERROR(SUMIFS([1]Base!$H:$H,[1]Base!$A:$A,">="&DATE(YEAR(B$1),MONTH(B$1),1),[1]Base!$A:$A,"<="&EOMONTH(B$1,0),[1]Base!$C:$C,$A46),0) -> 0 | C47: =IFERROR(SUMIFS([1]Base!$H:$H,[1]Base!$A:$A,">="&DATE(YEAR(C$1),MONTH(C$1),1),[1]Base!$A:$A,"<="&EOMONTH(C$1,0),[1]Base!$C:$C,$A46),0) -> 0 | N47: =SUM(B47:M47) -> 0
A48: Outbound | B48: 13.51858917 | C48: 10.67141874 | N48: =IFERROR(ROUND(SUMPRODUCT(B48:M48,B49:M49)/N49,5),B48) -> 13.51858917
A49: Quadro Produtivo Total | B49: =IFERROR(SUMIFS([1]Base!$H:$H,[1]Base!$A:$A,">="&DATE(YEAR(B$1),MONTH(B$1),1),[1]Base!$A:$A,"<="&EOMONTH(B$1,0),[1]Base!$C:$C,$A48),0) -> 0 | C49: =IFERROR(SUMIFS([1]Base!$H:$H,[1]Base!$A:$A,">="&DATE(YEAR(C$1),MONTH(C$1),1),[1]Base!$A:$A,"<="&EOMONTH(C$1,0),[1]Base!$C:$C,$A48),0) -> 0 | N49: =SUM(B49:M49) -> 0
A51: Absenteísmo | B51: =B$1 -> Jan/21 | C51: =C$1 -> Fev/21 | D51: =D$1 -> Mar/21 | E51: Abr/21 | F51: Mai/21 | G51: Jun/21 | H51: Jul/21 | I51: Ago/21 | J51: Set/21 | K51: Out/21 | L51: Nov/21 | M51: Dez/21 | N51: 2021
A52: CD | B52: 0.024 | C52: 0.024 | N52: =IFERROR(ROUND(SUMPRODUCT(B52:M52,B53:M53)/N53,5),B52) -> 0.024
A53: QL | B53: =IFERROR(SUMIFS([1]Base!$T:$T,[1]Base!$A:$A,">="&DATE(YEAR(B$1),MONTH(B$1),1),[1]Base!$A:$A,"<="&EOMONTH(B$1,0),[1]Base!$C:$C,$A52),0) -> 0 | C53: =IFERROR(SUMIFS([1]Base!$T:$T,[1]Base!$A:$A,">="&DATE(YEAR(C$1),MONTH(C$1),1),[1]Base!$A:$A,"<="&EOMONTH(C$1,0),[1]Base!$C:$C,$A52),0) -> 0 | N53: =SUM(B53:M53) -> 0
A54: Inbound | B54: =$B$52 -> 0.024 | C54: =$B$52 -> 0.024 | N54: =IFERROR(ROUND(SUMPRODUCT(B54:M54,B55:M55)/N55,5),B54) -> 0.024
A55: QL | B55: =IFERROR(SUMIFS([1]Base!$T:$T,[1]Base!$A:$A,">="&DATE(YEAR(B$1),MONTH(B$1),1),[1]Base!$A:$A,"<="&EOMONTH(B$1,0),[1]Base!$C:$C,$A54),0) -> 0 | C55: =IFERROR(SUMIFS([1]Base!$T:$T,[1]Base!$A:$A,">="&DATE(YEAR(C$1),MONTH(C$1),1),[1]Base!$A:$A,"<="&EOMONTH(C$1,0),[1]Base!$C:$C,$A54),0) -> 0 | N55: =SUM(B55:M55) -> 0
A56: Estoque | B56: =$B$52 -> 0.024 | C56: =$B$52 -> 0.024 | N56: =IFERROR(ROUND(SUMPRODUCT(B56:M56,B57:M57)/N57,5),B56) -> 0.024
A57: QL | B57: =IFERROR(SUMIFS([1]Base!$T:$T,[1]Base!$A:$A,">="&DATE(YEAR(B$1),MONTH(B$1),1),[1]Base!$A:$A,"<="&EOMONTH(B$1,0),[1]Base!$C:$C,$A56),0) -> 0 | C57: =IFERROR(SUMIFS([1]Base!$T:$T,[1]Base!$A:$A,">="&DATE(YEAR(C$1),MONTH(C$1),1),[1]Base!$A:$A,"<="&EOMONTH(C$1,0),[1]Base!$C:$C,$A56),0) -> 0 | N57: =SUM(B57:M57) -> 0
A58: Outbound | B58: =$B$52 -> 0.024 | C58: =$B$52 -> 0.024 | N58: =IFERROR(ROUND(SUMPRODUCT(B58:M58,B59:M59)/N59,5),B58) -> 0.024
A59: QL | B59: =IFERROR(SUMIFS([1]Base!$T:$T,[1]Base!$A:$A,">="&DATE(YEAR(B$1),MONTH(B$1),1),[1]Base!$A:$A,"<="&EOMONTH(B$1,0),[1]Base!$C:$C,$A58),0) -> 0 | C59: =IFERROR(SUMIFS([1]Base!$T:$T,[1]Base!$A:$A,">="&DATE(YEAR(C$1),MONTH(C$1),1),[1]Base!$A:$A,"<="&EOMONTH(C$1,0),[1]Base!$C:$C,$A58),0) -> 0 | N59: =SUM(B59:M59) -> 0
A61: Acidentes (Típicos + Trajeto) | B61: =B$1 -> Jan/21 | C61: =C$1 -> Fev/21 | D61: =D$1 -> Mar/21 | E61: Abr/21 | F61: Mai/21 | G61: Jun/21 | H61: Jul/21 | I61: Ago/21 | J61: Set/21 | K61: Out/21 | L61: Nov/21 | M61: Dez/21 | N61: 2021
A62: CD | B62: 0 | C62: 0 | N62: =IFERROR(ROUND(SUMPRODUCT(B62:M62,B63:M63)/N63,5),B62) -> 0
A63: Quantidades | B63: =IFERROR(SUMIFS([1]Base!$CA:$CA,[1]Base!$A:$A,">="&DATE(YEAR(B$1),MONTH(B$1),1),[1]Base!$A:$A,"<="&EOMONTH(B$1,0),[1]Base!$C:$C,$A62),0) -> 0 | C63: =IFERROR(SUMIFS([1]Base!$CA:$CA,[1]Base!$A:$A,">="&DATE(YEAR(C$1),MONTH(C$1),1),[1]Base!$A:$A,"<="&EOMONTH(C$1,0),[1]Base!$C:$C,$A62),0) -> 0 | N63: =SUM(B63:M63) -> 0
A64: Inbound | B64: 0 | C64: 0 | N64: =IFERROR(ROUND(SUMPRODUCT(B64:M64,B65:M65)/N65,5),B64) -> 0
A65: Quantidades | B65: =IFERROR(SUMIFS([1]Base!$CA:$CA,[1]Base!$A:$A,">="&DATE(YEAR(B$1),MONTH(B$1),1),[1]Base!$A:$A,"<="&EOMONTH(B$1,0),[1]Base!$C:$C,$A64),0) -> 0 | C65: =IFERROR(SUMIFS([1]Base!$CA:$CA,[1]Base!$A:$A,">="&DATE(YEAR(C$1),MONTH(C$1),1),[1]Base!$A:$A,"<="&EOMONTH(C$1,0),[1]Base!$C:$C,$A64),0) -> 0 | N65: =SUM(B65:M65) -> 0
A66: Estoque | B66: 0 | C66: 0 | N66: =IFERROR(ROUND(SUMPRODUCT(B66:M66,B67:M67)/N67,5),B66) -> 0
A67: Quantidades | B67: =IFERROR(SUMIFS([1]Base!$CA:$CA,[1]Base!$A:$A,">="&DATE(YEAR(B$1),MONTH(B$1),1),[1]Base!$A:$A,"<="&EOMONTH(B$1,0),[1]Base!$C:$C,$A66),0) -> 0 | C67: =IFERROR(SUMIFS([1]Base!$CA:$CA,[1]Base!$A:$A,">="&DATE(YEAR(C$1),MONTH(C$1),1),[1]Base!$A:$A,"<="&EOMONTH(C$1,0),[1]Base!$C:$C,$A66),0) -> 0 | N67: =SUM(B67:M67) -> 0
A68: Outbound | B68: 0 | C68: 0 | N68: =IFERROR(ROUND(SUMPRODUCT(B68:M68,B69:M69)/N69,5),B68) -> 0
A69: Quantidades | B69: =IFERROR(SUMIFS([1]Base!$CA:$CA,[1]Base!$A:$A,">="&DATE(YEAR(B$1),MONTH(B$1),1),[1]Base!$A:$A,"<="&EOMONTH(B$1,0),[1]Base!$C:$C,$A68),0) -> 0 | C69: =IFERROR(SUMIFS([1]Base!$CA:$CA,[1]Base!$A:$A,">="&DATE(YEAR(C$1),MONTH(C$1),1),[1]Base!$A:$A,"<="&EOMONTH(C$1,0),[1]Base!$C:$C,$A68),0) -> 0 | N69: =SUM(B69:M69) -> 0
A71: Anomalias | B71: =B$1 -> Jan/21 | C71: =C$1 -> Fev/21 | D71: =D$1 -> Mar/21 | E71: Abr/21 | F71: Mai/21 | G71: Jun/21 | H71: Jul/21 | I71: Ago/21 | J71: Set/21 | K71: Out/21 | L71: Nov/21 | M71: Dez/21 | N71: 2021
A72: CD | B72: 0 | C72: 0 | N72: =IFERROR(ROUND(SUMPRODUCT(B72:M72,B73:M73)/N73,5),B72) -> 0
A73: Quantidades | B73: =IFERROR(SUMIFS([1]Base!$CB:$CB,[1]Base!$A:$A,">="&DATE(YEAR(B$1),MONTH(B$1),1),[1]Base!$A:$A,"<="&EOMONTH(B$1,0),[1]Base!$C:$C,$A72),0) -> 0 | C73: =IFERROR(SUMIFS([1]Base!$CB:$CB,[1]Base!$A:$A,">="&DATE(YEAR(C$1),MONTH(C$1),1),[1]Base!$A:$A,"<="&EOMONTH(C$1,0),[1]Base!$C:$C,$A72),0) -> 0 | N73: =SUM(B73:M73) -> 0
A74: Inbound | B74: 0 | C74: 0 | N74: =N72 -> 0
A75: Quantidades | B75: =IFERROR(SUMIFS([1]Base!$CB:$CB,[1]Base!$A:$A,">="&DATE(YEAR(B$1),MONTH(B$1),1),[1]Base!$A:$A,"<="&EOMONTH(B$1,0),[1]Base!$C:$C,$A74),0) -> 0 | C75: =IFERROR(SUMIFS([1]Base!$CB:$CB,[1]Base!$A:$A,">="&DATE(YEAR(C$1),MONTH(C$1),1),[1]Base!$A:$A,"<="&EOMONTH(C$1,0),[1]Base!$C:$C,$A74),0) -> 0 | N75: =N73 -> 0
A76: Estoque | B76: 0 | C76: 0 | N76: =N72 -> 0
A77: Quantidades | B77: =IFERROR(SUMIFS([1]Base!$CB:$CB,[1]Base!$A:$A,">="&DATE(YEAR(B$1),MONTH(B$1),1),[1]Base!$A:$A,"<="&EOMONTH(B$1,0),[1]Base!$C:$C,$A76),0) -> 0 | C77: =IFERROR(SUMIFS([1]Base!$CB:$CB,[1]Base!$A:$A,">="&DATE(YEAR(C$1),MONTH(C$1),1),[1]Base!$A:$A,"<="&EOMONTH(C$1,0),[1]Base!$C:$C,$A76),0) -> 0 | N77: =N73 -> 0
A78: Outbound | B78: 0 | C78: 0 | N78: =N72 -> 0
A79: Quantidades | B79: =IFERROR(SUMIFS([1]Base!$CB:$CB,[1]Base!$A:$A,">="&DATE(YEAR(B$1),MONTH(B$1),1),[1]Base!$A:$A,"<="&EOMONTH(B$1,0),[1]Base!$C:$C,$A78),0) -> 0 | C79: =IFERROR(SUMIFS([1]Base!$CB:$CB,[1]Base!$A:$A,">="&DATE(YEAR(C$1),MONTH(C$1),1),[1]Base!$A:$A,"<="&EOMONTH(C$1,0),[1]Base!$C:$C,$A78),0) -> 0 | N79: =N73 -> 0
A81: TMAF | B81: =B$1 -> Jan/21 | C81: =C$1 -> Fev/21 | D81: =D$1 -> Mar/21 | E81: Abr/21 | F81: Mai/21 | G81: Jun/21 | H81: Jul/21 | I81: Ago/21 | J81: Set/21 | K81: Out/21 | L81: Nov/21 | M81: Dez/21 | N81: 2021
A82: CD | B82: 02:00:00 | C82: 02:00:00 | N82: =IFERROR(ROUND(SUMPRODUCT(B82:M82,B83:M83)/N83,5),B82) -> 02:00:00
A83: Qtd. CORM | B83: =IFERROR(SUMIFS([1]Base!$AE:$AE,[1]Base!$A:$A,">="&DATE(YEAR(B$1),MONTH(B$1),1),[1]Base!$A:$A,"<="&EOMONTH(B$1,0),[1]Base!$C:$C,$A82),0) -> 0 | C83: =IFERROR(SUMIFS([1]Base!$AE:$AE,[1]Base!$A:$A,">="&DATE(YEAR(C$1),MONTH(C$1),1),[1]Base!$A:$A,"<="&EOMONTH(C$1,0),[1]Base!$C:$C,$A82),0) -> 0 | N83: =SUM(B83:M83) -> 0
A84: Inbound | B84: =B82 -> 02:00:00 | C84: =C82 -> 02:00:00 | N84: =N82 -> 02:00:00
A85: Qtd. CORM | B85: =B83 -> 0 | C85: =C83 -> 0 | N85: =N83 -> 0
A86: Estoque | B86: - | C86: -
A87: - | B87: - | C87: -
A88: Outbound | B88: - | C88: -
A89: - | B89: - | C89: -
A91: Erro em doca - Recebimento | B91: =B$1 -> Jan/21 | C91: =C$1 -> Fev/21 | D91: =D$1 -> Mar/21 | E91: Abr/21 | F91: Mai/21 | G91: Jun/21 | H91: Jul/21 | I91: Ago/21 | J91: Set/21 | K91: Out/21 | L91: Nov/21 | M91: Dez/21 | N91: 2021
A92: CD | B92: 2e-06 | C92: 2e-06 | N92: =B92 -> 2e-06
A93: Auditados (REC) | B93: =IFERROR(SUMIFS([1]Base!$AY:$AY,[1]Base!$A:$A,">="&DATE(YEAR(B$1),MONTH(B$1),1),[1]Base!$A:$A,"<="&EOMONTH(B$1,0),[1]Base!$C:$C,$A92),0) -> 0 | C93: =IFERROR(SUMIFS([1]Base!$AY:$AY,[1]Base!$A:$A,">="&DATE(YEAR(C$1),MONTH(C$1),1),[1]Base!$A:$A,"<="&EOMONTH(C$1,0),[1]Base!$C:$C,$A92),0) -> 0 | N93: =SUM(B93:M93) -> 0
A94: Inbound | B94: =B92 -> 2e-06 | C94: =C92 -> 2e-06 | N94: =N92 -> 2e-06
A95: Auditados (REC) | B95: =B93 -> 0 | C95: =C93 -> 0 | N95: =N93 -> 0
A96: Estoque | B96: - | C96: - | N96: =N92 -> 2e-06
A97: - | B97: - | C97: - | N97: =N93 -> 0
A98: Outbound | B98: - | C98: - | N98: =N92 -> 2e-06
A99: - | B99: - | C99: - | N99: =N93 -> 0
A101: Cancelamentos | B101: =B$1 -> Jan/21 | C101: =C$1 -> Fev/21 | D101: =D$1 -> Mar/21 | E101: Abr/21 | F101: Mai/21 | G101: Jun/21 | H101: Jul/21 | I101: Ago/21 | J101: Set/21 | K101: Out/21 | L101: Nov/21 | M101: Dez/21 | N101: 2021
A102: CD | B102: 3e-06 | C102: 3e-06 | N102: =B102 -> 3e-06
A103: Faturamento | B103: =IFERROR(SUMIFS([1]Base!$BB:$BB,[1]Base!$A:$A,">="&DATE(YEAR(B$1),MONTH(B$1),1),[1]Base!$A:$A,"<="&EOMONTH(B$1,0),[1]Base!$C:$C,$A102),0) -> 0 | C103: =IFERROR(SUMIFS([1]Base!$BB:$BB,[1]Base!$A:$A,">="&DATE(YEAR(C$1),MONTH(C$1),1),[1]Base!$A:$A,"<="&EOMONTH(C$1,0),[1]Base!$C:$C,$A102),0) -> 0 | N103: =SUM(B103:M103) -> 0
A104: Inbound | B104: - | C104: - | N104: =N102 -> 3e-06
A105: - | B105: - | C105: - | N105: =N103 -> 0
A106: Estoque | B106: =B102 -> 3e-06 | C106: =C102 -> 3e-06 | N106: =N102 -> 3e-06
A107: Faturamento | B107: =B103 -> 0 | C107: =C103 -> 0 | N107: =N103 -> 0
A108: Outbound | B108: - | C108: - | N108: =N102 -> 3e-06
A109: - | B109: - | C109: - | N109: =N103 -> 0
A111: Estoque Virtual | B111: =B$1 -> Jan/21 | C111: =C$1 -> Fev/21 | D111: =D$1 -> Mar/21 | E111: Abr/21 | F111: Mai/21 | G111: Jun/21 | H111: Jul/21 | I111: Ago/21 | J111: Set/21 | K111: Out/21 | L111: Nov/21 | M111: Dez/21 | N111: 2021
A112: CD | B112: 1382.03 | C112: 180 | N112: =IFERROR(ROUND(SUMPRODUCT(B112:M112,B113:M113)/N113,5),B112) -> 1382.03
A113: Expedidos $ | B113: =IFERROR(SUMIFS([1]Base!$BN:$BN,[1]Base!$A:$A,">="&DATE(YEAR(B$1),MONTH(B$1),1),[1]Base!$A:$A,"<="&EOMONTH(B$1,0),[1]Base!$C:$C,$A112),0) -> 0 | C113: =IFERROR(SUMIFS([1]Base!$BN:$BN,[1]Base!$A:$A,">="&DATE(YEAR(C$1),MONTH(C$1),1),[1]Base!$A:$A,"<="&EOMONTH(C$1,0),[1]Base!$C:$C,$A112),0) -> 0 | N113: =SUM(B113:M113) -> 0
A114: Inbound | B114: - | C114: - | N114: =N112 -> 1382.03
A115: - | B115: - | C115: - | N115: =N113 -> 0
A116: Estoque | B116: =B112 -> 1382.03 | C116: =C112 -> 180 | N116: =N112 -> 1382.03
A117: Expedidos $ | B117: =B113 -> 0 | C117: =C113 -> 0 | N117: =N113 -> 0
A118: Outbound | B118: - | C118: - | N118: =N112 -> 1382.03
A119: - | B119: - | C119: - | N119: =N113 -> 0
A121: PGE | B121: =B$1 -> Jan/21 | C121: =C$1 -> Fev/21 | D121: =D$1 -> Mar/21 | E121: Abr/21 | F121: Mai/21 | G121: Jun/21 | H121: Jul/21 | I121: Ago/21 | J121: Set/21 | K121: Out/21 | L121: Nov/21 | M121: Dez/21 | N121: 2021
A122: CD | B122: 0.98 | C122: 0.98 | N122: =IFERROR(ROUND(SUMPRODUCT(B122:M122,B123:M123)/N123,5),B122) -> 0.98
A123: Disponivel no baixo | B123: =IFERROR(SUMIFS([1]Base!$BY:$BY,[1]Base!$A:$A,">="&DATE(YEAR(B$1),MONTH(B$1),1),[1]Base!$A:$A,"<="&EOMONTH(B$1,0),[1]Base!$C:$C,$A122),0) -> 0 | C123: =IFERROR(SUMIFS([1]Base!$BY:$BY,[1]Base!$A:$A,">="&DATE(YEAR(C$1),MONTH(C$1),1),[1]Base!$A:$A,"<="&EOMONTH(C$1,0),[1]Base!$C:$C,$A122),0) -> 0 | N123: =SUM(B123:M123) -> 0
A124: Inbound | B124: - | C124: - | N124: =N122 -> 0.98
A125: - | B125: - | C125: - | N125: =N123 -> 0
A126: Estoque | B126: =B122 -> 0.98 | C126: =C122 -> 0.98 | N126: =N122 -> 0.98
A127: Disponivel no baixo | B127: =B123 -> 0 | C127: =C123 -> 0 | N127: =N123 -> 0
A128: Outbound | B128: - | C128: - | N128: =N122 -> 0.98
A129: - | B129: - | C129: - | N129: =N123 -> 0
A131: Não Conformidades | B131: =B$1 -> Jan/21 | C131: =C$1 -> Fev/21 | D131: =D$1 -> Mar/21 | E131: Abr/21 | F131: Mai/21 | G131: Jun/21 | H131: Jul/21 | I131: Ago/21 | J131: Set/21 | K131: Out/21 | L131: Nov/21 | M131: Dez/21 | N131: 2021
A132: CD | B132: 5.1e-05 | C132: 5.1e-05 | N132: =IFERROR(ROUND(SUMPRODUCT(B132:M132,B133:M133)/N133,5),B132) -> 5.1e-05
A133: Separados | B133: =IFERROR(SUMIFS([1]Base!$BE:$BE,[1]Base!$A:$A,">="&DATE(YEAR(B$1),MONTH(B$1),1),[1]Base!$A:$A,"<="&EOMONTH(B$1,0),[1]Base!$C:$C,$A132),0) -> 0 | C133: =IFERROR(SUMIFS([1]Base!$BE:$BE,[1]Base!$A:$A,">="&DATE(YEAR(C$1),MONTH(C$1),1),[1]Base!$A:$A,"<="&EOMONTH(C$1,0),[1]Base!$C:$C,$A132),0) -> 0 | N133: =SUM(B133:M133) -> 0
A134: Inbound | B134: - | C134: - | N134: =N132 -> 5.1e-05
A135: - | B135: - | C135: - | N135: =N133 -> 0
A136: Estoque | B136: =B132 -> 5.1e-05 | C136: =C132 -> 5.1e-05 | N136: =N132 -> 5.1e-05
A137: Separados | B137: =B133 -> 0 | C137: =C133 -> 0 | N137: =N133 -> 0
A138: Outbound | B138: - | C138: - | N138: =N132 -> 5.1e-05
A139: - | B139: - | C139: - | N139: =N133 -> 0
A141: Armazenagem no Prazo | B141: =B$1 -> Jan/21 | C141: =C$1 -> Fev/21 | D141: =D$1 -> Mar/21 | E141: Abr/21 | F141: Mai/21 | G141: Jun/21 | H141: Jul/21 | I141: Ago/21 | J141: Set/21 | K141: Out/21 | L141: Nov/21 | M141: Dez/21 | N141: 2021
A142: CD | B142: 0.9998 | C142: 0.9998 | N142: =IFERROR(ROUND(SUMPRODUCT(B142:M142,B143:M143)/N143,5),B142) -> 0.9998
A143: Prazo+Atraso | B143: =IFERROR(SUMIFS([1]Base!$P:$P,[1]Base!$A:$A,">="&DATE(YEAR(B$1),MONTH(B$1),1),[1]Base!$A:$A,"<="&EOMONTH(B$1,0),[1]Base!$C:$C,$A142)+SUMIFS([1]Base!$Q:$Q,[1]Base!$A:$A,">="&DATE(YEAR(B$1),MONTH(B$1),1),[1]Base!$A:$A,"<="&EOMONTH(B$1,0),[1]Base!$C:$C,$A142),0) -> 0 | C143: =IFERROR(SUMIFS([1]Base!$P:$P,[1]Base!$A:$A,">="&DATE(YEAR(C$1),MONTH(C$1),1),[1]Base!$A:$A,"<="&EOMONTH(C$1,0),[1]Base!$C:$C,$A142)+SUMIFS([1]Base!$Q:$Q,[1]Base!$A:$A,">="&DATE(YEAR(C$1),MONTH(C$1),1),[1]Base!$A:$A,"<="&EOMONTH(C$1,0),[1]Base!$C:$C,$A142),0) -> 0 | N143: =SUM(B143:M143) -> 0
A144: Inbound | B144: - | C144: - | N144: =N142 -> 0.9998
A145: - | B145: - | C145: - | N145: =N143 -> 0
A146: Estoque | B146: =B142 -> 0.9998 | C146: =C142 -> 0.9998 | N146: =N142 -> 0.9998
A147: Prazo+Atraso | B147: =B143 -> 0 | C147: =C143 -> 0 | N147: =N143 -> 0
A148: Outbound | B148: - | C148: - | N148: =N142 -> 0.9998
A149: - | B149: - | C149: - | N149: =N143 -> 0
A151: CMU | B151: =B$1 -> Jan/21 | C151: =C$1 -> Fev/21 | D151: =D$1 -> Mar/21 | E151: Abr/21 | F151: Mai/21 | G151: Jun/21 | H151: Jul/21 | I151: Ago/21 | J151: Set/21 | K151: Out/21 | L151: Nov/21 | M151: Dez/21 | N151: 2021
A152: CD | B152: 0.61 | C152: 0.61 | N152: =IFERROR(ROUND(SUMPRODUCT(B152:M152,B153:M153)/N153,5),B152) -> 0.61
A153: Faturamento CMU | B153: =IFERROR(SUMIFS([1]Base!$BB:$BB,[1]Base!$A:$A,">="&DATE(YEAR(B$1),MONTH(B$1),1),[1]Base!$A:$A,"<="&EOMONTH(B$1,0),[1]Base!$C:$C,$A152),0) -> 0 | C153: =IFERROR(SUMIFS([1]Base!$BB:$BB,[1]Base!$A:$A,">="&DATE(YEAR(C$1),MONTH(C$1),1),[1]Base!$A:$A,"<="&EOMONTH(C$1,0),[1]Base!$C:$C,$A152),0) -> 0 | N153: =SUM(B153:M153) -> 0
A154: Inbound | B154: - | C154: - | N154: =N152 -> 0.61
A155: - | B155: - | C155: - | N155: =N153 -> 0
A156: Estoque | B156: - | C156: - | N156: =N152 -> 0.61
A157: - | B157: - | C157: - | N157: =N153 -> 0
A158: Outbound | B158: =B152 -> 0.61 | C158: =C152 -> 0.61 | N158: =N152 -> 0.61
A159: Faturamento CMU | B159: =B153 -> 0 | C159: =C153 -> 0 | N159: =N153 -> 0
A161: Acerto Embalagens | B161: =B$1 -> Jan/21 | C161: =C$1 -> Fev/21 | D161: =D$1 -> Mar/21 | E161: Abr/21 | F161: Mai/21 | G161: Jun/21 | H161: Jul/21 | I161: Ago/21 | J161: Set/21 | K161: Out/21 | L161: Nov/21 | M161: Dez/21 | N161: 2021
A162: CD | B162: 0.994 | C162: 0.994 | N162: =IFERROR(ROUND(SUMPRODUCT(B162:M162,B163:M163)/N163,5),B162) -> 0.994
A163: Mono Faturados | B163: =IFERROR(SUMIFS([1]Base!$AR:$AR,[1]Base!$A:$A,">="&DATE(YEAR(B$1),MONTH(B$1),1),[1]Base!$A:$A,"<="&EOMONTH(B$1,0),[1]Base!$C:$C,$A162),0) -> 0 | C163: =IFERROR(SUMIFS([1]Base!$AR:$AR,[1]Base!$A:$A,">="&DATE(YEAR(C$1),MONTH(C$1),1),[1]Base!$A:$A,"<="&EOMONTH(C$1,0),[1]Base!$C:$C,$A162),0) -> 0 | N163: =SUM(B163:M163) -> 0
A164: Inbound | B164: - | C164: - | N164: =N162 -> 0.994
A165: - | B165: - | C165: - | N165: =N163 -> 0
A166: Estoque | B166: - | C166: - | N166: =N162 -> 0.994
A167: - | B167: - | C167: - | N167: =N163 -> 0
A168: Outbound | B168: =B162 -> 0.994 | C168: =C162 -> 0.994 | N168: =N162 -> 0.994
A169: Mono Faturados | B169: =B163 -> 0 | C169: =C163 -> 0 | N169: =N163 -> 0
A171: TMP Horas Produtivas | B171: =B$1 -> Jan/21 | C171: =C$1 -> Fev/21 | D171: =D$1 -> Mar/21 | E171: Abr/21 | F171: Mai/21 | G171: Jun/21 | H171: Jul/21 | I171: Ago/21 | J171: Set/21 | K171: Out/21 | L171: Nov/21 | M171: Dez/21 | N171: 2021
A172: CD | B172: 03:00:00 | C172: 03:00:00 | N172: =IFERROR(ROUND(SUMPRODUCT(B172:M172,B173:M173)/N173,5),B172) -> 03:00:00
A173: Expedidos (SEC) | B173: =IFERROR(SUMIFS([1]Base!$AP:$AP,[1]Base!$A:$A,">="&DATE(YEAR(B$1),MONTH(B$1),1),[1]Base!$A:$A,"<="&EOMONTH(B$1,0),[1]Base!$C:$C,$A172),0) -> 0 | C173: =IFERROR(SUMIFS([1]Base!$AP:$AP,[1]Base!$A:$A,">="&DATE(YEAR(C$1),MONTH(C$1),1),[1]Base!$A:$A,"<="&EOMONTH(C$1,0),[1]Base!$C:$C,$A172),0) -> 0 | N173: =SUM(B173:M173) -> 0
A174: Inbound | B174: - | C174: - | N174: =N172 -> 03:00:00
A175: - | B175: - | C175: - | N175: =N173 -> 0
A176: Estoque | B176: - | C176: -
A177: - | B177: - | C177: -
A178: Outbound | B178: =B172 -> 03:00:00 | C178: =C172 -> 03:00:00 | N178: =N172 -> 03:00:00
A179: Expedidos (SEC) | B179: =B173 -> 0 | C179: =C173 -> 0 | N179: =N173 -> 0
A181: Recebimento no Prazo | B181: =B$1 -> Jan/21 | C181: =C$1 -> Fev/21 | D181: =D$1 -> Mar/21 | E181: Abr/21 | F181: Mai/21 | G181: Jun/21 | H181: Jul/21 | I181: Ago/21 | J181: Set/21 | K181: Out/21 | L181: Nov/21 | M181: Dez/21 | N181: 2021
A182: CD | B182: 0.9999 | C182: 0.9999 | N182: =IFERROR(ROUND(SUMPRODUCT(B182:M182,B183:M183)/N183,5),B182) -> 0.9999
A183: Prazo+Atraso | B183: =IFERROR(SUMIFS([1]Base!$BP:$BP,[1]Base!$A:$A,">="&DATE(YEAR(B$1),MONTH(B$1),1),[1]Base!$A:$A,"<="&EOMONTH(B$1,0),[1]Base!$C:$C,$A182)+SUMIFS([1]Base!BQ:BQ,[1]Base!$A:$A,">="&DATE(YEAR(B$1),MONTH(B$1),1),[1]Base!$A:$A,"<="&EOMONTH(B$1,0),[1]Base!$C:$C,$A182),0) -> 0 | C183: =IFERROR(SUMIFS([1]Base!$BP:$BP,[1]Base!$A:$A,">="&DATE(YEAR(C$1),MONTH(C$1),1),[1]Base!$A:$A,"<="&EOMONTH(C$1,0),[1]Base!$C:$C,$A182)+SUMIFS([1]Base!BR:BR,[1]Base!$A:$A,">="&DATE(YEAR(C$1),MONTH(C$1),1),[1]Base!$A:$A,"<="&EOMONTH(C$1,0),[1]Base!$C:$C,$A182),0) -> 0 | N183: =SUM(B183:M183) -> 0
A184: Inbound | B184: =B182 -> 0.9999 | C184: =C182 -> 0.9999 | N184: =N182 -> 0.9999
A185: Prazo+Atraso | B185: =B183 -> 0 | C185: =C183 -> 0 | N185: =N183 -> 0
A186: Estoque | B186: - | C186: - | N186: =N182 -> 0.9999
A187: - | B187: - | C187: - | N187: =N183 -> 0
A188: Outbound | B188: - | C188: - | N188: =N182 -> 0.9999
A189: - | B189: - | C189: - | N189: =N183 -> 0
A191: Produtividade Área | B191: =B$1 -> Jan/21 | C191: =C$1 -> Fev/21 | D191: =D$1 -> Mar/21 | E191: Abr/21 | F191: Mai/21 | G191: Jun/21 | H191: Jul/21 | I191: Ago/21 | J191: Set/21 | K191: Out/21 | L191: Nov/21 | M191: Dez/21 | N191: 2021
A192: CD | B192: =B42 -> 43.60507333 | C192: =C42 -> 33.90647263 | N192: =IFERROR(ROUND(SUMPRODUCT(B192:M192,B193:M193)/N193,5),B192) -> 43.60507333
A193: Quadro Produtivo Total | B193: =B43 -> 0 | C193: 0 | N193: =SUM(B193:M193) -> 0
A194: Inbound | B194: 234.1346154 | C194: 189.5 | N194: =IFERROR(ROUND(SUMPRODUCT(B194:M194,B195:M195)/N195,5),B194) -> 234.1346154
A195: Quadro Produtivo Total | B195: 0 | C195: 0 | N195: =SUM(B195:M195) -> 0
A196: Estoque | B196: 15.12248958 | C196: 11.33838241 | N196: =IFERROR(ROUND(SUMPRODUCT(B196:M196,B197:M197)/N197,5),B196) -> 15.12248958
A197: Quadro Produtivo Total | B197: 0 | C197: 0 | N197: =SUM(B197:M197) -> 0
A198: Outbound | B198: 13.51858917 | C198: 10.67141874 | N198: =IFERROR(ROUND(SUMPRODUCT(B198:M198,B199:M199)/N199,5),B198) -> 13.51858917
A199: Quadro Produtivo Total | B199: 0 | C199: 0 | N199: =SUM(B199:M199) -> 0
A201: Divergência Picking no Packing | B201: =B$1 -> Jan/21 | C201: =C$1 -> Fev/21 | D201: =D$1 -> Mar/21 | E201: Abr/21 | F201: Mai/21 | G201: Jun/21 | H201: Jul/21 | I201: Ago/21 | J201: Set/21 | K201: Out/21 | L201: Nov/21 | M201: Dez/21 | N201: 2021
A202: CD | B202: 0.00012 | C202: 0.00012 | N202: =IFERROR(ROUND(SUMPRODUCT(B202:M202,B203:M203)/N203,5),B202) -> 0.00012
A203: Divergente (Pedidos) | B203: =IFERROR(SUMIFS([1]Base!$BG:$BG,[1]Base!$A:$A,">="&DATE(YEAR(B$1),MONTH(B$1),1),[1]Base!$A:$A,"<="&EOMONTH(B$1,0),[1]Base!$C:$C,$A202),0) -> 0 | C203: =IFERROR(SUMIFS([1]Base!$BG:$BG,[1]Base!$A:$A,">="&DATE(YEAR(C$1),MONTH(C$1),1),[1]Base!$A:$A,"<="&EOMONTH(C$1,0),[1]Base!$C:$C,$A202),0) -> 0 | N203: =SUM(B203:M203) -> 0
A204: Inbound | B204: - | C204: - | N204: =N202 -> 0.00012
A205: - | B205: - | C205: - | N205: =N203 -> 0
A206: Estoque | B206: =B202 -> 0.00012 | C206: =C202 -> 0.00012 | N206: =N202 -> 0.00012
A207: Divergente (Pedidos) | B207: =B203 -> 0 | C207: =C203 -> 0 | N207: =N203 -> 0
A208: Outbound | B208: - | C208: - | N208: =N202 -> 0.00012
A209: - | B209: - | C209: - | N209: =N203 -> 0
A211: Acurácia de Armazenagem | B211: =B$1 -> Jan/21 | C211: =C$1 -> Fev/21 | D211: =D$1 -> Mar/21 | E211: Abr/21 | F211: Mai/21 | G211: Jun/21 | H211: Jul/21 | I211: Ago/21 | J211: Set/21 | K211: Out/21 | L211: Nov/21 | M211: Dez/21 | N211: 2021
A212: CD | B212: 0.9999 | C212: 0.9999 | N212: =IFERROR(ROUND(SUMPRODUCT(B212:M212,B213:M213)/N213,5),B212) -> 0.9999
A213: Locais Auditados (Arm) | B213: =IFERROR(SUMIFS([1]Base!$BI:$BI,[1]Base!$A:$A,">="&DATE(YEAR(B$1),MONTH(B$1),1),[1]Base!$A:$A,"<="&EOMONTH(B$1,0),[1]Base!$C:$C,$A212),0) -> 0 | C213: =IFERROR(SUMIFS([1]Base!$BI:$BI,[1]Base!$A:$A,">="&DATE(YEAR(C$1),MONTH(C$1),1),[1]Base!$A:$A,"<="&EOMONTH(C$1,0),[1]Base!$C:$C,$A212),0) -> 0 | N213: =SUM(B213:M213) -> 0
A214: Inbound | B214: - | C214: - | N214: =N212 -> 0.9999
A215: - | B215: - | C215: - | N215: =N213 -> 0
A216: Estoque | B216: =B212 -> 0.9999 | C216: =C212 -> 0.9999 | N216: =N212 -> 0.9999
A217: Locais Auditados (Arm) | B217: =B213 -> 0 | C217: =C213 -> 0 | N217: =N213 -> 0
A218: Outbound | B218: - | C218: - | N218: =N212 -> 0.9999
A219: - | B219: - | C219: - | N219: =N213 -> 0
A221: Acurácia de Movimentação | B221: =B$1 -> Jan/21 | C221: =C$1 -> Fev/21 | D221: =D$1 -> Mar/21 | E221: Abr/21 | F221: Mai/21 | G221: Jun/21 | H221: Jul/21 | I221: Ago/21 | J221: Set/21 | K221: Out/21 | L221: Nov/21 | M221: Dez/21 | N221: 2021
A222: CD | B222: 0.9995 | C222: 0.9995 | N222: =IFERROR(ROUND(SUMPRODUCT(B222:M222,B223:M223)/N223,5),B222) -> 0.9995
... 75 more rows
